Body Name,Service Area,Expenses Type,Invoice Payment Date,Transaction Number,Supplier Name,Net Amount
Manchester City Council,Environment and Operations,Long Term Debtors,01-Aug-22,1700136697,Biffa Waste Services Ltd,"-627,340.00"
Manchester City Council,Environment and Operations,Long Term Debtors,01-Aug-22,1700136698,Biffa Waste Services Ltd,"-114,746.00"
Manchester City Council,Environment and Operations,Long Term Debtors,01-Aug-22,1700136699,Biffa Waste Services Ltd,"-83,750.00"
Manchester City Council,Chief Executives,OL&B - Adaptations,01-Aug-22,5105827132,EQUANS Regeneration Limited,"-45,977.39"
Manchester City Council,Chief Executives,OL&B - Fees,01-Aug-22,5105827126,BMS Software (Northern) Ltd,"-1,820.00"
Manchester City Council,Corporate Services,WPS Awards,01-Aug-22,5105827164,Furniture Resource Centre Ltd,573.01
Manchester City Council,Corporate Services,Oth Professional Fee,01-Aug-22,1907834026,"Appleby & Wood,Chartered Accountant",600.00
Manchester City Council,Highways Services,Direct Materials,01-Aug-22,5105827171,Manchester Safety Services Ltd,643.20
Manchester City Council,Manchester Leisure,Special Event,01-Aug-22,1907831750,Best Hotel Deansgate Limited,726.50
Manchester City Council,Manchester Leisure,Oth Professional Fee,01-Aug-22,5105827210,Abigail Lake,800.00
Manchester City Council,Manchester Leisure,Special Event,01-Aug-22,1907833985,KYSO PROJECT CIC,900.00
Manchester City Council,Chief Executives,Advertising,01-Aug-22,5105827207,Moonscape Media Ltd,900.00
Manchester City Council,Adult Social Care,Grant Expenditure,01-Aug-22,1907834241,Curios Crafty CIC,"1,000.00"
Manchester City Council,Adult Social Care,Furniture,01-Aug-22,5105827145,Furniture Resource Centre Ltd,"1,124.40"
Manchester City Council,Hospitality + Trading Services,Goods for Resale,01-Aug-22,5105827158,Obitus,"1,363.00"
Manchester City Council,Regeneration Finance,Joint Financing Cont,01-Aug-22,1907833978,CLICK EMS LTD,"1,436.00"
Manchester City Council,Regeneration Finance,Joint Financing Cont,01-Aug-22,1907833977,JV Associates LTD,"1,800.00"
Manchester City Council,Manchester Leisure,Stationery,01-Aug-22,5105827138,Steel City Marketing Limited,"1,994.00"
Manchester City Council,Manchester Leisure,Furniture,01-Aug-22,5105827149,Furniture Resource Centre Ltd,"2,350.19"
Manchester City Council,Adult Social Care,Rents,01-Aug-22,5105827172,Housing Social Ltd,"2,785.53"
Manchester City Council,Regeneration Finance,Training,01-Aug-22,5105827128,CIPFA Business Ltd,"2,800.00"
Manchester City Council,Manchester Leisure,Special Event,01-Aug-22,5105827193,Caribbean & African,"3,000.00"
Manchester City Council,Chief Executives,Advertising,01-Aug-22,5105827209,Fonemedia Limited,"4,000.00"
Manchester City Council,Adult Social Care,Equipment,01-Aug-22,5105827208,Drive Devilbiss Healthcare Ltd,"5,878.00"
Manchester City Council,Manchester Leisure,Oth Professional Fee,01-Aug-22,1907834868,WORLD TAEKWONDO EUROPE,"8,290.55"
Manchester City Council,Regeneration Finance,Oth Professional Fee,01-Aug-22,5105827194,City Football Group Limited,"8,704.00"
Manchester City Council,Childrens & Education Services,Oth Professional Fee,01-Aug-22,5105827129,AECOM Limited,"8,785.00"
Manchester City Council,Chief Executives,OL&B - Adaptations,01-Aug-22,5105827133,EQUANS Regeneration Limited,"45,895.65"
Manchester City Council,Environment and Operations,Long Term Debtors,01-Aug-22,1700136694,Biffa Waste Services Ltd,"83,750.00"
Manchester City Council,Environment and Operations,Long Term Debtors,01-Aug-22,1700136696,Biffa Waste Services Ltd,"114,746.00"
Manchester City Council,Environment and Operations,Long Term Debtors,01-Aug-22,1700136701,Biffa Waste Services Ltd,"627,340.00"
Manchester City Council,Childrens Services,Oth Rv ex fnd cp sta,01-Aug-22,5105827188,Manchester Enterprise Academy,"1,108,547.02"
Manchester City Council,Highways Services,Legal Fees,01-Aug-22,5105827204,Redacted Personal Information,700.00
Manchester City Council,Manchester Leisure,Special Event,02-Aug-22,1907834235,Redacted Personal Information,906.59
Manchester City Council,Manchester Leisure,Oth Professional Fee,02-Aug-22,1907834285,Redacted Personal Information,920.00
Manchester City Council,Chief Executives,Sub Contractors,02-Aug-22,5105827186,Redacted Personal Information,531.80
Manchester City Council,Manchester Leisure,Oth Professional Fee,02-Aug-22,5105827383,Redacted Personal Information,600.00
Manchester City Council,Adult Social Care,Extra Care Sheltd HP,02-Aug-22,5105827227,CRG Homecare Limited,"-39,664.20"
Manchester City Council,Chief Executives,External Agency,02-Aug-22,5105827428,Michael Page International,"-16,695.60"
Manchester City Council,Chief Executives,GRIR,02-Aug-22,5105827427,Landor Links Limited,"-1,080.00"
Manchester City Council,Childrens & Education Services,Signers/Interpreters,02-Aug-22,5105827268,Language Line Ltd,-654.40
Manchester City Council,Childrens & Education Services,Signers/Interpreters,02-Aug-22,5105827263,Language Line Ltd,-636.60
Manchester City Council,Manchester Leisure,Other Indirect Emp,02-Aug-22,5105827341,1Message,500.00
Manchester City Council,Housing General Fund,SP-Fees,02-Aug-22,1907789240,Slater Heelis Collier Littler Solic,500.00
Manchester City Council,Adult Social Care,Furniture,02-Aug-22,5105827303,Master Moves Ltd,588.02
Manchester City Council,Manchester Leisure,Sub Contractors,02-Aug-22,5105827328,Arboricultural Services Treework,600.00
Manchester City Council,Childrens & Education Services,Signers/Interpreters,02-Aug-22,5105827270,Language Line Ltd,616.40
Manchester City Council,Childrens & Education Services,Signers/Interpreters,02-Aug-22,5105827264,Language Line Ltd,636.60
Manchester City Council,Manchester Leisure,Grant Expenditure,02-Aug-22,5105827290,NEPHRA residents Association,650.00
Manchester City Council,Chief Executives,ICT Sup & Maintnance,02-Aug-22,5105827399,Finastra,690.00
Manchester City Council,Adult Social Care,Learning Res-Not ICT,02-Aug-22,5105827393,Soft Adventure Play,720.00
Manchester City Council,Adult Social Care,Legal Fees,02-Aug-22,5105827237,No 5 Chambers Ltd,750.00
Manchester City Council,Manchester Leisure,Oth Professional Fee,02-Aug-22,1907834027,Marni Photography,760.00
Manchester City Council,Libraries and Theatres,VPF&E - Acquisition,02-Aug-22,5105827320,Master Moves Ltd,824.12
Manchester City Council,Adult Social Care,Burials Expenditure,02-Aug-22,5105827279,Greater Manchester Funeral Service,834.00
Manchester City Council,Chief Executives,External Agency,02-Aug-22,5105827313,Isherwood Legal Limited,840.00
Manchester City Council,Corporate Services,WPS Awards,02-Aug-22,5105827335,Furniture Resource Centre Ltd,942.15
Manchester City Council,Manchester Leisure,Equipment,02-Aug-22,5105827283,Groundwork Landscapes Ltd,950.00
Manchester City Council,Corporate Services,Subscriptions,02-Aug-22,5105827278,Croner-I Ltd,"1,028.10"
Manchester City Council,Adult Social Care,Equipment,02-Aug-22,5105827253,Drive Devilbiss Healthcare Ltd,"1,071.65"
Manchester City Council,Corporate Services,WPS Awards,02-Aug-22,5105827336,Furniture Resource Centre Ltd,"1,072.52"
Manchester City Council,Adult Social Care,Supported Accom,02-Aug-22,5105827261,Wythenshawe Community Housing Group,"1,183.00"
Manchester City Council,Manchester Leisure,Subsistence and Conf,02-Aug-22,5105827269,British Youth Council,"1,200.00"
Manchester City Council,Highways Services,Direct Materials,02-Aug-22,5105827245,TARMAC,"1,286.16"
Manchester City Council,Manchester Leisure,Equipment,02-Aug-22,5105827287,Wessex Pictures,"1,295.00"
Manchester City Council,Chief Executives,Paper & Envelopes,02-Aug-22,5105827200,Premier Paper Group Ltd,"1,320.97"
Manchester City Council,Adult Social Care,Oth Professional Fee,02-Aug-22,5105827311,UNIQUE SPECIALIST SERVICES,"1,377.00"
Manchester City Council,Adult Social Care,Oth Professional Fee,02-Aug-22,5105827346,UNIQUE SPECIALIST SERVICES,"1,377.00"
Manchester City Council,Adult Social Care,Legal Fees,02-Aug-22,5105827238,No 5 Chambers Ltd,"1,500.00"
Manchester City Council,Adult Social Care,Equipment,02-Aug-22,5105827254,Aidapt Bathrooms Ltd,"1,568.00"
Manchester City Council,Highways Services,Direct Materials,02-Aug-22,5105827271,TARMAC,"1,676.78"
Manchester City Council,Adult Social Care,Furniture,02-Aug-22,5105827214,Back Care Solutions Ltd,"1,854.90"
Manchester City Council,Childrens & Education Services,Grant Expenditure,02-Aug-22,5105827260,Castlefield Gallery Limited,"1,950.00"
Manchester City Council,Corporate Services,Other Indirect Emp,02-Aug-22,5105827225,IGM Professional Consulting Ltd,"2,000.00"
Manchester City Council,Childrens & Education Services,Oth Professional Fee,02-Aug-22,5105827240,Eventus Achieves Limited,"2,050.94"
Manchester City Council,Childrens & Education Services,Oth Professional Fee,02-Aug-22,5105827241,Eventus Achieves Limited,"2,085.94"
Manchester City Council,Childrens & Education Services,Other Establishments,02-Aug-22,5105827280,Time Specialist Support Ltd,"2,196.75"
Manchester City Council,Childrens & Education Services,Learning Res-Not ICT,02-Aug-22,5105827250,HumanWare,"2,530.00"
Manchester City Council,Childrens & Education Services,Oth Professional Fee,02-Aug-22,5105827242,Eventus Achieves Limited,"2,957.21"
Manchester City Council,Childrens & Education Services,Signers/Interpreters,02-Aug-22,5105827236,Language Line Ltd,"2,964.80"
Manchester City Council,Childrens & Education Services,Oth Professional Fee,02-Aug-22,5105827331,Roland Dransfield Public Relations,"2,975.00"
Manchester City Council,Manchester Leisure,Grant Expenditure,02-Aug-22,5105827291,Families Against Violence,"3,000.00"
Manchester City Council,Adult Social Care,Equipment,02-Aug-22,5105827292,Herida Healthcare Plc,"3,029.40"
Manchester City Council,Childrens & Education Services,Other Establishments,02-Aug-22,1907834217,Cambian Whinfell School Limited,"3,084.61"
Manchester City Council,Adult Social Care,Oth Professional Fee,02-Aug-22,5105827309,UNIQUE SPECIALIST SERVICES,"3,213.00"
Manchester City Council,Adult Social Care,Oth Professional Fee,02-Aug-22,5105827310,UNIQUE SPECIALIST SERVICES,"3,213.00"
Manchester City Council,Adult Social Care,Oth Professional Fee,02-Aug-22,5105827312,UNIQUE SPECIALIST SERVICES,"3,213.00"
Manchester City Council,Childrens & Education Services,Other Establishments,02-Aug-22,1907834004,Meadows Care Limited,"3,963.57"
Manchester City Council,Adult Social Care,Personal Need Client,02-Aug-22,5105827281,Hoist & Shower Chair Company,"4,032.25"
Manchester City Council,Chief Executives,OL&B - Fees,02-Aug-22,5105827340,Office for Metropolitan Architectur,"4,621.00"
Manchester City Council,Chief Executives,External Agency,02-Aug-22,5105827267,Capita Resourcing Limited,"4,625.00"
Manchester City Council,Chief Executives,Exp Int Trade OrdEx,02-Aug-22,5105827332,Civica Election Services,"4,877.45"
Manchester City Council,Manchester Leisure,Grant Expenditure,02-Aug-22,5105827297,Families Against Violence,"5,000.00"
Manchester City Council,Insurance Fund,Vehicle & Plant Ins,02-Aug-22,1907834984,Zurich Insurance,"5,807.20"
Manchester City Council,Childrens & Education Services,Voluntary Orgs TPP,02-Aug-22,5105827286,Salford Royal Hospitals Nhs Trust,"7,500.00"
Manchester City Council,Childrens & Education Services,Other Establishments,02-Aug-22,1907834003,Meadows Care Limited,"8,566.43"
Manchester City Council,Chief Executives,External Agency,02-Aug-22,5105827259,NonStop Recruitment Ltd,"9,559.67"
Manchester City Council,Manchester Leisure,Oth Professional Fee,02-Aug-22,1907834301,YouthBank International Network,"10,000.00"
Manchester City Council,Corporate Services,Hire of Equipment,02-Aug-22,5105827339,Flowbird Smart City Uk Ltd,"10,223.90"
Manchester City Council,Childrens & Education Services,Other Establishments,02-Aug-22,1907834218,Cambian Whinfell School Limited,"10,282.03"
Manchester City Council,Childrens & Education Services,Other Establishments,02-Aug-22,1907834219,Cambian Whinfell School Limited,"10,624.76"
Manchester City Council,Childrens & Education Services,Other Establishments,02-Aug-22,1907834220,Cambian Whinfell School Limited,"10,624.76"
Manchester City Council,Adult Social Care,Voluntary Orgs TPP,02-Aug-22,5105827243,Mobysoft Ltd,"10,774.00"
Manchester City Council,Insurance Fund,Emp Lbility Ins Prem,02-Aug-22,1907834985,Express Solicitors,"11,917.00"
Manchester City Council,Adult Social Care,Other Establishments,02-Aug-22,5105827319,Brook,"12,059.60"
Manchester City Council,Childrens & Education Services,Legal Fees,02-Aug-22,1907834988,YOUR LAWYERS LTD,"16,930.00"
Manchester City Council,Adult Social Care,Grant Expenditure,02-Aug-22,5105827213,Caritas (St Aidens),"18,674.00"
Manchester City Council,Insurance Fund,Legal Fees,02-Aug-22,1907834988,YOUR LAWYERS LTD,"28,070.00"
Manchester City Council,Adult Social Care,Extra Care Sheltd HP,02-Aug-22,5105827228,CRG Homecare Limited,"39,664.20"
Manchester City Council,Adult Social Care,Rents,02-Aug-22,5105827288,Mack Residential Letting Ltd,"158,473.33"
Manchester City Council,Housing Revenue Account,CD - Adaptations,02-Aug-22,5105827217,Manchester Working Ltd,"299,895.02"
Manchester City Council,Chief Executives,Sub Contractors,02-Aug-22,5105827175,Redacted Personal Information,642.50
Manchester City Council,Highways Services,Legal Fees,02-Aug-22,5105827289,Redacted Personal Information,700.00
Manchester City Council,Manchester Leisure,Oth Professional Fee,02-Aug-22,5105827239,Redacted Personal Information,"1,000.00"
Manchester City Council,Childrens & Education Services,Oth Professional Fee,02-Aug-22,5105827215,Redacted Personal Information,"1,050.00"
Manchester City Council,Manchester Leisure,Oth Professional Fee,02-Aug-22,5105827247,Redacted Personal Information,"1,623.97"
Manchester City Council,Adult Social Care,Bed & Breakfast Acc,02-Aug-22,5105827318,Redacted Personal Information,"21,885.94"
Manchester City Council,Corporate Services,Legal Fees,03-Aug-22,1907826717,Redacted Personal Information,600.00
Manchester City Council,Chief Executives,Oth Professional Fee,03-Aug-22,1907834286,Redacted Personal Information,"1,058.55"
Manchester City Council,Corporate Services,Car Parking Permits,03-Aug-22,5105827508,Yunex Ltd,"-15,067.00"
Manchester City Council,Regeneration Finance,Ext Rep & Main Build,03-Aug-22,5105827677,Victoria Baths Trust,"-4,546.81"
Manchester City Council,Childrens & Education Services,GRIR,03-Aug-22,5105827614,University Of Sheffield,"-2,833.00"
Manchester City Council,Corporate Services,OL&B - Adaptations,03-Aug-22,5105827496,Groundwork & Leisure Services Ltd,"-2,400.00"
Manchester City Council,Manchester Leisure,GRIR,03-Aug-22,5105827643,PSS (UK),"-1,200.00"
Manchester City Council,Manchester Leisure,Radio Charges,03-Aug-22,5105827429,Security Surveillance Systems Ltd,-720.00
Manchester City Council,Chief Executives,Oth Professional Fee,03-Aug-22,1907826581,DEANS COURT CHAMBERS,500.00
Manchester City Council,Childrens & Education Services,Equipment,03-Aug-22,1907838112,SP ITSELECTRIC,500.00
Manchester City Council,Childrens & Education Services,Equipment,03-Aug-22,1907838031,CURRYS ONLINE,504.00
Manchester City Council,Childrens & Education Services,Oth Professional Fee,03-Aug-22,1907796089,ACG Occupational Therapy Ltd,516.00
Manchester City Council,Chief Executives,Oth Professional Fee,03-Aug-22,1907834018,Field Court Chambers,525.00
Manchester City Council,Chief Executives,Oth Professional Fee,03-Aug-22,1907826894,Kenworthy's Chambers,550.00
Manchester City Council,Chief Executives,Oth Professional Fee,03-Aug-22,1907827028,Kenworthy's Chambers,550.00
Manchester City Council,Adult Social Care,Rents,03-Aug-22,5105827520,Mack Residential Letting Ltd,550.00
Manchester City Council,Childrens & Education Services,Consummables,03-Aug-22,1907838060,NOVUM MANAGEMENT GMBH,569.00
Manchester City Council,Chief Executives,Oth Professional Fee,03-Aug-22,1907833998,Central Chambers,600.00
Manchester City Council,Corporate Services,Travel Season TLS,03-Aug-22,5105827419,Stagecoach Manchester,600.00
Manchester City Council,Corporate Services,Travel Season TLS,03-Aug-22,5105827431,Stagecoach Manchester,600.00
Manchester City Council,Corporate Services,Stationery,03-Aug-22,5105827389,Bennett Workplace Solutions Ltd,624.80
Manchester City Council,Corporate Services,Travel Season TLS,03-Aug-22,5105827234,First Bus,636.50
Manchester City Council,Manchester Leisure,Equipment,03-Aug-22,1907838086,MARTINS CRAFT BAKERY,648.00
Manchester City Council,Chief Executives,Oth Professional Fee,03-Aug-22,1907826837,18 St John Street Chambers,650.00
Manchester City Council,Chief Executives,Oth Professional Fee,03-Aug-22,1907834047,18 St John Street Chambers,650.00
Manchester City Council,Chief Executives,Oth Professional Fee,03-Aug-22,1907826589,DEANS COURT CHAMBERS,650.00
Manchester City Council,Manchester Leisure,Furniture,03-Aug-22,1907838110,ETFINEART.CO.UK,650.00
Manchester City Council,Chief Executives,Oth Professional Fee,03-Aug-22,1907827008,Inari Services Ltd,656.25
Manchester City Council,Chief Executives,Legal Fees,03-Aug-22,1907834034,18 St John Street Chambers,690.00
Manchester City Council,Chief Executives,Advertising,03-Aug-22,1907838090,Facebook (CARD ONLY),700.00
Manchester City Council,Chief Executives,Advertising,03-Aug-22,1907838111,Facebook (CARD ONLY),700.00
Manchester City Council,Chief Executives,Advertising,03-Aug-22,1907838172,Facebook (CARD ONLY),700.00
Manchester City Council,Chief Executives,Advertising,03-Aug-22,1907838231,Facebook (CARD ONLY),700.00
Manchester City Council,Chief Executives,Advertising,03-Aug-22,1907838296,Facebook (CARD ONLY),700.00
Manchester City Council,Adult Social Care,Supported Accom,03-Aug-22,5105827418,Mosscare Housing Ltd,703.64
Manchester City Council,Childrens & Education Services,Bed & Breakfast Acc,03-Aug-22,1907837952,HOTEL AT BOOKING.COM,718.56
Manchester City Council,Manchester Leisure,Sub Contractors,03-Aug-22,5105827700,Clean-Up UK Limited,720.00
Manchester City Council,Manchester Leisure,Sub Contractors,03-Aug-22,5105827701,Clean-Up UK Limited,720.00
Manchester City Council,Manchester Leisure,Radio Charges,03-Aug-22,5105827493,Security Surveillance Systems Ltd,720.00
Manchester City Council,Highways Services,Direct Materials,03-Aug-22,5105827414,Viewprint,734.00
Manchester City Council,Chief Executives,Oth Professional Fee,03-Aug-22,1907833996,18 St John Street Chambers,770.00
Manchester City Council,Manchester Leisure,Sub Contractors,03-Aug-22,5105827256,Cornthwaite Tree Care,780.00
Manchester City Council,Chief Executives,Oth Professional Fee,03-Aug-22,1907827007,Moore Associates Ltd,816.25
Manchester City Council,Chief Executives,Oth Professional Fee,03-Aug-22,1907827012,Pickering Psychology Services Ltd,831.14
Manchester City Council,Manchester Leisure,Equipment,03-Aug-22,5105827284,Groundwork Landscapes Ltd,850.00
Manchester City Council,Chief Executives,Legal Fees,03-Aug-22,1907834024,C Camden-Smith and Associates,874.06
Manchester City Council,Housing Revenue Account,CD - Adaptations,03-Aug-22,5105827459,Moores Furniture Group Limited,883.50
Manchester City Council,Adult Social Care,Rents,03-Aug-22,5105827531,Mack Residential Letting Ltd,900.00
Manchester City Council,Childrens & Education Services,Personal Need Client,03-Aug-22,1907838036,VICTORIA PARK  RE,900.00
Manchester City Council,Childrens & Education Services,Oth Professional Fee,03-Aug-22,1907837942,TUI,929.00
Manchester City Council,Highways Services,Stores Purchases,03-Aug-22,5105827475,Manchester Safety Services Ltd,929.40
Manchester City Council,Manchester Leisure,Legal Fees,03-Aug-22,1907836481,Trinity Chambers,950.00
Manchester City Council,Adult Social Care,Rents,03-Aug-22,1907837860,Clear Vision Investments Limited,970.00
Manchester City Council,Hospitality + Trading Services,Equipment,03-Aug-22,5105827694,Arco Group Ltd,997.00
Manchester City Council,Manchester Leisure,Oth Professional Fee,03-Aug-22,5105827403,N-Gage Project,"1,000.00"
Manchester City Council,Hospitality + Trading Services,Hire of Machinery,03-Aug-22,5105827546,R & M Developments Ltd,"1,073.50"
Manchester City Council,Chief Executives,Oth Professional Fee,03-Aug-22,5105827448,Table Linen Company Ltd,"1,095.00"
Manchester City Council,Manchester Leisure,Equipment,03-Aug-22,1907838047,OEELECTRICS.CO.UK,"1,138.32"
Manchester City Council,Childrens & Education Services,Supported Accom,03-Aug-22,1907838103,WWW.LUXINN.CO.UK,"1,160.00"
Manchester City Council,Childrens & Education Services,Supported Accom,03-Aug-22,1907838222,WWW.LUXINN.CO.UK,"1,160.00"
Manchester City Council,Childrens & Education Services,Supported Accom,03-Aug-22,1907838291,WWW.LUXINN.CO.UK,"1,160.00"
Manchester City Council,Manchester Leisure,Legal Fees,03-Aug-22,1907836482,Peter Dickeson Associates Ltd,"1,167.23"
Manchester City Council,Childrens & Education Services,Bed & Breakfast Acc,03-Aug-22,1907838150,HOTEL AT BOOKING.COM,"1,172.62"
Manchester City Council,Manchester Leisure,Goods for Resale,03-Aug-22,1907838189,STAMFORD NOTEBOOK CO.,"1,178.04"
Manchester City Council,Adult Social Care,Equipment,03-Aug-22,5105827501,Drive Devilbiss Healthcare Ltd,"1,189.60"
Manchester City Council,Childrens & Education Services,Bed & Breakfast Acc,03-Aug-22,1907838265,HOTEL AT BOOKING.COM,"1,190.67"
Manchester City Council,Chief Executives,Oth Professional Fee,03-Aug-22,1907831749,Cartlidge & Stewart Ltd,"1,200.00"
Manchester City Council,Childrens & Education Services,Voluntary Orgs TPP,03-Aug-22,5105827462,TiPP Centre,"1,200.00"
Manchester City Council,Childrens & Education Services,Bed & Breakfast Acc,03-Aug-22,1907838352,HOTEL AT BOOKING.COM,"1,208.73"
Manchester City Council,Manchester Leisure,Oth Professional Fee,03-Aug-22,5105827541,Manchester BME Network,"1,230.00"
Manchester City Council,Childrens & Education Services,Bed & Breakfast Acc,03-Aug-22,1907838012,HOTEL AT BOOKING.COM,"1,232.81"
Manchester City Council,Manchester Leisure,Legal Fees,03-Aug-22,1907836480,Trinity Chambers,"1,300.00"
Manchester City Council,Highways Services,Direct Materials,03-Aug-22,5105827415,Viewprint,"1,354.00"
Manchester City Council,Childrens & Education Services,Oth Professional Fee,03-Aug-22,5105827534,Angela Westington Consulting Ltd,"1,425.00"
Manchester City Council,Adult Social Care,Furniture,03-Aug-22,5105827413,Back Care Solutions Ltd,"1,579.90"
Manchester City Council,Adult Social Care,Bed & Breakfast Acc,03-Aug-22,1907838239,PARKVIEW,"1,600.00"
Manchester City Council,Regeneration Finance,Car Parking Expenses,03-Aug-22,5105827514,NCP Members Parking,"1,640.00"
Manchester City Council,Regeneration Finance,Taxi Vehicle Materia,03-Aug-22,5105827522,VIP-System Ltd,"1,643.98"
Manchester City Council,Chief Executives,Oth Professional Fee,03-Aug-22,1907826898,Pickering Psychology Services Ltd,"1,742.27"
Manchester City Council,Chief Executives,Legal Fees,03-Aug-22,1907827029,Millennium Translations Ltd,"1,771.08"
Manchester City Council,Chief Executives,Counsel Costs,03-Aug-22,1907834036,No 5 Chambers Ltd,"1,800.00"
Manchester City Council,Chief Executives,Training,03-Aug-22,5105827440,Social Insight Ltd,"1,850.00"
Manchester City Council,Childrens & Education Services,Rents,03-Aug-22,1907837996,HOTEL AT BOOKING.COM,"2,017.14"
Manchester City Council,Adult Social Care,Personal Need Client,03-Aug-22,5105826405,Hoist & Shower Chair Company,"2,018.25"
Manchester City Council,Chief Executives,Legal Fees,03-Aug-22,1907796078,CGDM Ltd T/A,"2,095.00"
Manchester City Council,Corporate Services,Printing,03-Aug-22,5105826407,Mail Solutions,"2,544.00"
Manchester City Council,Manchester Leisure,Sub Contractors,03-Aug-22,5105827540,Synectics Security Limited,"2,552.02"
Manchester City Council,Chief Executives,Legal Fees,03-Aug-22,1907827025,Target Psychology Ltd,"2,574.40"
Manchester City Council,Chief Executives,Legal Fees,03-Aug-22,1907831640,Millennium Translations Ltd,"2,715.84"
Manchester City Council,Adult Social Care,Rents,03-Aug-22,1907837859,Dar & Co Estate Agents,"2,800.00"
Manchester City Council,Manchester Leisure,Sub Contractors,03-Aug-22,5105827536,Synectics Security Limited,"2,857.91"
Manchester City Council,Chief Executives,Oth Professional Fee,03-Aug-22,1907831618,Target Psychology Ltd,"2,860.60"
Manchester City Council,Hospitality + Trading Services,Goods for Resale,03-Aug-22,5105827519,Albert Jones Memorials,"3,165.00"
Manchester City Council,Childrens & Education Services,Oth Professional Fee,03-Aug-22,5105827533,Museum of Science & Industry,"3,281.67"
Manchester City Council,Manchester Leisure,Hire of Premises,03-Aug-22,5105827435,Greenwich Leisure Limited,"3,466.00"
Manchester City Council,Childrens & Education Services,Supported Accom,03-Aug-22,5105827445,Care & Support Initiatives@ Rectory,"3,600.00"
Manchester City Council,Adult Social Care,Rents,03-Aug-22,5105827495,Southway Housing Trust,"4,060.00"
Manchester City Council,Adult Social Care,Rents,03-Aug-22,5105827494,Southway Housing Trust,"4,108.38"
Manchester City Council,Adult Social Care,Rents,03-Aug-22,5105827518,Housing Social Ltd,"4,307.77"
Manchester City Council,Adult Social Care,Equipment,03-Aug-22,5105827498,Smitcare Ltd,"4,425.00"
Manchester City Council,Regeneration Finance,Legal Fees,03-Aug-22,1907837857,Bevan Brittan LLP,"5,076.50"
Manchester City Council,Highways Services,Sub Contractors,03-Aug-22,5105827482,Rosgal Ltd,"5,604.50"
Manchester City Council,Childrens & Education Services,Other Establishments,03-Aug-22,5105827423,Citywall,"5,950.00"
Manchester City Council,Childrens & Education Services,Oth Professional Fee,03-Aug-22,5105827441,The Point of Care Foundation,"6,000.00"
Manchester City Council,Adult Social Care,Ext Rep & Main Build,03-Aug-22,5105827491,Sheridan Lifts Ltd,"7,641.50"
Manchester City Council,Manchester Leisure,Refuse Collection ex,03-Aug-22,5105827402,Egbert Taylor Group,"8,010.00"
Manchester City Council,Adult Social Care,Equipment,03-Aug-22,5105826404,Etac Ltd,"9,439.95"
Manchester City Council,Chief Executives,Licences Expenditure,03-Aug-22,5105827416,Trustmarque Solutions Ltd,"9,603.00"
Manchester City Council,Corporate Services,Car Parking Permits,03-Aug-22,5105827509,Yunex Ltd,"15,067.00"
Manchester City Council,Highways Services,Sub Contractors,03-Aug-22,5105827481,Rosgal Ltd,"22,209.50"
Manchester City Council,Adult Social Care,Other Establishments,03-Aug-22,5105827417,Greater Manchester Mental Health,"23,384.00"
Manchester City Council,Adult Social Care,Extra Care Sheltd HP,03-Aug-22,5105827537,Homecare Support,"24,555.85"
Manchester City Council,Adult Social Care,Extra Care Sheltd HP,03-Aug-22,5105827539,Homecare Support,"24,555.85"
Manchester City Council,Chief Executives,External Agency,03-Aug-22,5105827412,Sellick Partnership (Legal) Ltd,"26,153.30"
Manchester City Council,Childrens & Education Services,Other Establishments,03-Aug-22,5105827424,Pure Innovations Ltd,"37,500.00"
Manchester City Council,Regeneration Finance,Legal Fees,03-Aug-22,5105827476,Jacobs UK Ltd,"44,000.00"
Manchester City Council,Manchester Leisure,Grant Expenditure,03-Aug-22,5105827388,Nacro,"50,000.00"
Manchester City Council,Environment and Operations,Infra - Construction,03-Aug-22,5105827397,J.Hopkins (Contractors) Ltd.,"51,550.53"
Manchester City Council,Chief Executives,Legal Fees,03-Aug-22,1907833993,Redacted Personal Information,510.42
Manchester City Council,Chief Executives,Oth Professional Fee,03-Aug-22,1907826892,Redacted Personal Information,550.00
Manchester City Council,Chief Executives,Oth Professional Fee,03-Aug-22,1907831622,Redacted Personal Information,550.00
Manchester City Council,Chief Executives,Oth Professional Fee,03-Aug-22,1907826891,Redacted Personal Information,550.00
Manchester City Council,Chief Executives,Legal Fees,03-Aug-22,1907834050,Redacted Personal Information,666.67
Manchester City Council,Chief Executives,Legal Fees,03-Aug-22,1907833995,Redacted Personal Information,750.00
Manchester City Council,Chief Executives,Oth Professional Fee,03-Aug-22,1907833991,Redacted Personal Information,750.00
Manchester City Council,Chief Executives,Legal Fees,03-Aug-22,1907832491,Redacted Personal Information,916.67
Manchester City Council,Childrens & Education Services,Oth Professional Fee,03-Aug-22,5105827535,Redacted Personal Information,950.00
Manchester City Council,Chief Executives,Oth Professional Fee,03-Aug-22,1907831645,Redacted Personal Information,"1,000.00"
Manchester City Council,Chief Executives,Legal Fees,03-Aug-22,1907832490,Redacted Personal Information,"1,312.50"
Manchester City Council,Manchester Leisure,Sub Contractors,03-Aug-22,5105827465,Redacted Personal Information,"2,004.00"
Manchester City Council,Childrens & Education Services,Oth Professional Fee,03-Aug-22,5105827436,Redacted Personal Information,"2,325.00"
Manchester City Council,Chief Executives,Legal Fees,03-Aug-22,1907826714,Redacted Personal Information,"2,490.00"
Manchester City Council,Chief Executives,Sub Contractors,03-Aug-22,5105827179,Redacted Personal Information,"2,752.73"
Manchester City Council,Manchester Leisure,Sub Contractors,03-Aug-22,5105827463,Redacted Personal Information,"4,628.88"
Manchester City Council,Manchester Leisure,Sub Contractors,03-Aug-22,5105827464,Redacted Personal Information,"10,337.61"
Manchester City Council,Corporate Services,Legal Fees,04-Aug-22,1907838698,Redacted Personal Information,"14,000.00"
Manchester City Council,Adult Social Care,Clean & Domestic Mat,04-Aug-22,1700137197,PHS Group,"-1,851.67"
Manchester City Council,Manchester Leisure,Oth Professional Fee,04-Aug-22,5105827551,Shoppertrak Ltd,-766.77
Manchester City Council,Adult Social Care,Clean & Domestic Mat,04-Aug-22,1700137198,PHS Group,-544.22
Manchester City Council,Adult Social Care,Clean & Domestic Mat,04-Aug-22,1907839236,PHS Group,544.22
Manchester City Council,Chief Executives,Oth Professional Fee,04-Aug-22,1907834058,Central Chambers,550.00
Manchester City Council,Chief Executives,Oth Professional Fee,04-Aug-22,1907834059,Central Chambers,550.00
Manchester City Council,Adult Social Care,Legal Fees,04-Aug-22,5105827637,Kings Chambers,606.67
Manchester City Council,Manchester Leisure,Contract Hire and OL,04-Aug-22,5105827854,T.H. Horn Ltd,625.00
Manchester City Council,Chief Executives,Oth Professional Fee,04-Aug-22,1907834048,18 St John Street Chambers,650.00
Manchester City Council,Childrens & Education Services,Stationery,04-Aug-22,5105827834,Banner Group Limited,660.00
Manchester City Council,Manchester Leisure,Equipment,04-Aug-22,5105827660,Sign-It-Up,675.00
Manchester City Council,Chief Executives,Licences Expenditure,04-Aug-22,5105827447,Trustmarque Solutions Ltd,691.25
Manchester City Council,Childrens & Education Services,Oth Professional Fee,04-Aug-22,5105827720,Hays Specialist Recruitment Limited,704.65
Manchester City Council,Childrens & Education Services,Oth Professional Fee,04-Aug-22,5105827721,Hays Specialist Recruitment Limited,704.65
Manchester City Council,Chief Executives,Oth Professional Fee,04-Aug-22,5105827591,B Animated Limited,780.00
Manchester City Council,Manchester Leisure,Sub Contractors,04-Aug-22,5105827663,Groundwork Landscapes Ltd,790.00
Manchester City Council,Corporate Services,WPS Awards,04-Aug-22,5105827630,Furniture Resource Centre Ltd,813.76
Manchester City Council,Adult Social Care,Equipment,04-Aug-22,5105827631,Aidapt Bathrooms Ltd,840.00
Manchester City Council,Manchester Leisure,Equipment,04-Aug-22,5105827530,Groundwork Landscapes Ltd,850.00
Manchester City Council,Manchester Leisure,Equipment,04-Aug-22,5105827612,Groundwork Landscapes Ltd,850.00
Manchester City Council,Corporate Services,WPS Awards,04-Aug-22,5105827550,Furniture Resource Centre Ltd,868.09
Manchester City Council,Adult Social Care,Subsistence and Conf,04-Aug-22,5105827580,Bal Kaur Howard Training,900.00
Manchester City Council,Adult Social Care,Clean & Domestic Mat,04-Aug-22,5105827685,Arrow County Supplies,911.00
Manchester City Council,Chief Executives,Oth Professional Fee,04-Aug-22,1907834094,Target Psychology Ltd,916.91
Manchester City Council,Manchester Leisure,Legal Fees,04-Aug-22,1907838704,Calland Mellor Consulting,960.00
Manchester City Council,Chief Executives,Counsel Costs,04-Aug-22,1907838689,DEANS COURT CHAMBERS,"1,000.00"
Manchester City Council,Highways Services,Direct Materials,04-Aug-22,5105827839,Ecomix Concrete Ltd,"1,000.00"
Manchester City Council,Adult Social Care,Equipment,04-Aug-22,5105827629,Aidapt Bathrooms Ltd,"1,050.00"
Manchester City Council,Childrens & Education Services,Hire of Premises,04-Aug-22,5105827586,Quaker Trading Ltd,"1,065.84"
Manchester City Council,Hospitality + Trading Services,Hire of Machinery,04-Aug-22,5105827553,R & M Developments Ltd,"1,073.50"
Manchester City Council,Hospitality + Trading Services,Hire of Machinery,04-Aug-22,5105827559,R & M Developments Ltd,"1,073.50"
Manchester City Council,Hospitality + Trading Services,Hire of Machinery,04-Aug-22,5105827557,R & M Developments Ltd,"1,135.00"
Manchester City Council,Corporate Services,OL&B - Adaptations,04-Aug-22,5105827525,Apex Self Storage Ltd,"1,255.68"
Manchester City Council,Adult Social Care,Voluntary Orgs TPP,04-Aug-22,5105827638,Change Grow Live,"1,305.00"
Manchester City Council,Regeneration Finance,Window Cleaning,04-Aug-22,5105827480,Associated Cleaning Contractors,"1,320.00"
Manchester City Council,Regeneration Finance,Taxi Vehicle Materia,04-Aug-22,5105827681,VIP-System Ltd,"1,353.48"
Manchester City Council,Manchester Leisure,Equipment,04-Aug-22,5105827657,Sign-It-Up,"1,400.00"
Manchester City Council,Chief Executives,Oth Professional Fee,04-Aug-22,5105827588,Anthesis Group,"1,715.00"
Manchester City Council,Chief Executives,Counsel Costs,04-Aug-22,1907838680,Halcyon Chambers,"1,750.00"
Manchester City Council,Chief Executives,Computer Running,04-Aug-22,1907816445,Vodafone (Ex C&W),"1,761.11"
Manchester City Council,Adult Social Care,Clean & Domestic Mat,04-Aug-22,1907839235,PHS Group,"1,851.67"
Manchester City Council,Manchester Leisure,CTU negotiated chrgs,04-Aug-22,5105827658,The Networking People (TNP) Ltd,"1,896.36"
Manchester City Council,Regeneration Finance,CTU negotiated chrgs,04-Aug-22,5105827656,The Networking People (TNP) Ltd,"1,896.36"
Manchester City Council,Manchester Leisure,Equipment,04-Aug-22,5105827666,Groundwork Landscapes Ltd,"1,925.00"
Manchester City Council,Environment and Operations,Infra - Construction,04-Aug-22,5105827479,Salford City Council,"1,967.00"
Manchester City Council,Chief Executives,External Agency,04-Aug-22,5105827672,Adecco Uk Ltd,"2,000.00"
Manchester City Council,Chief Executives,External Agency,04-Aug-22,5105827727,Adecco Uk Ltd,"2,000.00"
Manchester City Council,Corporate Services,Other Indirect Emp,04-Aug-22,5105827556,PC4YC Ltd,"2,000.00"
Manchester City Council,Corporate Services,OL&B - Adaptations,04-Aug-22,5105827497,Groundwork & Leisure Services Ltd,"2,400.00"
Manchester City Council,Corporate Services,OL&B - Adaptations,04-Aug-22,5105827499,Groundwork & Leisure Services Ltd,"2,400.00"
Manchester City Council,Adult Social Care,Bed & Breakfast Acc,04-Aug-22,5105827759,Molesworth Hotel,"2,415.00"
Manchester City Council,Manchester Leisure,Sub Contractors,04-Aug-22,5105827673,Synectics Security Limited,"2,552.02"
Manchester City Council,Corporate Services,VPF&E - Acquisition,04-Aug-22,5105827655,The Networking People (TNP) Ltd,"2,705.00"
Manchester City Council,Corporate Services,VPF&E - Acquisition,04-Aug-22,5105827659,The Networking People (TNP) Ltd,"2,705.00"
Manchester City Council,Childrens & Education Services,Other Establishments,04-Aug-22,5105827569,Staff Resources Ltd,"2,720.00"
Manchester City Council,Chief Executives,Exp Int Trade OrdEx,04-Aug-22,5105827589,Creative Concern Ltd,"2,975.00"
Manchester City Council,Manchester Leisure,Oth Professional Fee,04-Aug-22,5105827587,British Taekwondo Limited,"3,257.67"
Manchester City Council,Adult Social Care,Equipment,04-Aug-22,5105827749,NRS Healthcare,"4,394.10"
Manchester City Council,Adult Social Care,Personal Need Client,04-Aug-22,5105827734,Anywhere Care Ltd,"4,650.00"
Manchester City Council,Adult Social Care,Rents,04-Aug-22,5105827600,Houses4Homes 4U Ltd,"4,966.76"
Manchester City Council,Manchester Leisure,Grant Expenditure,04-Aug-22,5105827743,Chorlton Community Land Trust,"5,000.00"
Manchester City Council,Adult Social Care,Rents,04-Aug-22,5105827602,Houses4Homes 4U Ltd,"5,065.60"
Manchester City Council,Chief Executives,Oth Professional Fee,04-Aug-22,5105827707,Weightmans LLP Solicitors,"5,393.94"
Manchester City Council,Manchester Leisure,Sub Contractors,04-Aug-22,5105827394,Arboricultural Services Treework,"5,600.00"
Manchester City Council,Corporate Services,Subsistence and Conf,04-Aug-22,1907836483,Downtown In Business Ltd,"5,728.91"
Manchester City Council,Chief Executives,External Agency,04-Aug-22,5105827578,Ashberry Recruitment Ltd,"6,004.05"
Manchester City Council,Chief Executives,Oth Professional Fee,04-Aug-22,5105827592,Manchester Climate Change Agency,"6,218.75"
Manchester City Council,Chief Executives,Postage,04-Aug-22,5105826408,Whistl North Ltd,"6,473.89"
Manchester City Council,Childrens & Education Services,Cont Cleaning - Ext,04-Aug-22,5105827653,Tiddlywinks Nursery-Clayton No.4 Ac,"7,095.00"
Manchester City Council,Chief Executives,Oth Professional Fee,04-Aug-22,5105827590,Manchester Climate Change Agency,"7,988.75"
Manchester City Council,Chief Executives,External Agency,04-Aug-22,5105827573,Osbourne Thomas Ltd,"8,250.00"
Manchester City Council,Chief Executives,External Agency,04-Aug-22,5105827641,Michael Page International,"10,000.00"
Manchester City Council,Adult Social Care,Support People Pays,04-Aug-22,5105827304,Mosscare St Vincent's Housing,"10,250.00"
Manchester City Council,Chief Executives,External Agency,04-Aug-22,5105827642,Access Computer Consulting plc,"11,629.26"
Manchester City Council,Childrens & Education Services,Other Establishments,04-Aug-22,5105827610,Reed Employment Plc,"12,796.95"
Manchester City Council,Adult Social Care,Rents,04-Aug-22,5105827621,Eeven Homes Ltd.,"13,289.01"
Manchester City Council,Regeneration Finance,Computer Purchases,04-Aug-22,5105827574,Vitalize Consultancy,"19,040.00"
Manchester City Council,Childrens & Education Services,Other Local Auth,04-Aug-22,5105827726,The Orchards School,"21,769.00"
Manchester City Council,Adult Social Care,Equipment,04-Aug-22,5105827644,Invacare Limited,"27,983.00"
Manchester City Council,Manchester Leisure,ICT Sup & Maintnance,04-Aug-22,5105827467,TELEF�NICA TECH NI LTD,"31,144.50"
Manchester City Council,Adult Social Care,Rents,04-Aug-22,5105827639,Housing Social Ltd,"34,183.84"
Manchester City Council,Adult Social Care,Bed & Breakfast Acc,04-Aug-22,5105827783,Parkview Residence,"52,360.00"
Manchester City Council,Housing Revenue Account,CD - Adaptations,04-Aug-22,5105827741,"Jackson, Jackson & Sons Ltd","69,314.54"
Manchester City Council,Adult Social Care,Rents,04-Aug-22,5105827710,T15 Consultancy Ltd,"112,056.55"
Manchester City Council,Childrens Services,Oth Rv ex fnd cp sta,04-Aug-22,5105827708,Co-op Academy Belle Vue,"636,104.63"
Manchester City Council,Chief Executives,Oth Professional Fee,04-Aug-22,1907834225,Redacted Personal Information,550.00
Manchester City Council,Chief Executives,Legal Fees,04-Aug-22,1907834065,Redacted Personal Information,552.08
Manchester City Council,Chief Executives,Legal Fees,04-Aug-22,1907834224,Redacted Personal Information,552.08
Manchester City Council,Manchester Leisure,Oth Professional Fee,04-Aug-22,5105827575,Redacted Personal Information,600.00
Manchester City Council,Manchester Leisure,Special Event,04-Aug-22,5105827611,Redacted Personal Information,600.00
Manchester City Council,Chief Executives,Oth Professional Fee,04-Aug-22,1907834045,Redacted Personal Information,700.00
Manchester City Council,Chief Executives,Legal Fees,04-Aug-22,1907834054,Redacted Personal Information,800.00
Manchester City Council,Chief Executives,Oth Professional Fee,04-Aug-22,1907834049,Redacted Personal Information,812.50
Manchester City Council,Chief Executives,Legal Fees,04-Aug-22,1907834060,Redacted Personal Information,900.00
Manchester City Council,Chief Executives,Oth Professional Fee,04-Aug-22,1907834061,Redacted Personal Information,925.00
Manchester City Council,Chief Executives,Oth Professional Fee,04-Aug-22,1907834073,Redacted Personal Information,"1,875.00"
Manchester City Council,Chief Executives,Legal Fees,04-Aug-22,1907834064,Redacted Personal Information,"2,145.83"
Manchester City Council,Chief Executives,Oth Professional Fee,04-Aug-22,1907834053,Redacted Personal Information,"3,200.00"
Manchester City Council,Adult Social Care,Bed & Breakfast Acc,04-Aug-22,5105827651,Redacted Personal Information,"34,762.00"
Manchester City Council,Adult Social Care,Bed & Breakfast Acc,04-Aug-22,5105827782,Redacted Personal Information,"35,951.50"
Manchester City Council,Adult Social Care,Housing Rents Debit,05-Aug-22,1907838683,Redacted Personal Information,664.26
Manchester City Council,Childrens & Education Services,Rents,05-Aug-22,1907839326,Redacted Personal Information,860.00
Manchester City Council,Childrens & Education Services,Subsistence and Conf,05-Aug-22,1907838685,Redacted Personal Information,"1,085.34"
Manchester City Council,Adult Social Care,Rents,05-Aug-22,1907840553,Redacted Personal Information,"1,400.00"
Manchester City Council,Environment and Operations,Long Term Debtors,05-Aug-22,1700136700,Biffa Municipal Limited,"-627,340.00"
Manchester City Council,Environment and Operations,Long Term Debtors,05-Aug-22,1700136695,Biffa Municipal Limited,"-114,746.00"
Manchester City Council,Chief Executives,OL&B - Fees,05-Aug-22,5105827884,Ryder Architecture Ltd,"-101,555.69"
Manchester City Council,Environment and Operations,Long Term Debtors,05-Aug-22,1700136693,Biffa Municipal Limited,"-83,750.00"
Manchester City Council,Chief Executives,VPF&E - Acquisition,05-Aug-22,5105827793,Insight Direct (Uk) Ltd,"-31,204.00"
Manchester City Council,Hospitality + Trading Services,Vehicle Fuel Costs,05-Aug-22,5105827866,Standard Fuels Oils,"-24,334.33"
Manchester City Council,Housing General Fund,OL&B - Construction,05-Aug-22,5105827843,Shared Habitat Limited,"-9,475.00"
Manchester City Council,Adult Social Care,Personal Need Client,05-Aug-22,5105827899,Tynetec,"-8,846.30"
Manchester City Council,Childrens & Education Services,Coach Hire,05-Aug-22,5105827869,PDR Travel Ltd,"-6,030.00"
Manchester City Council,Housing General Fund,OL&B - Construction,05-Aug-22,5105827843,Shared Habitat Limited,"-4,190.00"
Manchester City Council,Manchester Leisure,Grant Expenditure,05-Aug-22,5105827856,Harpurhey Neighbourhood Project,500.00
Manchester City Council,Chief Executives,Oth Professional Fee,05-Aug-22,5105827870,Manchester Alliance For,600.00
Manchester City Council,Corporate Services,Travel Season TLS,05-Aug-22,5105827649,Stagecoach Manchester,600.00
Manchester City Council,Corporate Services,Travel Season TLS,05-Aug-22,5105827650,Stagecoach Manchester,600.00
Manchester City Council,Corporate Services,Travel Season TLS,05-Aug-22,5105827671,Stagecoach Manchester,600.00
Manchester City Council,Corporate Services,Travel Season TLS,05-Aug-22,5105827748,Stagecoach Manchester,600.00
Manchester City Council,Manchester Leisure,Ext Rep & Main Build,05-Aug-22,5105827897,Rackline Limited,640.00
Manchester City Council,Highways Services,Legal Fees,05-Aug-22,1907839304,COSGROVE COSTINGS LIMITED,650.00
Manchester City Council,Chief Executives,Printing,05-Aug-22,5105827846,Browns CTP Ltd,679.00
Manchester City Council,Manchester Leisure,Legal Fees,05-Aug-22,1907834214,Trinity Chambers,750.00
Manchester City Council,Chief Executives,Oth Professional Fee,05-Aug-22,5105827802,Russell & Russell Solicitors LLP,843.75
Manchester City Council,Regeneration Finance,Furniture,05-Aug-22,5105827889,Bennett Workplace Solutions Ltd,954.00
Manchester City Council,Manchester Leisure,Grant Expenditure,05-Aug-22,5105827835,Chorlton on Medlock Allotment Soc,"1,000.00"
Manchester City Council,Hospitality + Trading Services,Goods for Resale,05-Aug-22,5105827877,Obitus,"1,006.00"
Manchester City Council,Childrens & Education Services,Voluntary Orgs TPP,05-Aug-22,5105827841,Remedi,"1,050.00"
Manchester City Council,Corporate Services,Legal Fees,05-Aug-22,1907834904,Trinity Chambers,"1,200.00"
Manchester City Council,Chief Executives,VPF&E - Acquisition,05-Aug-22,5105827654,The Networking People (TNP) Ltd,"1,250.11"
Manchester City Council,Regeneration Finance,Oth Professional Fee,05-Aug-22,5105827728,Flowprotect Ltd,"1,495.00"
Manchester City Council,Manchester Leisure,Legal Fees,05-Aug-22,1907837871,Trinity Chambers,"1,620.00"
Manchester City Council,Adult Social Care,Rents,05-Aug-22,1907840554,LE MONDE PROPERTY DEVELOPMENTS,"1,631.00"
Manchester City Council,Adult Social Care,Rents,05-Aug-22,1907840555,ATELIER BUILDING LTD,"1,788.46"
Manchester City Council,Hospitality + Trading Services,Goods for Resale,05-Aug-22,5105827879,Obitus,"1,843.00"
Manchester City Council,Adult Social Care,Rents,05-Aug-22,1907839325,DIBA PROPERTY LIMITED,"1,938.46"
Manchester City Council,Adult Social Care,Personal Need Client,05-Aug-22,5105827777,Telecare Services Association,"2,100.00"
Manchester City Council,Corporate Services,Legal Fees,05-Aug-22,1907839329,CEL SOLICITORS,"2,250.44"
Manchester City Council,Manchester Leisure,Sub Contractors,05-Aug-22,5105827931,Synectics Security Limited,"2,552.02"
Manchester City Council,Manchester Leisure,Sub Contractors,05-Aug-22,5105827927,Synectics Security Limited,"2,583.56"
Manchester City Council,Chief Executives,Data Links,05-Aug-22,5105827778,The Loop t/a Gamma Telecom Ltd,"2,833.34"
Manchester City Council,Manchester Leisure,Sub Contractors,05-Aug-22,5105827932,Synectics Security Limited,"2,857.91"
Manchester City Council,Highways Services,Legal Fees,05-Aug-22,1907838951,Department For Work & Pensions,"3,592.00"
Manchester City Council,Manchester Leisure,Cont Cleaning - Ext,05-Aug-22,5105827893,Biffa Municipal Limited,"4,062.03"
Manchester City Council,Housing General Fund,OL&B - Construction,05-Aug-22,5105827845,Shared Habitat Limited,"4,184.00"
Manchester City Council,Housing General Fund,OL&B - Construction,05-Aug-22,5105827791,Shared Habitat Limited,"4,190.00"
Manchester City Council,Adult Social Care,Rents,05-Aug-22,5105827842,Mears Limited,"5,493.93"
Manchester City Council,Adult Social Care,Equipment,05-Aug-22,5105827789,Aidapt Bathrooms Ltd,"6,540.00"
Manchester City Council,Manchester Leisure,Grant Expenditure,05-Aug-22,5105827873,Community on Solid Ground,"6,600.00"
Manchester City Council,Adult Social Care,Personal Need Client,05-Aug-22,5105827898,Tynetec,"8,846.30"
Manchester City Council,Housing General Fund,OL&B - Construction,05-Aug-22,5105827791,Shared Habitat Limited,"9,475.00"
Manchester City Council,Housing General Fund,OL&B - Construction,05-Aug-22,5105827845,Shared Habitat Limited,"9,482.00"
Manchester City Council,Childrens & Education Services,Oth Professional Fee,05-Aug-22,5105827797,Russell & Russell Solicitors LLP,"9,801.65"
Manchester City Council,Adult Social Care,Rents,05-Aug-22,5105827865,K L Properties,"12,521.35"
Manchester City Council,Hospitality + Trading Services,Vehicle Fuel Costs,05-Aug-22,5105827848,Standard Fuels Oils,"12,711.09"
Manchester City Council,Chief Executives,Coroners post mortem,05-Aug-22,5105827798,Central Mcr Uni Hospital t/a,"18,287.75"
Manchester City Council,Manchester Leisure,Cont Cleaning - Ext,05-Aug-22,5105827892,Biffa Municipal Limited,"18,511.72"
Manchester City Council,Hospitality + Trading Services,Refuse Collection ex,05-Aug-22,5105827747,Biffa Municipal Limited,"18,721.55"
Manchester City Council,Hospitality + Trading Services,Refuse Collection ex,05-Aug-22,5105827746,Biffa Municipal Limited,"19,922.00"
Manchester City Council,Chief Executives,Mortuary fee storage,05-Aug-22,5105827798,Central Mcr Uni Hospital t/a,"26,040.67"
Manchester City Council,Chief Executives,External Agency,05-Aug-22,5105827912,Pertemps Professional Recruitment L,"26,606.96"
Manchester City Council,Chief Executives,Rents,05-Aug-22,5105827867,UKfast.net Ltd,"31,000.00"
Manchester City Council,Chief Executives,VPF&E - Acquisition,05-Aug-22,5105827704,Insight Direct (Uk) Ltd,"31,204.00"
Manchester City Council,Manchester Leisure,Cont Cleaning - Ext,05-Aug-22,5105827894,Biffa Municipal Limited,"37,023.44"
Manchester City Council,Childrens & Education Services,Voluntary Orgs TPP,05-Aug-22,5105827780,Remedi,"43,750.00"
Manchester City Council,Corporate Services,HH Support Fund,05-Aug-22,1907839324,POST OFFICE LTD,"46,400.00"
Manchester City Council,Adult Social Care,Rents,05-Aug-22,5105827800,MJ Rental Ltd,"73,935.49"
Manchester City Council,Environment and Operations,Long Term Debtors,05-Aug-22,1907834362,Biffa Municipal Limited,"83,750.00"
Manchester City Council,Housing General Fund,Oth Rv ex fnd cp sta,05-Aug-22,5105827872,Manchester Care & Repair Ltd,"90,105.00"
Manchester City Council,Chief Executives,OL&B - Fees,05-Aug-22,5105827880,Ryder Architecture Ltd,"91,994.00"
Manchester City Council,Chief Executives,OL&B - Fees,05-Aug-22,5105827881,Ryder Architecture Ltd,"95,000.00"
Manchester City Council,Adult Social Care,Oth Professional Fee,05-Aug-22,5105827871,The Depaul Trust,"100,000.00"
Manchester City Council,Chief Executives,OL&B - Fees,05-Aug-22,5105827883,Ryder Architecture Ltd,"101,555.69"
Manchester City Council,Environment and Operations,Long Term Debtors,05-Aug-22,1907834361,Biffa Municipal Limited,"114,746.00"
Manchester City Council,GMIST (Greater Mcr Integrated),Oth Professional Fee,05-Aug-22,5105827850,Wigan Metropolitan Borough Council,"118,000.00"
Manchester City Council,Adult Social Care,Grant Expenditure,05-Aug-22,5105827730,SSG Sustainable Living,"127,904.00"
Manchester City Council,Adult Social Care,Voluntary Orgs TPP,05-Aug-22,5105827874,Citizens Advice Manchester,"160,000.00"
Manchester City Council,Chief Executives,OL&B - Fees,05-Aug-22,5105827882,Ryder Architecture Ltd,"219,336.00"
Manchester City Council,Hospitality + Trading Services,Refuse Collection ex,05-Aug-22,5105827745,Biffa Municipal Limited,"226,073.98"
Manchester City Council,Chief Executives,Conveyancing Fees,05-Aug-22,1907839328,Browne Jacobson LLP,"250,000.00"
Manchester City Council,Housing Revenue Account,PFI & PP Partnership,05-Aug-22,5105827801,Grove Village Ltd,"481,382.20"
Manchester City Council,Environment and Operations,Long Term Debtors,05-Aug-22,1907834360,Biffa Municipal Limited,"627,340.00"
Manchester City Council,Manchester Leisure,Special Event,08-Aug-22,5105827977,Redacted Personal Information,"1,500.00"
Manchester City Council,Manchester Leisure,Special Event,08-Aug-22,5105827978,Redacted Personal Information,"1,500.00"
Manchester City Council,Manchester Leisure,Special Event,08-Aug-22,5105827980,Redacted Personal Information,"1,700.00"
Manchester City Council,Manchester Leisure,Grants and Subs,08-Aug-22,5105828078,Manchester Active,"-1,830,098.48"
Manchester City Council,Housing Revenue Account,PFI & PP Partnership,08-Aug-22,5105828025,Grove Village Ltd,"-32,966.29"
Manchester City Council,Adult Social Care,Bed & Breakfast Acc,08-Aug-22,5105828043,Fairways Lodge,"-11,140.00"
Manchester City Council,Corporate Services,Oth Professional Fee,08-Aug-22,5105828005,Gleeds Management Services Limited,"-10,962.62"
Manchester City Council,Manchester Leisure,Local Environ Servic,08-Aug-22,5105828135,CPD Property Services,"-1,395.00"
Manchester City Council,Chief Executives,Printing,08-Aug-22,5105828086,Browns CTP Ltd,-816.00
Manchester City Council,Manchester Leisure,Oth Professional Fee,08-Aug-22,5105828101,Common Practices Ltd,-700.00
Manchester City Council,Chief Executives,Counsel Costs,08-Aug-22,1907838694,18 St John Street Chambers,500.00
Manchester City Council,Highways Services,Direct Materials,08-Aug-22,5105828106,Kloeckner Metals UK,500.00
Manchester City Council,Childrens & Education Services,Oth Professional Fee,08-Aug-22,5105828069,Prospero Teaching,500.00
Manchester City Council,Hospitality + Trading Services,Window Cleaning,08-Aug-22,5105827942,CG Cleaning Ltd,534.03
Manchester City Council,Corporate Services,WPS Awards,08-Aug-22,5105828057,Furniture Resource Centre Ltd,542.06
Manchester City Council,Manchester Leisure,Direct Materials,08-Aug-22,5105828059,A & I Supplies,545.92
Manchester City Council,Chief Executives,Counsel Costs,08-Aug-22,1907837872,Kenworthy's Chambers,550.00
Manchester City Council,Chief Executives,Counsel Costs,08-Aug-22,1907838697,18 St John Street Chambers,560.00
Manchester City Council,Childrens & Education Services,Other Establishments,08-Aug-22,5105827715,Teaching Personnel Ltd,569.55
Manchester City Council,Corporate Services,WPS Awards,08-Aug-22,5105828031,Furniture Resource Centre Ltd,581.23
Manchester City Council,Childrens & Education Services,Licences Expenditure,08-Aug-22,5105827986,Insight Direct (Uk) Ltd,591.90
Manchester City Council,Corporate Services,Travel Season TLS,08-Aug-22,5105827936,Stagecoach Manchester,600.00
Manchester City Council,Corporate Services,Travel Season TLS,08-Aug-22,5105827939,Stagecoach Manchester,600.00
Manchester City Council,Corporate Services,Travel Season TLS,08-Aug-22,5105827940,Stagecoach Manchester,600.00
Manchester City Council,Corporate Services,Travel Season TLS,08-Aug-22,5105827941,Stagecoach Manchester,600.00
Manchester City Council,Corporate Services,WPS Awards,08-Aug-22,5105828054,Furniture Resource Centre Ltd,606.39
Manchester City Council,Chief Executives,Computer Purchases,08-Aug-22,5105828108,Insight Direct (Uk) Ltd,614.70
Manchester City Council,Childrens & Education Services,Oth Professional Fee,08-Aug-22,5105828044,Prospero Teaching,630.00
Manchester City Council,Manchester Leisure,Hire of Machinery,08-Aug-22,5105828075,Wythenshawe Community Farm,650.00
Manchester City Council,Manchester Leisure,Oth Professional Fee,08-Aug-22,5105828102,Common Practices Ltd,700.00
Manchester City Council,Chief Executives,External Agency,08-Aug-22,5105828122,Isherwood Legal Limited,700.00
Manchester City Council,Childrens & Education Services,Oth Professional Fee,08-Aug-22,5105827722,Hays Specialist Recruitment Limited,704.65
Manchester City Council,Corporate Services,WPS Awards,08-Aug-22,5105828021,Furniture Resource Centre Ltd,707.43
Manchester City Council,Regeneration Finance,Oth Professional Fee,08-Aug-22,5105827952,Royal Town Planning Institute,748.00
Manchester City Council,Chief Executives,Computer Purchases,08-Aug-22,5105828011,Insight Direct (Uk) Ltd,780.90
Manchester City Council,Childrens & Education Services,Oth Professional Fee,08-Aug-22,5105828045,Prospero Teaching,787.50
Manchester City Council,Childrens & Education Services,Oth Professional Fee,08-Aug-22,5105828046,Prospero Teaching,787.50
Manchester City Council,Regeneration Finance,Grounds Maintenance,08-Aug-22,5105828117,Countrywide Grounds Maintenance Ltd,795.00
Manchester City Council,Chief Executives,Printing,08-Aug-22,5105828087,Browns CTP Ltd,816.00
Manchester City Council,Childrens & Education Services,Cont Cleaning - Ext,08-Aug-22,1907834287,CDP Property Services Ltd,875.00
Manchester City Council,Manchester Leisure,Special Event,08-Aug-22,5105827983,Cathy Crabb,900.00
Manchester City Council,Manchester Leisure,Grant Expenditure,08-Aug-22,5105827774,Hideaway Youth Project,900.00
Manchester City Council,Regeneration Finance,Grounds Maintenance,08-Aug-22,5105828119,Countrywide Grounds Maintenance Ltd,995.00
Manchester City Council,Manchester Leisure,Grant Expenditure,08-Aug-22,5105828007,Garden of Contemplation,"1,000.00"
Manchester City Council,Corporate Services,Legal Fees,08-Aug-22,1907840680,Peasegoods,"1,000.00"
Manchester City Council,Chief Executives,Computer Purchases,08-Aug-22,5105827963,Insight Direct (Uk) Ltd,"1,010.04"
Manchester City Council,Childrens & Education Services,Taxi Expenses - Priv,08-Aug-22,1907836509,Cresta Car Hire,"1,010.52"
Manchester City Council,Corporate Services,WPS Awards,08-Aug-22,5105828051,Furniture Resource Centre Ltd,"1,027.75"
Manchester City Council,Hospitality + Trading Services,Hire of Machinery,08-Aug-22,5105827962,R & M Developments Ltd,"1,073.50"
Manchester City Council,Corporate Services,OL&B - Fees,08-Aug-22,5105827910,Ove Arup & Partners Ltd,"1,123.88"
Manchester City Council,Adult Social Care,Equipment,08-Aug-22,5105828103,Herida Healthcare Plc,"1,194.74"
Manchester City Council,Environment and Operations,Infra - Construction,08-Aug-22,5105828003,IDS Land Survey,"1,280.00"
Manchester City Council,Childrens & Education Services,Taxi Expenses - Priv,08-Aug-22,1907826836,Cresta Car Hire,"1,352.12"
Manchester City Council,Regeneration Finance,Rail Expenses,08-Aug-22,5105827925,Purcell Architecture Limited,"1,357.91"
Manchester City Council,Childrens & Education Services,Other Local Auth,08-Aug-22,5105827947,Cygnet (NW) Ltd,"1,368.00"
Manchester City Council,Manchester Leisure,Local Environ Servic,08-Aug-22,5105828137,CPD Property Services,"1,395.00"
Manchester City Council,Manchester Leisure,Direct Materials,08-Aug-22,5105827731,Flowprotect Ltd,"1,495.00"
Manchester City Council,Regeneration Finance,Oth Professional Fee,08-Aug-22,5105828094,Colliers International,"1,500.00"
Manchester City Council,Manchester Leisure,Equipment,08-Aug-22,5105827664,Groundwork Landscapes Ltd,"1,550.00"
Manchester City Council,Adult Social Care,Oth Professional Fee,08-Aug-22,5105827955,11KBW,"1,575.00"
Manchester City Council,Childrens & Education Services,Taxi Expenses - Priv,08-Aug-22,1907833992,Cresta Car Hire,"1,688.50"
Manchester City Council,Corporate Services,OL&B - Fees,08-Aug-22,5105827924,Purcell Architecture Limited,"1,767.00"
Manchester City Council,Manchester Leisure,Hire of Machinery,08-Aug-22,5105828073,Wythenshawe Community Farm,"1,800.00"
Manchester City Council,Manchester Leisure,Direct Materials,08-Aug-22,5105828074,Wythenshawe Community Farm,"1,900.00"
Manchester City Council,Manchester Leisure,H&S at Work Act,08-Aug-22,5105827667,Groundwork Landscapes Ltd,"2,000.00"
Manchester City Council,Manchester Leisure,Licences Expenditure,08-Aug-22,5105828070,Metastreet Ltd,"2,000.00"
Manchester City Council,Adult Social Care,Rents,08-Aug-22,5105828130,Anchor Trust,"2,021.01"
Manchester City Council,Adult Social Care,Rents,08-Aug-22,5105828132,Anchor Trust,"2,068.53"
Manchester City Council,Manchester Leisure,Legal Fees,08-Aug-22,5105828116,Kings Chambers,"2,500.00"
Manchester City Council,Adult Social Care,Other Establishments,08-Aug-22,5105828082,Creative Support Ltd,"2,889.60"
Manchester City Council,Adult Social Care,Other Establishments,08-Aug-22,5105828083,Creative Support Ltd,"2,889.60"
Manchester City Council,Adult Social Care,Other Establishments,08-Aug-22,5105828084,Creative Support Ltd,"2,889.60"
Manchester City Council,Corporate Services,OL&B - Fees,08-Aug-22,5105827923,Planit,"3,360.00"
Manchester City Council,Manchester Leisure,Oth Professional Fee,08-Aug-22,5105828107,HOME,"3,857.63"
Manchester City Council,Childrens & Education Services,Subscriptions,08-Aug-22,5105827946,CoramBAAF,"4,729.95"
Manchester City Council,Manchester Leisure,Hire of Machinery,08-Aug-22,5105828072,Wythenshawe Community Farm,"5,000.00"
Manchester City Council,Chief Executives,Postage,08-Aug-22,5105826409,Quadient Ltd (Credifon),"5,150.20"
Manchester City Council,Childrens & Education Services,Other Establishments,08-Aug-22,5105828049,Rossendale School Priory,"5,607.01"
Manchester City Council,Childrens & Education Services,Other Establishments,08-Aug-22,5105828050,Rossendale School Priory,"5,767.37"
Manchester City Council,Housing General Fund,OL&B - Construction,08-Aug-22,5105827640,Idverde Limited,"5,774.69"
Manchester City Council,Housing General Fund,SP-Fees,08-Aug-22,1907841363,HLF BERRY,"6,009.00"
Manchester City Council,Adult Social Care,Equipment,08-Aug-22,5105828103,Herida Healthcare Plc,"6,277.60"
Manchester City Council,Childrens & Education Services,Other Establishments,08-Aug-22,5105828064,Gorse Hill Studios,"6,300.00"
Manchester City Council,Childrens & Education Services,Other Establishments,08-Aug-22,5105828061,Rossendale School Priory,"6,367.40"
Manchester City Council,Childrens & Education Services,Other Establishments,08-Aug-22,5105828062,Cedar House School,"6,767.25"
Manchester City Council,Corporate Services,OL&B - Fees,08-Aug-22,5105827920,Ove Arup & Partners Ltd,"8,000.00"
Manchester City Council,Regeneration Finance,Voluntary Orgs TPP,08-Aug-22,5105827984,Sonder Radio Ltd,"8,104.00"
Manchester City Council,Adult Social Care,Pension Contri LGPS,08-Aug-22,5105827968,NHS Pension Scheme,"8,139.60"
Manchester City Council,Childrens & Education Services,Coach Hire,08-Aug-22,5105828139,Westfield Minibuses,"8,208.71"
Manchester City Council,Childrens & Education Services,Other Establishments,08-Aug-22,5105828065,The Together Trust,"8,869.04"
Manchester City Council,Adult Social Care,Voluntary Orgs TPP,08-Aug-22,5105828105,Saheli,"8,875.91"
Manchester City Council,Childrens & Education Services,Coach Hire,08-Aug-22,5105827957,Communitytransportservices.co.uk,"9,161.64"
Manchester City Council,Corporate Services,Oth Professional Fee,08-Aug-22,5105828006,Gleeds Management Services Limited,"9,231.68"
Manchester City Council,Childrens & Education Services,Other Local Auth,08-Aug-22,5105827950,Springwood Primary School,"9,306.00"
Manchester City Council,Chief Executives,OL&B - Fees,08-Aug-22,5105828142,Turner & Townsend Project,"9,690.00"
Manchester City Council,Childrens & Education Services,Other Establishments,08-Aug-22,5105828063,Cedar House School,"10,008.67"
Manchester City Council,Chief Executives,OL&B - Fees,08-Aug-22,5105828143,Turner & Townsend Project,"10,260.00"
Manchester City Council,Childrens & Education Services,External Agency,08-Aug-22,5105828002,Staff Resources Ltd,"10,391.92"
Manchester City Council,Highways Services,Direct Materials,08-Aug-22,5105828104,Kloeckner Metals UK,"10,800.00"
Manchester City Council,Adult Social Care,Bed & Breakfast Acc,08-Aug-22,5105828000,Fairways Lodge,"11,140.00"
Manchester City Council,Adult Social Care,Bed & Breakfast Acc,08-Aug-22,5105828041,Fairways Lodge,"11,140.00"
Manchester City Council,Adult Social Care,Bed & Breakfast Acc,08-Aug-22,5105827999,Fairways Lodge,"11,310.00"
Manchester City Council,Chief Executives,OL&B - Fees,08-Aug-22,5105828141,Turner & Townsend Project,"11,400.00"
Manchester City Council,Adult Social Care,Bed & Breakfast Acc,08-Aug-22,5105828042,Fairways Lodge,"11,580.00"
Manchester City Council,Corporate Services,Compensation Expense,08-Aug-22,1907839305,WHN Solicitors Ltd,"13,000.00"
Manchester City Council,Regeneration Finance,Voluntary Orgs TPP,08-Aug-22,5105828131,Proper Job Theatre company,"14,104.00"
Manchester City Council,Manchester Leisure,Oth Professional Fee,08-Aug-22,5105828085,Kloodle Ltd,"15,000.00"
Manchester City Council,Corporate Services,OL&B - Fees,08-Aug-22,5105827913,Ove Arup & Partners Ltd,"15,129.60"
Manchester City Council,Housing General Fund,Capital Receipts,08-Aug-22,1907838720,Redrow Homes Lancashire,"19,160.39"
Manchester City Council,Corporate Services,OL&B - Adaptations,08-Aug-22,5105827192,Pell Frischmann Consultants Ltd,"30,000.00"
Manchester City Council,Chief Executives,VPF&E - Acquisition,08-Aug-22,5105827794,Insight Direct (Uk) Ltd,"31,204.00"
Manchester City Council,Childrens & Education Services,Supported Accom,08-Aug-22,5105828144,Amore Social Care Ltd,"32,325.60"
Manchester City Council,Housing Revenue Account,PFI & PP Partnership,08-Aug-22,5105827831,Grove Village Ltd,"32,966.29"
Manchester City Council,Childrens & Education Services,Other Establishments,08-Aug-22,5105828048,Music Stuff,"35,416.99"
Manchester City Council,Manchester Leisure,Cont Cleaning - Ext,08-Aug-22,5105828076,Biffa Municipal Limited,"35,490.60"
Manchester City Council,Regeneration Finance,Subvention Payments,08-Aug-22,5105827229,Manchester Creative Digital Assets,"37,802.00"
Manchester City Council,Adult Social Care,Voluntary Orgs TPP,08-Aug-22,5105828080,Lotus Sanctuary CIC,"39,600.00"
Manchester City Council,Manchester Leisure,Responsive Work,08-Aug-22,5105828091,EQUANS Regeneration Limited,"42,557.48"
Manchester City Council,Childrens & Education Services,Coach Hire,08-Aug-22,5105827703,Communitytransportservices.co.uk,"48,429.00"
Manchester City Council,Regeneration Finance,Subvention Payments,08-Aug-22,5105827226,Manchester Creative Digital Assets,"49,585.00"
Manchester City Council,Childrens & Education Services,Other Establishments,08-Aug-22,5105828066,The Together Trust,"54,600.76"
Manchester City Council,Adult Social Care,Rents,08-Aug-22,5105828081,District Homes Cic,"63,864.78"
Manchester City Council,Corporate Services,OL&B - Fees,08-Aug-22,5105827925,Purcell Architecture Limited,"65,000.00"
Manchester City Council,Childrens & Education Services,Gas,08-Aug-22,5105828010,Manchester School Services Limited,"81,813.37"
Manchester City Council,Adult Social Care,Rents,08-Aug-22,5105828134,Cromwood Ltd,"88,234.26"
Manchester City Council,Chief Executives,Grant Expenditure,08-Aug-22,5105828095,National Football Museum,"116,666.66"
Manchester City Council,Housing Revenue Account,CD - Adaptations,08-Aug-22,5105828133,Emanuel Whittaker Ltd,"137,557.71"
Manchester City Council,Housing General Fund,SP-Acquisition,08-Aug-22,1907841363,HLF BERRY,"145,000.00"
Manchester City Council,Regeneration Finance,Electricity,08-Aug-22,5105828100,M\cr Heat Network Supply Co Ltd,"153,212.11"
Manchester City Council,Regeneration Finance,Subvention Payments,08-Aug-22,5105827196,Manchester Creative Digital Assets,"186,097.00"
Manchester City Council,Regeneration Finance,Subvention Payments,08-Aug-22,5105827199,Manchester Creative Digital Assets,"209,151.00"
Manchester City Council,Regeneration Finance,Subvention Payments,08-Aug-22,5105827224,Manchester Creative Digital Assets,"212,054.00"
Manchester City Council,Childrens & Education Services,PFI & PP Partnership,08-Aug-22,5105828009,Manchester School Services Limited,"426,185.25"
Manchester City Council,Highways Services,PFI & PP Partnership,08-Aug-22,5105827796,Amey Highways Lighting (Manchester),"616,561.90"
Manchester City Council,Childrens & Education Services,Carer Support Pays,08-Aug-22,5105828098,Stockport Metropolitan Borough,"1,303,862.25"
Manchester City Council,Manchester Leisure,Grant Expenditure,08-Aug-22,5105828079,Manchester Active,"1,830,098.48"
Manchester City Council,Adult Social Care,Bed & Breakfast Acc,08-Aug-22,5105827959,Redacted Personal Information,"-12,236.00"
Manchester City Council,Chief Executives,Counsel Costs,08-Aug-22,1907836491,Redacted Personal Information,550.00
Manchester City Council,Chief Executives,Sub Contractors,08-Aug-22,5105828140,Redacted Personal Information,590.95
Manchester City Council,Chief Executives,Counsel Costs,08-Aug-22,1907838686,Redacted Personal Information,600.00
Manchester City Council,Chief Executives,Counsel Costs,08-Aug-22,1907837868,Redacted Personal Information,600.00
Manchester City Council,Chief Executives,Signers/Interpreters,08-Aug-22,5105828136,Redacted Personal Information,632.00
Manchester City Council,Chief Executives,Counsel Costs,08-Aug-22,1907836492,Redacted Personal Information,725.00
Manchester City Council,Chief Executives,Counsel Costs,08-Aug-22,1907838693,Redacted Personal Information,812.50
Manchester City Council,Chief Executives,Counsel Costs,08-Aug-22,1907838691,Redacted Personal Information,"1,062.50"
Manchester City Council,Adult Social Care,Bed & Breakfast Acc,08-Aug-22,5105827993,Redacted Personal Information,"12,138.00"
Manchester City Council,Adult Social Care,Bed & Breakfast Acc,08-Aug-22,5105828008,Redacted Personal Information,"12,190.00"
Manchester City Council,Adult Social Care,Bed & Breakfast Acc,08-Aug-22,5105827958,Redacted Personal Information,"12,236.00"
Manchester City Council,Adult Social Care,Bed & Breakfast Acc,08-Aug-22,5105827991,Redacted Personal Information,"12,236.00"
Manchester City Council,Adult Social Care,Bed & Breakfast Acc,08-Aug-22,5105827992,Redacted Personal Information,"12,236.00"
Manchester City Council,Adult Social Care,Bed & Breakfast Acc,08-Aug-22,5105827960,Redacted Personal Information,"12,264.00"
Manchester City Council,Adult Social Care,Bed & Breakfast Acc,08-Aug-22,5105827997,Redacted Personal Information,"24,460.00"
Manchester City Council,Adult Social Care,Bed & Breakfast Acc,08-Aug-22,5105827996,Redacted Personal Information,"24,608.00"
Manchester City Council,Adult Social Care,Bed & Breakfast Acc,08-Aug-22,5105827998,Redacted Personal Information,"24,734.00"
Manchester City Council,Adult Social Care,Bed & Breakfast Acc,08-Aug-22,5105827994,Redacted Personal Information,"25,064.00"
Manchester City Council,Adult Social Care,Bed & Breakfast Acc,08-Aug-22,5105827995,Redacted Personal Information,"25,152.00"
Manchester City Council,Corporate Services,Bailiff Fees Income,09-Aug-22,1907831644,Marston Group Limited,"-15,000.75"
Manchester City Council,Regeneration Finance,Legal Fees,09-Aug-22,5105828188,Jacobs UK Ltd,"-8,500.00"
Manchester City Council,Regeneration Finance,Oth Professional Fee,09-Aug-22,5105828188,Jacobs UK Ltd,"-3,245.29"
Manchester City Council,Corporate Services,Security Costs,09-Aug-22,5105828148,Taranto Systems Ltd,"-2,211.20"
Manchester City Council,Regeneration Finance,Consummables,09-Aug-22,5105828301,Wilkinson Bros,-960.00
Manchester City Council,Housing Revenue Account,SP-Fees,09-Aug-22,5105828188,Jacobs UK Ltd,-874.50
Manchester City Council,Regeneration Finance,Oth Professional Fee,09-Aug-22,5105828188,Jacobs UK Ltd,-846.75
Manchester City Council,Regeneration Finance,Oth Professional Fee,09-Aug-22,5105828188,Jacobs UK Ltd,-821.50
Manchester City Council,Adult Social Care,OL&B - Fees,09-Aug-22,5105828259,WYG Engineering Ltd,-744.00
Manchester City Council,Manchester Leisure,Oth Professional Fee,09-Aug-22,5105828188,Jacobs UK Ltd,-600.00
Manchester City Council,Manchester Leisure,Grant Expenditure,09-Aug-22,5105828266,Barlow Moor Community Association,500.00
Manchester City Council,Childrens & Education Services,Grant Expenditure,09-Aug-22,5105828248,Moss Side Millennium Powerhouse Ltd,500.00
Manchester City Council,Highways Services,Sub Contractors,09-Aug-22,5105828169,Rosgal Ltd,500.00
Manchester City Council,Highways Services,Sub Contractors,09-Aug-22,5105828171,Rosgal Ltd,500.00
Manchester City Council,Manchester Leisure,Direct Materials,09-Aug-22,5105828284,Willfab Ltd,500.00
Manchester City Council,Childrens & Education Services,Oth Professional Fee,09-Aug-22,5105828302,Cellmark,593.00
Manchester City Council,Regeneration Finance,Grounds Maintenance,09-Aug-22,5105828191,Arboricultural Services Treework,600.00
Manchester City Council,Manchester Leisure,Oth Professional Fee,09-Aug-22,5105827598,Jacobs UK Ltd,600.00
Manchester City Council,Manchester Leisure,Oth Professional Fee,09-Aug-22,5105828189,Jacobs UK Ltd,600.00
Manchester City Council,Childrens & Education Services,Grant Expenditure,09-Aug-22,5105828249,Keem Youth Shout Out (KYSO),600.00
Manchester City Council,Hospitality + Trading Services,Window Cleaning,09-Aug-22,5105828267,CG Cleaning Ltd,672.88
Manchester City Council,Hospitality + Trading Services,Window Cleaning,09-Aug-22,5105828268,CG Cleaning Ltd,672.88
Manchester City Council,Hospitality + Trading Services,Window Cleaning,09-Aug-22,5105828269,CG Cleaning Ltd,672.88
Manchester City Council,Hospitality + Trading Services,Window Cleaning,09-Aug-22,5105828270,CG Cleaning Ltd,672.88
Manchester City Council,Corporate Services,Legal Fees,09-Aug-22,1907840561,COSGROVE COSTINGS LIMITED,780.00
Manchester City Council,Regeneration Finance,Oth Professional Fee,09-Aug-22,5105827598,Jacobs UK Ltd,821.50
Manchester City Council,Regeneration Finance,Oth Professional Fee,09-Aug-22,5105828189,Jacobs UK Ltd,821.50
Manchester City Council,Regeneration Finance,Oth Professional Fee,09-Aug-22,5105827598,Jacobs UK Ltd,846.75
Manchester City Council,Regeneration Finance,Oth Professional Fee,09-Aug-22,5105828189,Jacobs UK Ltd,846.75
Manchester City Council,Highways Services,Sub Contractors,09-Aug-22,5105828246,Rhodes and Sons Construction Ltd,868.71
Manchester City Council,Housing Revenue Account,SP-Fees,09-Aug-22,5105827598,Jacobs UK Ltd,874.50
Manchester City Council,Housing Revenue Account,SP-Fees,09-Aug-22,5105828189,Jacobs UK Ltd,874.50
Manchester City Council,Childrens & Education Services,Childminding Fee Pay,09-Aug-22,5105828300,Tiddlywinks Day Nursery Ltd,932.00
Manchester City Council,Corporate Services,Oth Professional Fee,09-Aug-22,5105828299,Sir Frederick Snow & Partners Ltd,950.00
Manchester City Council,Regeneration Finance,Consummables,09-Aug-22,5105828290,Wilkinson Bros,960.00
Manchester City Council,Regeneration Finance,Consummables,09-Aug-22,5105828294,Wilkinson Bros,960.00
Manchester City Council,Regeneration Finance,Consummables,09-Aug-22,5105828295,Wilkinson Bros,960.00
Manchester City Council,Corporate Services,OL&B - Fees,09-Aug-22,5105828155,Faithful & Gould Ltd,"1,034.52"
Manchester City Council,Hospitality + Trading Services,Hire of Machinery,09-Aug-22,5105828241,R & M Developments Ltd,"1,073.50"
Manchester City Council,Manchester Leisure,OL&B - Construction,09-Aug-22,5105828289,Willfab Ltd,"1,080.00"
Manchester City Council,Corporate Services,Postage,09-Aug-22,5105828271,Royal Mail Group Plc,"1,131.00"
Manchester City Council,Insurance Fund,Fire & Prls Ins Prem,09-Aug-22,5105828175,Verlingue Limited,"1,216.13"
Manchester City Council,Childrens & Education Services,Coach Hire,09-Aug-22,5105827515,Youbus Ltd,"1,331.84"
Manchester City Council,Regeneration Finance,Storage Costs,09-Aug-22,5105828230,H.M. Land Registry,"1,520.00"
Manchester City Council,Corporate Services,OL&B - Fees,09-Aug-22,5105828160,Ramboll UK Limited,"1,532.50"
Manchester City Council,Hospitality + Trading Services,Cash Collection Chgs,09-Aug-22,1907834282,G4S Cash Solutions (Uk) Ltd,"1,564.29"
Manchester City Council,Manchester Leisure,Direct Materials,09-Aug-22,5105828286,Willfab Ltd,"1,850.00"
Manchester City Council,Manchester Leisure,Goods for Resale,09-Aug-22,5105828228,Cornflower Ltd,"1,863.72"
Manchester City Council,Corporate Services,OL&B - Fees,09-Aug-22,5105828159,Ramboll UK Limited,"2,000.00"
Manchester City Council,Adult Social Care,Rents,09-Aug-22,1907841680,NORTHWOODS OLDHAM,"2,045.00"
Manchester City Council,Highways Services,Sub Contractors,09-Aug-22,5105828149,Rosgal Ltd,"2,122.50"
Manchester City Council,Chief Executives,OL&B - Fees,09-Aug-22,5105828147,Buro Happold Limited,"2,250.00"
Manchester City Council,Regeneration Finance,Extl Security Reqmts,09-Aug-22,5105828298,MITIE SECURITY LIMITED,"2,342.57"
Manchester City Council,Corporate Services,OL&B - Fees,09-Aug-22,5105828181,Ramboll UK Limited,"2,920.00"
Manchester City Council,Corporate Services,OL&B - Fees,09-Aug-22,5105828157,Ramboll UK Limited,"2,972.00"
Manchester City Council,Corporate Services,Oth Professional Fee,09-Aug-22,5105828254,Kepczyk Pearce Sanderson Limited,"2,975.00"
Manchester City Council,Childrens & Education Services,Oth Professional Fee,09-Aug-22,1907839238,High Court Enforcement Group,"3,043.23"
Manchester City Council,Adult Social Care,Personal Need Client,09-Aug-22,5105828198,Schuchmann LLP,"3,082.00"
Manchester City Council,Corporate Services,OL&B - Fees,09-Aug-22,5105828182,Ramboll UK Limited,"3,243.69"
Manchester City Council,Regeneration Finance,Oth Professional Fee,09-Aug-22,5105827598,Jacobs UK Ltd,"3,245.29"
Manchester City Council,Regeneration Finance,Oth Professional Fee,09-Aug-22,5105828189,Jacobs UK Ltd,"3,245.29"
Manchester City Council,Adult Social Care,Voluntary Orgs TPP,09-Aug-22,5105828221,Manchester Womens Aid,"3,333.33"
Manchester City Council,Insurance Fund,Fire & Prls Ins Prem,09-Aug-22,5105828174,Verlingue Limited,"4,879.00"
Manchester City Council,Corporate Services,OL&B - Fees,09-Aug-22,5105828183,Ramboll UK Limited,"5,800.00"
Manchester City Council,Corporate Services,Postage,09-Aug-22,5105827705,Royal Mail Group Plc,"6,725.09"
Manchester City Council,Environment and Operations,Oth Professional Fee,09-Aug-22,5105828261,Smile Mediation,"7,425.00"
Manchester City Council,Regeneration Finance,Legal Fees,09-Aug-22,5105827598,Jacobs UK Ltd,"8,500.00"
Manchester City Council,Regeneration Finance,Legal Fees,09-Aug-22,5105828189,Jacobs UK Ltd,"8,500.00"
Manchester City Council,Manchester Leisure,Responsive Work,09-Aug-22,5105828245,EQUANS Regeneration Limited,"9,720.69"
Manchester City Council,Adult Social Care,Health Authorities,09-Aug-22,5105828279,Central Mcr Uni Hospital t/a,"10,000.00"
Manchester City Council,Highways Services,Sub Contractors,09-Aug-22,5105828247,Rosgal Ltd,"10,804.54"
Manchester City Council,Adult Social Care,Health Authorities,09-Aug-22,5105828276,Central Mcr Uni Hospital t/a,"12,162.00"
Manchester City Council,Adult Social Care,Rents,09-Aug-22,5105828238,Eeven Homes Ltd.,"13,839.01"
Manchester City Council,Corporate Services,Bailiff Fees,09-Aug-22,1907831644,Marston Group Limited,"15,000.75"
Manchester City Council,Manchester Leisure,Ext Rep & Main Build,09-Aug-22,5105828214,Laing O'Rourke Construction Ltd,"16,199.03"
Manchester City Council,Manchester Leisure,Responsive Work,09-Aug-22,5105828243,EQUANS Regeneration Limited,"17,000.18"
Manchester City Council,Highways Services,Legal Fees,09-Aug-22,1907833986,Thompson Solicitors,"18,680.00"
Manchester City Council,Insurance Fund,Fire & Prls Ins Prem,09-Aug-22,5105828173,Verlingue Limited,"24,771.52"
Manchester City Council,Adult Social Care,Voluntary Orgs TPP,09-Aug-22,5105828265,Change Grow Live,"26,500.00"
Manchester City Council,Corporate Services,OL&B - Fees,09-Aug-22,5105828156,Faithful & Gould Ltd,"37,000.00"
Manchester City Council,Chief Executives,Landline Telephone,09-Aug-22,1907837881,BT PLC,"41,600.09"
Manchester City Council,Childrens & Education Services,Coach Hire,09-Aug-22,5105828215,APTSL,"45,390.00"
Manchester City Council,Insurance Fund,Fire & Prls Ins Prem,09-Aug-22,5105828176,Verlingue Limited,"49,069.16"
Manchester City Council,Hospitality + Trading Services,Oth Professional Fee,09-Aug-22,1907839216,Accessible Vehicle Conversions CIC,"49,500.00"
Manchester City Council,Adult Social Care,Health Authorities,09-Aug-22,5105828276,Central Mcr Uni Hospital t/a,"61,487.00"
Manchester City Council,Chief Executives,OL&B - Adaptations,09-Aug-22,5105828202,Bowmer & Kirkland Ltd,"83,226.86"
Manchester City Council,Childrens & Education Services,Coach Hire,09-Aug-22,5105827195,Westfield Minibuses,"88,873.07"
Manchester City Council,Regeneration Finance,Electricity,09-Aug-22,5105828153,M\cr Heat Network Supply Co Ltd,"107,695.72"
Manchester City Council,Regeneration Finance,Security Costs,09-Aug-22,5105828297,MITIE SECURITY LIMITED,"114,811.66"
Manchester City Council,Chief Executives,OL&B - Adaptations,09-Aug-22,5105828204,Bowmer & Kirkland Ltd,"123,397.34"
Manchester City Council,Adult Social Care,Health Authorities,09-Aug-22,5105828277,Central Mcr Uni Hospital t/a,"185,051.33"
Manchester City Council,Regeneration Finance,Electricity,09-Aug-22,5105828152,M\cr Heat Network Supply Co Ltd,"191,712.40"
Manchester City Council,Regeneration Finance,Electricity,09-Aug-22,5105828151,M\cr Heat Network Supply Co Ltd,"239,787.27"
Manchester City Council,Housing Revenue Account,PFI & PP Partnership,09-Aug-22,5105828220,Grove Village Ltd,"479,471.17"
Manchester City Council,Manchester Leisure,OL&B - Fees,09-Aug-22,5105828214,Laing O'Rourke Construction Ltd,"1,186,931.78"
Manchester City Council,Adult Social Care,Health Authorities,09-Aug-22,5105828276,Central Mcr Uni Hospital t/a,"1,331,378.00"
Manchester City Council,Adult Social Care,Health Authorities,09-Aug-22,5105828278,Central Mcr Uni Hospital t/a,"2,093,604.00"
Manchester City Council,Chief Executives,Sub Contractors,09-Aug-22,5105828145,Redacted Personal Information,587.80
Manchester City Council,Chief Executives,Sub Contractors,09-Aug-22,5105828150,Redacted Personal Information,597.60
Manchester City Council,Childrens & Education Services,Oth Professional Fee,09-Aug-22,5105828200,Redacted Personal Information,"1,425.00"
Manchester City Council,Childrens & Education Services,Legal Fees,10-Aug-22,1907825044,Redacted Personal Information,540.00
Manchester City Council,Childrens & Education Services,Personal Need Client,10-Aug-22,1907819155,Redacted Personal Information,900.00
Manchester City Council,Manchester Leisure,Oth Professional Fee,10-Aug-22,5105828512,Redacted Personal Information,539.50
Manchester City Council,Childrens & Education Services,Coach Hire,10-Aug-22,5105828576,T/A Beresford Travel,"1,696.00"
Manchester City Council,Highways Services,Oth Professional Fee,10-Aug-22,5105828538,Canal & River Trust,"-8,834.34"
Manchester City Council,Highways Services,Grounds Maintenance,10-Aug-22,5105828417,The Fountain Company Ltd,"-8,121.00"
Manchester City Council,Corporate Services,OL&B - Fees,10-Aug-22,5105828400,Ramboll UK Limited,"-2,972.00"
Manchester City Council,Corporate Services,OL&B - Fees,10-Aug-22,5105828402,Ramboll UK Limited,"-2,935.00"
Manchester City Council,Corporate Services,OL&B - Fees,10-Aug-22,5105828398,Ramboll UK Limited,"-2,000.00"
Manchester City Council,Corporate Services,OL&B - Fees,10-Aug-22,5105828404,Ramboll UK Limited,"-2,000.00"
Manchester City Council,Adult Social Care,OL&B - Fees,10-Aug-22,5105828372,WYG Engineering Ltd,-744.00
Manchester City Council,Manchester Leisure,Catering,10-Aug-22,5105828471,Manchester Central,513.30
Manchester City Council,Corporate Services,WPS Awards,10-Aug-22,5105828406,Furniture Resource Centre Ltd,515.89
Manchester City Council,Regeneration Finance,Extl Security Reqmts,10-Aug-22,5105828321,MITIE SECURITY LIMITED,567.96
Manchester City Council,Regeneration Finance,Rem & Store Furnitur,10-Aug-22,5105828253,Restore PLC,576.61
Manchester City Council,Highways Services,Direct Materials,10-Aug-22,5105828430,TARMAC,585.94
Manchester City Council,Corporate Services,Travel Season TLS,10-Aug-22,5105827935,Stagecoach Manchester,600.00
Manchester City Council,Corporate Services,Travel Season TLS,10-Aug-22,5105827937,Stagecoach Manchester,600.00
Manchester City Council,Corporate Services,Travel Season TLS,10-Aug-22,5105827938,Stagecoach Manchester,600.00
Manchester City Council,Regeneration Finance,Training - Mon Paid,10-Aug-22,1907834019,RICS,663.00
Manchester City Council,Corporate Services,OL&B - Fees,10-Aug-22,5105827922,Mace Ltd,680.00
Manchester City Council,Regeneration Finance,Extl Security Reqmts,10-Aug-22,5105828326,MITIE SECURITY LIMITED,707.31
Manchester City Council,Corporate Services,OL&B - Adaptations,10-Aug-22,5105828500,Clean-Up UK Limited,720.00
Manchester City Council,Childrens & Education Services,Oth Professional Fee,10-Aug-22,5105828353,Cellmark,723.25
Manchester City Council,Regeneration Finance,Exp Int Trade OrdEx,10-Aug-22,5105828341,King's House Conference (Gtr Mcr),750.00
Manchester City Council,Manchester Leisure,Oth Professional Fee,10-Aug-22,5105828505,Shoppertrak Ltd,766.77
Manchester City Council,Regeneration Finance,Grounds Maintenance,10-Aug-22,5105828180,Arboricultural Services Treework,800.00
Manchester City Council,Chief Executives,Catering,10-Aug-22,5105828450,Manchester Central,804.19
Manchester City Council,Regeneration Finance,Consummables,10-Aug-22,5105828323,Wilkinson Bros,820.00
Manchester City Council,Adult Social Care,Equipment,10-Aug-22,5105828391,RNIB,855.00
Manchester City Council,Childrens & Education Services,Other Establishments,10-Aug-22,5105828510,Fairfield Care Ltd,873.50
Manchester City Council,Corporate Services,WPS Awards,10-Aug-22,5105828407,Furniture Resource Centre Ltd,880.71
Manchester City Council,Manchester Leisure,Sub Contractors,10-Aug-22,5105828327,Willfab Ltd,960.00
Manchester City Council,Manchester Leisure,Special Event,10-Aug-22,5105828320,Imageit,975.00
Manchester City Council,Highways Services,Direct Materials,10-Aug-22,5105828452,TARMAC,980.72
Manchester City Council,Corporate Services,OL&B - Fees,10-Aug-22,5105827922,Mace Ltd,"1,000.00"
Manchester City Council,Manchester Leisure,Special Event,10-Aug-22,5105828470,Manchester Central,"1,000.00"
Manchester City Council,Adult Social Care,Equipment,10-Aug-22,5105828420,Herida Healthcare Plc,"1,009.80"
Manchester City Council,Adult Social Care,Equipment,10-Aug-22,5105828394,RNIB,"1,083.90"
Manchester City Council,Childrens & Education Services,Oth Professional Fee,10-Aug-22,5105828285,Cornerstone Design and Marketing,"1,150.00"
Manchester City Council,Highways Services,Direct Materials,10-Aug-22,5105828454,TARMAC,"1,270.04"
Manchester City Council,Highways Services,Grounds Maintenance,10-Aug-22,5105828333,The Fountain Company Ltd,"1,320.00"
Manchester City Council,Manchester Leisure,Direct Materials,10-Aug-22,5105828382,One Green World,"1,350.00"
Manchester City Council,Adult Social Care,Equipment,10-Aug-22,5105828527,Invacare Limited,"1,482.00"
Manchester City Council,Chief Executives,Printing,10-Aug-22,5105828515,Psycho Peacock Limited,"1,486.12"
Manchester City Council,Chief Executives,Catering,10-Aug-22,5105828469,Manchester Central,"1,651.60"
Manchester City Council,Childrens & Education Services,Other Local Auth,10-Aug-22,5105828457,Oasis Academy Oldham,"1,655.00"
Manchester City Council,Housing Revenue Account,CD - Adaptations,10-Aug-22,5105828313,Rexel UK Ltd,"1,706.90"
Manchester City Council,Adult Social Care,Voluntary Orgs TPP,10-Aug-22,5105828553,Shared Habitat Limited,"1,739.00"
Manchester City Council,Manchester Leisure,Oth Professional Fee,10-Aug-22,1907841380,N4Crew,"1,816.00"
Manchester City Council,Adult Social Care,Voluntary Orgs TPP,10-Aug-22,5105828555,Shared Habitat Limited,"1,900.00"
Manchester City Council,Highways Services,Sub Contractors,10-Aug-22,5105828543,Rosgal Ltd,"1,912.50"
Manchester City Council,Adult Social Care,Oth Professional Fee,10-Aug-22,5105828366,Baltimore Consulting Ltd,"1,950.00"
Manchester City Council,Adult Social Care,Equipment,10-Aug-22,5105828533,Gordon Ellis & CO,"1,993.80"
Manchester City Council,Manchester Leisure,Equipment,10-Aug-22,5105827665,Groundwork Landscapes Ltd,"2,000.00"
Manchester City Council,Childrens & Education Services,Grant Expenditure,10-Aug-22,5105828580,Manchester Carnival Together CIC,"2,000.00"
Manchester City Council,Corporate Services,OL&B - Fees,10-Aug-22,5105828399,Ramboll UK Limited,"2,000.00"
Manchester City Council,Corporate Services,OL&B - Fees,10-Aug-22,5105828405,Ramboll UK Limited,"2,000.00"
Manchester City Council,Chief Executives,Oth Professional Fee,10-Aug-22,5105828325,Russell & Russell Solicitors LLP,"2,141.25"
Manchester City Council,Adult Social Care,Oth Professional Fee,10-Aug-22,5105828365,Baltimore Consulting Ltd,"2,275.00"
Manchester City Council,Childrens & Education Services,Coach Hire,10-Aug-22,5105828357,David'S Handy Rider,"2,400.00"
Manchester City Council,Corporate Services,OL&B - Adaptations,10-Aug-22,5105828519,Groundwork & Leisure Services Ltd,"2,400.00"
Manchester City Council,Childrens & Education Services,Other Establishments,10-Aug-22,5105828524,Fairfield Care Ltd,"2,431.62"
Manchester City Council,Chief Executives,Computer Purchases,10-Aug-22,5105828358,Zipporah Ltd,"2,550.00"
Manchester City Council,Hospitality + Trading Services,Vehicle Hire Costs,10-Aug-22,5105828531,TIP Trailer Services UK Ltd,"2,715.77"
Manchester City Council,Corporate Services,OL&B - Fees,10-Aug-22,5105828403,Ramboll UK Limited,"2,935.00"
Manchester City Council,Corporate Services,OL&B - Fees,10-Aug-22,5105828316,Savills (UK) Ltd,"2,950.00"
Manchester City Council,Corporate Services,OL&B - Fees,10-Aug-22,5105828401,Ramboll UK Limited,"2,972.00"
Manchester City Council,Chief Executives,VPF&E - Acquisition,10-Aug-22,5105828293,XMA Limited,"3,047.70"
Manchester City Council,Childrens & Education Services,Other Establishments,10-Aug-22,5105828526,Fairfield Care Ltd,"3,121.72"
Manchester City Council,Adult Social Care,Equipment,10-Aug-22,5105828529,Invacare Limited,"3,198.00"
Manchester City Council,Corporate Services,OL&B - Fees,10-Aug-22,5105827833,GVA Grimley Ltd,"3,200.00"
Manchester City Council,Childrens & Education Services,Other Local Auth,10-Aug-22,5105828458,St Joseph's Catholic Primary School,"3,256.00"
Manchester City Council,Manchester Leisure,Computer Purchases,10-Aug-22,5105827613,BT PLC,"3,262.28"
Manchester City Council,Corporate Services,OL&B - Fees,10-Aug-22,5105828158,Ramboll UK Limited,"3,347.50"
Manchester City Council,Adult Social Care,Rents,10-Aug-22,5105828563,Housing Social Ltd,"3,502.56"
Manchester City Council,Childrens & Education Services,Other Local Auth,10-Aug-22,5105828487,Our Lady & St Anselms,"3,566.67"
Manchester City Council,Adult Social Care,Voluntary Orgs TPP,10-Aug-22,5105828381,Breakthrough Uk Ltd,"3,888.94"
Manchester City Council,Environment and Operations,Infra - Construction,10-Aug-22,5105828225,Steer Davies & Geave Limited,"3,981.27"
Manchester City Council,Childrens & Education Services,Other Local Auth,10-Aug-22,5105828491,Cheshire East Borough Council,"4,351.00"
Manchester City Council,Adult Social Care,Equipment,10-Aug-22,5105828345,Herida Healthcare Plc,"4,772.80"
Manchester City Council,Adult Social Care,Equipment,10-Aug-22,5105828354,Herida Healthcare Plc,"4,879.40"
Manchester City Council,Adult Social Care,Rents,10-Aug-22,5105828534,Houses4Homes 4U Ltd,"4,966.76"
Manchester City Council,Environment and Operations,Infra - Construction,10-Aug-22,5105827779,Steer Davies & Geave Limited,"5,700.02"
Manchester City Council,Corporate Services,OL&B - Fees,10-Aug-22,5105827922,Mace Ltd,"6,595.88"
Manchester City Council,Highways Services,Sub Contractors,10-Aug-22,5105828530,Rosgal Ltd,"7,800.00"
Manchester City Council,Highways Services,Sub Contractors,10-Aug-22,5105828541,Rosgal Ltd,"7,800.00"
Manchester City Council,Highways Services,Sub Contractors,10-Aug-22,5105828542,Rosgal Ltd,"7,800.00"
Manchester City Council,Manchester Leisure,Oth Professional Fee,10-Aug-22,5105828463,Manchester Central,"8,000.00"
Manchester City Council,Libraries and Theatres,OL&B - Construction,10-Aug-22,5105828307,Robertson Construction Group,"8,055.38"
Manchester City Council,Manchester Leisure,Cont Cleaning - Ext,10-Aug-22,5105828396,Clearview Event Services Limited,"8,115.00"
Manchester City Council,Adult Social Care,Bed & Breakfast Acc,10-Aug-22,5105828509,Hala Guest House,"8,175.00"
Manchester City Council,Adult Social Care,Bed & Breakfast Acc,10-Aug-22,5105828560,Hala Guest House,"8,840.00"
Manchester City Council,Childrens & Education Services,Other Local Auth,10-Aug-22,5105828456,Sale Grammar School,"9,012.00"
Manchester City Council,Adult Social Care,Bed & Breakfast Acc,10-Aug-22,5105828551,Hala Guest House,"9,105.00"
Manchester City Council,Highways Services,Oth Professional Fee,10-Aug-22,5105828196,Wilde Consultants Ltd,"9,504.00"
Manchester City Council,Corporate Services,Legal Fees,10-Aug-22,1907841606,MJV Solicitors,"10,197.00"
Manchester City Council,Adult Social Care,Bed & Breakfast Acc,10-Aug-22,5105828565,247Hotel.Com,"11,299.17"
Manchester City Council,Childrens & Education Services,Subscriptions,10-Aug-22,1907841609,Paypoint,"11,939.08"
Manchester City Council,Adult Social Care,Rents,10-Aug-22,5105828547,K L Properties,"12,635.87"
Manchester City Council,Childrens & Education Services,Other Establishments,10-Aug-22,5105828047,Enhance EHC Ltd,"12,763.84"
Manchester City Council,Manchester Leisure,Equipment,10-Aug-22,5105828383,Cromwell Polythene Limited,"13,286.00"
Manchester City Council,Corporate Services,OL&B - Fees,10-Aug-22,5105828361,Rider Levett Bucknall UK Ltd,"13,860.00"
Manchester City Council,Corporate Services,Legal Fees,10-Aug-22,1907841608,Driscoll Kingston Client Account,"14,000.00"
Manchester City Council,Manchester Leisure,Grant Expenditure,10-Aug-22,5105828575,Manchester Young Lives,"14,218.15"
Manchester City Council,Adult Social Care,Voluntary Orgs TPP,10-Aug-22,5105828381,Breakthrough Uk Ltd,"14,485.42"
Manchester City Council,Chief Executives,VPF&E - Acquisition,10-Aug-22,5105828291,XMA Limited,"15,094.00"
Manchester City Council,Corporate Services,Legal Fees,10-Aug-22,1907841679,Amin Haque Solicitors,"15,500.00"
Manchester City Council,Adult Social Care,Grant Expenditure,10-Aug-22,5105828532,On The Out CIC,"17,122.92"
Manchester City Council,Manchester Leisure,Grant Expenditure,10-Aug-22,5105828349,Manchester Youth Academy,"20,000.00"
Manchester City Council,Hospitality + Trading Services,Vehicle Hire Costs,10-Aug-22,5105828606,F.R.Sharrock Ltd,"27,048.00"
Manchester City Council,Corporate Services,OL&B - Fees,10-Aug-22,5105827922,Mace Ltd,"32,698.00"
Manchester City Council,Housing Revenue Account,CD - Adaptations,10-Aug-22,5105828312,Rexel UK Ltd,"32,734.01"
Manchester City Council,Adult Social Care,Rents,10-Aug-22,5105828556,Amco Management,"32,966.29"
Manchester City Council,Childrens & Education Services,Catering Provisions,10-Aug-22,1907844791,Ralph Livesey Ltd,"40,226.05"
Manchester City Council,Manchester Leisure,Oth Professional Fee,10-Aug-22,5105828468,Manchester Central,"42,597.71"
Manchester City Council,Adult Social Care,Rents,10-Aug-22,5105828489,B & A Properties,"45,078.86"
Manchester City Council,Housing Revenue Account,CD - Adaptations,10-Aug-22,5105828499,"Jackson, Jackson & Sons Ltd","76,418.23"
Manchester City Council,Regeneration Finance,Int Rep & Main Build,10-Aug-22,5105828574,EQUANS Services Limited,"81,273.46"
Manchester City Council,Housing Revenue Account,CD - Adaptations,10-Aug-22,5105828311,"Jackson, Jackson & Sons Ltd","107,679.77"
Manchester City Council,Regeneration Finance,Security Costs,10-Aug-22,5105828324,MITIE SECURITY LIMITED,"115,902.02"
Manchester City Council,Regeneration Finance,Security Costs,10-Aug-22,5105828318,MITIE SECURITY LIMITED,"116,029.30"
Manchester City Council,Environment and Operations,Infra - Construction,10-Aug-22,5105828395,Kiely Bros Ltd,"190,700.00"
Manchester City Council,Adult Social Care,Other Establishments,10-Aug-22,5105828303,Standwalk Ltd,"294,124.82"
Manchester City Council,Adult Social Care,Other Establishments,10-Aug-22,5105828305,Standwalk Ltd,"294,124.82"
Manchester City Council,Adult Social Care,Other Establishments,10-Aug-22,5105828306,Standwalk Ltd,"294,124.82"
Manchester City Council,Childrens & Education Services,Oth Professional Fee,10-Aug-22,1907813887,Redacted Personal Information,687.50
Manchester City Council,Chief Executives,Sub Contractors,10-Aug-22,5105828540,Redacted Personal Information,762.35
Manchester City Council,Childrens & Education Services,Supported Accom,10-Aug-22,5105828588,Redacted Personal Information,"1,253.00"
Manchester City Council,Adult Social Care,Bed & Breakfast Acc,10-Aug-22,5105828559,Redacted Personal Information,"2,550.00"
Manchester City Council,Adult Social Care,Bed & Breakfast Acc,10-Aug-22,5105828605,Redacted Personal Information,"2,785.00"
Manchester City Council,Adult Social Care,Bed & Breakfast Acc,10-Aug-22,5105828552,Redacted Personal Information,"3,045.00"
Manchester City Council,Adult Social Care,Bed & Breakfast Acc,10-Aug-22,5105828558,Redacted Personal Information,"3,105.00"
Manchester City Council,Adult Social Care,Bed & Breakfast Acc,10-Aug-22,5105828550,Redacted Personal Information,"3,255.00"
Manchester City Council,Adult Social Care,Bed & Breakfast Acc,10-Aug-22,5105828549,Redacted Personal Information,"11,240.00"
Manchester City Council,Adult Social Care,Bed & Breakfast Acc,10-Aug-22,5105828557,Redacted Personal Information,"11,470.00"
Manchester City Council,Adult Social Care,Bed & Breakfast Acc,10-Aug-22,5105828310,Redacted Personal Information,"35,198.00"
Manchester City Council,Highways Services,Legal Fees,11-Aug-22,1907845125,Redacted Personal Information,"5,616.00"
Manchester City Council,Highways Services,Other Comp Payments,11-Aug-22,1907845125,Redacted Personal Information,"6,000.00"
Manchester City Council,Hospitality + Trading Services,Other Comp Payments,11-Aug-22,1907846073,Redacted Personal Information,"54,000.00"
Manchester City Council,Manchester Leisure,Grant Expenditure,11-Aug-22,5105828718,The Duke of Edinburghs Award,"-25,000.00"
Manchester City Council,Adult Social Care,Electricity,11-Aug-22,1700137583,Scottish & Southern Energy Plc,"-17,548.10"
Manchester City Council,Adult Social Care,Rents,11-Aug-22,5105828747,K L Properties,"-12,608.84"
Manchester City Council,Manchester Leisure,Oth Professional Fee,11-Aug-22,5105828642,Inforhousing,"-5,280.00"
Manchester City Council,Adult Social Care,Bed & Breakfast Acc,11-Aug-22,5105828730,Medlock House Ltd,"-5,047.00"
Manchester City Council,Adult Social Care,Electricity,11-Aug-22,1700137580,Scottish & Southern Energy Plc,"-1,007.85"
Manchester City Council,Adult Social Care,Electricity,11-Aug-22,1700137577,Scottish & Southern Energy Plc,"-1,000.35"
Manchester City Council,Hospitality + Trading Services,Gas,11-Aug-22,1700137588,Corona Energy Ltd,-660.92
Manchester City Council,Hospitality + Trading Services,Gas,11-Aug-22,1700137587,Corona Energy Ltd,-533.00
Manchester City Council,Manchester Leisure,Electricity,11-Aug-22,1907845309,Scottish & Southern Energy Plc,505.93
Manchester City Council,Regeneration Finance,Gas,11-Aug-22,1907845568,Corona Energy Ltd,512.73
Manchester City Council,Adult Social Care,Gas,11-Aug-22,1907845668,Corona Energy Ltd,515.21
Manchester City Council,Regeneration Finance,Gas,11-Aug-22,1907845679,Corona Energy Ltd,515.22
Manchester City Council,Childrens & Education Services,Gas,11-Aug-22,1907845500,Corona Energy Ltd,524.92
Manchester City Council,Hospitality + Trading Services,Oth Professional Fee,11-Aug-22,5105828672,Edge Entertainment Consultants Ltd,530.00
Manchester City Council,Hospitality + Trading Services,Gas,11-Aug-22,1907845544,Corona Energy Ltd,533.00
Manchester City Council,Manchester Leisure,Electricity,11-Aug-22,1907845435,Scottish & Southern Energy Plc,535.28
Manchester City Council,Regeneration Finance,Gas,11-Aug-22,1907845708,Corona Energy Ltd,537.26
Manchester City Council,Regeneration Finance,Oth Professional Fee,11-Aug-22,5105828833,Royal Northern College Of Music,550.00
Manchester City Council,Regeneration Finance,Gas,11-Aug-22,1907845623,Corona Energy Ltd,554.23
Manchester City Council,Manchester Leisure,Gas,11-Aug-22,1907845723,Corona Energy Ltd,555.45
Manchester City Council,Childrens & Education Services,Gas,11-Aug-22,1907845693,Corona Energy Ltd,555.90
Manchester City Council,Manchester Leisure,Electricity,11-Aug-22,1907845336,Scottish & Southern Energy Plc,556.91
Manchester City Council,Adult Social Care,Gas,11-Aug-22,1907845525,Corona Energy Ltd,556.93
Manchester City Council,Regeneration Finance,Gas,11-Aug-22,1907845670,Corona Energy Ltd,567.23
Manchester City Council,Regeneration Finance,Gas,11-Aug-22,1907845659,Corona Energy Ltd,576.34
Manchester City Council,Regeneration Finance,Electricity,11-Aug-22,1907845410,Scottish & Southern Energy Plc,579.21
Manchester City Council,Childrens & Education Services,Gas,11-Aug-22,1907845512,Corona Energy Ltd,579.56
Manchester City Council,Adult Social Care,Gas,11-Aug-22,1907845547,Corona Energy Ltd,589.25
Manchester City Council,Adult Social Care,Gas,11-Aug-22,1907845519,Corona Energy Ltd,593.20
Manchester City Council,Manchester Leisure,Gas,11-Aug-22,1907845558,Corona Energy Ltd,597.01
Manchester City Council,Adult Social Care,Licences Expenditure,11-Aug-22,5105828711,Insight Direct (Uk) Ltd,597.94
Manchester City Council,Regeneration Finance,Gas,11-Aug-22,1907845676,Corona Energy Ltd,609.02
Manchester City Council,Adult Social Care,Gas,11-Aug-22,1907845551,Corona Energy Ltd,613.35
Manchester City Council,Manchester Leisure,Gas,11-Aug-22,1907845662,Corona Energy Ltd,614.18
Manchester City Council,Manchester Leisure,Gas,11-Aug-22,1907845567,Corona Energy Ltd,614.43
Manchester City Council,Regeneration Finance,Gas,11-Aug-22,1907845626,Corona Energy Ltd,618.32
Manchester City Council,Adult Social Care,Oth Professional Fee,11-Aug-22,5105828801,ANS Group Plc,625.00
Manchester City Council,Manchester Leisure,Direct Materials,11-Aug-22,5105828386,CPD Property Services,625.00
Manchester City Council,Hospitality + Trading Services,Gas,11-Aug-22,1907845543,Corona Energy Ltd,639.60
Manchester City Council,Regeneration Finance,Gas,11-Aug-22,1907845619,Corona Energy Ltd,642.37
Manchester City Council,Hospitality + Trading Services,Electricity,11-Aug-22,1907845433,Scottish & Southern Energy Plc,643.43
Manchester City Council,Chief Executives,OL&B - Fees,11-Aug-22,5105828762,Buro Happold Limited,650.00
Manchester City Council,Chief Executives,Oth Professional Fee,11-Aug-22,5105828813,Russell & Russell Solicitors LLP,650.00
Manchester City Council,Hospitality + Trading Services,Gas,11-Aug-22,1907845545,Corona Energy Ltd,660.92
Manchester City Council,Housing Revenue Account,Gas,11-Aug-22,1907845680,Corona Energy Ltd,669.24
Manchester City Council,Manchester Leisure,Storage Costs,11-Aug-22,5105828799,Master Moves Ltd,699.89
Manchester City Council,Manchester Leisure,Oth Professional Fee,11-Aug-22,5105828847,Rigby Taylor Ltd,700.00
Manchester City Council,Chief Executives,Printing,11-Aug-22,5105827810,Astra Signs,725.00
Manchester City Council,Regeneration Finance,Gas,11-Aug-22,1907845673,Corona Energy Ltd,730.46
Manchester City Council,Chief Executives,OL&B - Fees,11-Aug-22,5105828748,Buro Happold Limited,737.00
Manchester City Council,Highways Services,Legal Fees,11-Aug-22,1907845199,Department For Work & Pensions,744.00
Manchester City Council,Adult Social Care,OL&B - Fees,11-Aug-22,5105828437,WYG Engineering Ltd,744.00
Manchester City Council,Chief Executives,Printing,11-Aug-22,5105827812,Astra Signs,745.00
Manchester City Council,Chief Executives,OL&B - Fees,11-Aug-22,5105828757,Buro Happold Limited,750.00
Manchester City Council,Environment and Operations,Oth Professional Fee,11-Aug-22,5105828853,Oldham Borough Council,750.00
Manchester City Council,Regeneration Finance,Gas,11-Aug-22,1907845726,Corona Energy Ltd,768.70
Manchester City Council,Adult Social Care,Electricity,11-Aug-22,1907845328,Scottish & Southern Energy Plc,769.17
Manchester City Council,Regeneration Finance,Gas,11-Aug-22,1907845606,Corona Energy Ltd,770.85
Manchester City Council,Chief Executives,OL&B - Fees,11-Aug-22,5105828682,Buro Happold Limited,780.00
Manchester City Council,Regeneration Finance,Gas,11-Aug-22,1907845616,Corona Energy Ltd,785.98
Manchester City Council,Manchester Leisure,Gas,11-Aug-22,1907845530,Corona Energy Ltd,789.96
Manchester City Council,Regeneration Finance,Gas,11-Aug-22,1907845727,Corona Energy Ltd,794.10
Manchester City Council,Adult Social Care,Gas,11-Aug-22,1907845687,Corona Energy Ltd,794.39
Manchester City Council,Regeneration Finance,Gas,11-Aug-22,1907845633,Corona Energy Ltd,794.65
Manchester City Council,Regeneration Finance,Ext Rep & Main Build,11-Aug-22,5105828805,Halcyon Conservation Ltd,800.00
Manchester City Council,Manchester Leisure,Legal Fees,11-Aug-22,1907844420,Trinity Chambers,800.00
Manchester City Council,Regeneration Finance,Gas,11-Aug-22,1907845688,Corona Energy Ltd,804.62
Manchester City Council,Manchester Leisure,Electricity,11-Aug-22,1907845438,Scottish & Southern Energy Plc,805.35
Manchester City Council,Adult Social Care,Electricity,11-Aug-22,1907845393,Scottish & Southern Energy Plc,809.36
Manchester City Council,Childrens & Education Services,Gas,11-Aug-22,1907845509,Corona Energy Ltd,812.13
Manchester City Council,Adult Social Care,Oth Professional Fee,11-Aug-22,5105828645,Baltimore Consulting Ltd,812.50
Manchester City Council,Childrens & Education Services,Gas,11-Aug-22,1907845729,Corona Energy Ltd,833.97
Manchester City Council,Childrens & Education Services,Supported Accom,11-Aug-22,5105828695,Mosscare St Vincent's Housing,847.12
Manchester City Council,Regeneration Finance,Gas,11-Aug-22,1907845604,Corona Energy Ltd,847.94
Manchester City Council,Chief Executives,OL&B - Fees,11-Aug-22,5105828761,Buro Happold Limited,850.00
Manchester City Council,Manchester Leisure,Gas,11-Aug-22,1907845706,Corona Energy Ltd,850.55
Manchester City Council,Chief Executives,Printing,11-Aug-22,5105827809,Astra Signs,860.00
Manchester City Council,Regeneration Finance,Gas,11-Aug-22,1907845629,Corona Energy Ltd,873.47
Manchester City Council,Manchester Leisure,Electricity,11-Aug-22,1907845283,Scottish & Southern Energy Plc,886.00
Manchester City Council,Manchester Leisure,Gas,11-Aug-22,1907845600,Corona Energy Ltd,899.12
Manchester City Council,Chief Executives,OL&B - Fees,11-Aug-22,5105828763,Buro Happold Limited,900.00
Manchester City Council,Manchester Leisure,Gas,11-Aug-22,1907845722,Corona Energy Ltd,903.42
Manchester City Council,Regeneration Finance,Gas,11-Aug-22,1907845709,Corona Energy Ltd,909.50
Manchester City Council,Childrens & Education Services,Gas,11-Aug-22,1907845515,Corona Energy Ltd,930.41
Manchester City Council,Childrens & Education Services,Childminding Fee Pay,11-Aug-22,5105828846,Early Inspirations Nursery,936.00
Manchester City Council,Corporate Services,Direct Materials,11-Aug-22,5105828781,Stellar Network Solutions Ltd,940.00
Manchester City Council,Adult Social Care,Gas,11-Aug-22,1907845725,Corona Energy Ltd,940.15
Manchester City Council,Childrens & Education Services,Gas,11-Aug-22,1907845508,Corona Energy Ltd,950.63
Manchester City Council,Adult Social Care,Gas,11-Aug-22,1907845641,Corona Energy Ltd,968.45
Manchester City Council,Adult Social Care,Electricity,11-Aug-22,1907845392,Scottish & Southern Energy Plc,972.67
Manchester City Council,Adult Social Care,Clean & Domestic Mat,11-Aug-22,5105828790,Concept Care,975.00
Manchester City Council,Adult Social Care,Electricity,11-Aug-22,1907845261,Scottish & Southern Energy Plc,976.84
Manchester City Council,Adult Social Care,Electricity,11-Aug-22,1907845408,Scottish & Southern Energy Plc,976.84
Manchester City Council,Housing Revenue Account,Electricity,11-Aug-22,1907845338,Scottish & Southern Energy Plc,976.84
Manchester City Council,Manchester Leisure,Gas,11-Aug-22,1907845685,Corona Energy Ltd,984.00
Manchester City Council,Regeneration Finance,Gas,11-Aug-22,1907845612,Corona Energy Ltd,"1,017.09"
Manchester City Council,Regeneration Finance,Gas,11-Aug-22,1907845730,Corona Energy Ltd,"1,029.61"
Manchester City Council,Highways Services,Vehicle Fuel Costs,11-Aug-22,5105828785,Standard Fuels Oils,"1,031.27"
Manchester City Council,Hospitality + Trading Services,Gas,11-Aug-22,1907845603,Corona Energy Ltd,"1,031.28"
Manchester City Council,Manchester Leisure,Gas,11-Aug-22,1907845541,Corona Energy Ltd,"1,039.93"
Manchester City Council,Highways Services,Oth Professional Fee,11-Aug-22,5105828782,A T G Access Ltd,"1,046.95"
Manchester City Council,Regeneration Finance,Gas,11-Aug-22,1907845569,Corona Energy Ltd,"1,071.74"
Manchester City Council,Corporate Services,OL&B - Fees,11-Aug-22,5105828397,Keelagher Okey Associates Ltd t/a,"1,073.62"
Manchester City Council,Regeneration Finance,Gas,11-Aug-22,1907845610,Corona Energy Ltd,"1,075.38"
Manchester City Council,Manchester Leisure,Gas,11-Aug-22,1907845539,Corona Energy Ltd,"1,093.96"
Manchester City Council,Chief Executives,Publications,11-Aug-22,5105828666,Thompson Reuters,"1,104.00"
Manchester City Council,Corporate Services,External Agency,11-Aug-22,5105828800,Michael Page International,"1,120.00"
Manchester City Council,Corporate Services,External Agency,11-Aug-22,5105828814,Michael Page International,"1,120.00"
Manchester City Council,Adult Social Care,Electricity,11-Aug-22,1907845394,Scottish & Southern Energy Plc,"1,136.49"
Manchester City Council,Chief Executives,OL&B - Fees,11-Aug-22,5105828753,Buro Happold Limited,"1,150.00"
Manchester City Council,Adult Social Care,Gas,11-Aug-22,1907845678,Corona Energy Ltd,"1,160.75"
Manchester City Council,Manchester Leisure,Gas,11-Aug-22,1907845658,Corona Energy Ltd,"1,201.74"
Manchester City Council,Chief Executives,OL&B - Fees,11-Aug-22,5105828758,Buro Happold Limited,"1,213.00"
Manchester City Council,Chief Executives,OL&B - Fees,11-Aug-22,5105828756,Buro Happold Limited,"1,250.00"
Manchester City Council,Adult Social Care,Legal Fees,11-Aug-22,5105828827,Gray's Inn Square Chambers Ltd,"1,250.00"
Manchester City Council,Adult Social Care,Other Indirect Emp,11-Aug-22,5105828700,University Of Manchester,"1,250.00"
Manchester City Council,Regeneration Finance,Gas,11-Aug-22,1907845599,Corona Energy Ltd,"1,297.78"
Manchester City Council,Regeneration Finance,Gas,11-Aug-22,1907845624,Corona Energy Ltd,"1,305.80"
Manchester City Council,Regeneration Finance,Gas,11-Aug-22,1907845532,Corona Energy Ltd,"1,309.20"
Manchester City Council,Chief Executives,OL&B - Fees,11-Aug-22,5105828686,Buro Happold Limited,"1,343.00"
Manchester City Council,Chief Executives,OL&B - Fees,11-Aug-22,5105828766,Buro Happold Limited,"1,343.00"
Manchester City Council,Chief Executives,OL&B - Fees,11-Aug-22,5105828683,Buro Happold Limited,"1,350.00"
Manchester City Council,Chief Executives,OL&B - Fees,11-Aug-22,5105828690,Buro Happold Limited,"1,350.00"
Manchester City Council,Chief Executives,OL&B - Fees,11-Aug-22,5105828750,Buro Happold Limited,"1,350.00"
Manchester City Council,Hospitality + Trading Services,Other Vehicle Costs,11-Aug-22,5105828852,Verizon Connect UK Ltd,"1,390.65"
Manchester City Council,Regeneration Finance,Gas,11-Aug-22,1907845682,Corona Energy Ltd,"1,406.52"
Manchester City Council,Highways Services,Grounds Maintenance,11-Aug-22,5105828331,The Fountain Company Ltd,"1,425.00"
Manchester City Council,Chief Executives,OL&B - Fees,11-Aug-22,5105828685,Buro Happold Limited,"1,450.00"
Manchester City Council,Manchester Leisure,Gas,11-Aug-22,1907845588,Corona Energy Ltd,"1,461.62"
Manchester City Council,Hospitality + Trading Services,Gas,11-Aug-22,1907845546,Corona Energy Ltd,"1,485.90"
Manchester City Council,Highways Services,Oth Professional Fee,11-Aug-22,5105828226,Wilde Consultants Ltd,"1,517.41"
Manchester City Council,Adult Social Care,Electricity,11-Aug-22,1907845395,Scottish & Southern Energy Plc,"1,547.26"
Manchester City Council,Chief Executives,OL&B - Fees,11-Aug-22,5105828759,Buro Happold Limited,"1,560.00"
Manchester City Council,Highways Services,Grounds Maintenance,11-Aug-22,5105828332,The Fountain Company Ltd,"1,592.00"
Manchester City Council,Manchester Leisure,OL&B - Construction,11-Aug-22,5105828652,Earth Anchors Ltd,"1,610.00"
Manchester City Council,Manchester Leisure,Gas,11-Aug-22,1907845691,Corona Energy Ltd,"1,639.63"
Manchester City Council,Regeneration Finance,Gas,11-Aug-22,1907845614,Corona Energy Ltd,"1,675.42"
Manchester City Council,Manchester Leisure,Gas,11-Aug-22,1907845537,Corona Energy Ltd,"1,685.36"
Manchester City Council,Regeneration Finance,Grounds Maintenance,11-Aug-22,5105828656,Arboricultural Services Treework,"1,700.00"
Manchester City Council,Chief Executives,Oth Professional Fee,11-Aug-22,5105828822,Russell & Russell Solicitors LLP,"1,706.25"
Manchester City Council,Childrens & Education Services,Coach Hire,11-Aug-22,5105828641,Britannia Minibuses Ltd,"1,780.00"
Manchester City Council,Manchester Leisure,Direct Materials,11-Aug-22,5105828387,CPD Property Services,"1,850.00"
Manchester City Council,Manchester Leisure,Gas,11-Aug-22,1907845716,Corona Energy Ltd,"1,892.68"
Manchester City Council,Chief Executives,Oth Professional Fee,11-Aug-22,5105828811,Russell & Russell Solicitors LLP,"1,900.00"
Manchester City Council,Chief Executives,OL&B - Fees,11-Aug-22,5105828769,Buro Happold Limited,"1,907.00"
Manchester City Council,Manchester Leisure,Gas,11-Aug-22,1907845689,Corona Energy Ltd,"1,927.30"
Manchester City Council,Manchester Leisure,Gas,11-Aug-22,1907845667,Corona Energy Ltd,"1,932.36"
Manchester City Council,Chief Executives,Oth Professional Fee,11-Aug-22,5105828819,Russell & Russell Solicitors LLP,"1,948.50"
Manchester City Council,Chief Executives,OL&B - Fees,11-Aug-22,5105828751,Buro Happold Limited,"1,950.00"
Manchester City Council,Manchester Leisure,Gas,11-Aug-22,1907845651,Corona Energy Ltd,"2,001.87"
Manchester City Council,Childrens & Education Services,Carer Support Pays,11-Aug-22,5105828767,Bedspace Resource Ltd,"2,015.00"
Manchester City Council,Manchester Leisure,Gas,11-Aug-22,1907845683,Corona Energy Ltd,"2,029.51"
Manchester City Council,Manchester Leisure,Gas,11-Aug-22,1907845636,Corona Energy Ltd,"2,069.85"
Manchester City Council,Manchester Leisure,Gas,11-Aug-22,1907845637,Corona Energy Ltd,"2,070.58"
Manchester City Council,Regeneration Finance,Gas,11-Aug-22,1907845672,Corona Energy Ltd,"2,147.98"
Manchester City Council,Manchester Leisure,Gas,11-Aug-22,1907845561,Corona Energy Ltd,"2,183.23"
Manchester City Council,Manchester Leisure,Gas,11-Aug-22,1907845649,Corona Energy Ltd,"2,187.74"
Manchester City Council,Chief Executives,OL&B - Fees,11-Aug-22,5105828684,Buro Happold Limited,"2,250.00"
Manchester City Council,Chief Executives,OL&B - Fees,11-Aug-22,5105828689,Buro Happold Limited,"2,250.00"
Manchester City Council,Housing Revenue Account,Gas,11-Aug-22,1907845713,Corona Energy Ltd,"2,320.98"
Manchester City Council,Chief Executives,Oth Professional Fee,11-Aug-22,5105828821,Russell & Russell Solicitors LLP,"2,329.24"
Manchester City Council,Manchester Leisure,Gas,11-Aug-22,1907845621,Corona Energy Ltd,"2,346.01"
Manchester City Council,Manchester Leisure,Subsistence and Conf,11-Aug-22,1907844143,Lancashire County Council,"2,408.00"
Manchester City Council,Manchester Leisure,Gas,11-Aug-22,1907845620,Corona Energy Ltd,"2,498.27"
Manchester City Council,Chief Executives,Oth Professional Fee,11-Aug-22,5105828848,Russell & Russell Solicitors LLP,"2,583.61"
Manchester City Council,Highways Services,Stores Purchases,11-Aug-22,5105828633,Instarmac Group Ltd,"2,627.52"
Manchester City Council,Regeneration Finance,Electricity,11-Aug-22,1907845286,Scottish & Southern Energy Plc,"2,630.07"
Manchester City Council,Adult Social Care,Burials Expenditure,11-Aug-22,5105828788,Greater Manchester Funeral Service,"2,637.00"
Manchester City Council,Regeneration Finance,Gas,11-Aug-22,1907845607,Corona Energy Ltd,"2,699.36"
Manchester City Council,Manchester Leisure,Gas,11-Aug-22,1907845554,Corona Energy Ltd,"2,711.57"
Manchester City Council,Adult Social Care,Gas,11-Aug-22,1907845592,Corona Energy Ltd,"2,731.88"
Manchester City Council,Chief Executives,Oth Professional Fee,11-Aug-22,5105828817,Russell & Russell Solicitors LLP,"2,752.92"
Manchester City Council,Chief Executives,Oth Professional Fee,11-Aug-22,5105828795,Russell & Russell Solicitors LLP,"2,753.25"
Manchester City Council,Chief Executives,Oth Professional Fee,11-Aug-22,5105828823,Russell & Russell Solicitors LLP,"2,853.75"
Manchester City Council,Manchester Leisure,Sub Contractors,11-Aug-22,5105828650,Synectics Security Limited,"2,857.91"
Manchester City Council,Chief Executives,OL&B - Fees,11-Aug-22,5105828688,Buro Happold Limited,"2,888.00"
Manchester City Council,Regeneration Finance,Gas,11-Aug-22,1907845631,Corona Energy Ltd,"2,982.97"
Manchester City Council,Chief Executives,Oth Professional Fee,11-Aug-22,5105828794,Russell & Russell Solicitors LLP,"3,040.90"
Manchester City Council,Manchester Leisure,Refuse Collection ex,11-Aug-22,5105828720,GTS Steam Cleaners,"3,086.25"
Manchester City Council,Corporate Services,Other Vehicle Costs,11-Aug-22,1907845987,Cyclescheme Ltd,"3,374.17"
Manchester City Council,Chief Executives,Oth Professional Fee,11-Aug-22,5105828820,Russell & Russell Solicitors LLP,"3,439.83"
Manchester City Council,Housing Revenue Account,External Agency,11-Aug-22,5105828725,Step Enterprise Ltd,"3,600.00"
Manchester City Council,Regeneration Finance,Gas,11-Aug-22,1907845528,Corona Energy Ltd,"3,666.29"
Manchester City Council,Highways Services,Training-Day Release,11-Aug-22,5105828818,Veritas Safety Management Ltd,"3,705.00"
Manchester City Council,Childrens & Education Services,Learning Res-Not ICT,11-Aug-22,5105828657,Reform Radio CIC,"3,750.00"
Manchester City Council,Corporate Services,Oth Professional Fee,11-Aug-22,5105828660,Solace In Business Ltd,"3,786.25"
Manchester City Council,Manchester Leisure,Electricity,11-Aug-22,1907845227,Haven Power Ltd,"3,940.64"
Manchester City Council,Chief Executives,Oth Professional Fee,11-Aug-22,5105828778,Russell & Russell Solicitors LLP,"3,960.75"
Manchester City Council,Chief Executives,External Agency,11-Aug-22,5105828669,Faerfield Ltd,"4,050.00"
Manchester City Council,Adult Social Care,Equipment,11-Aug-22,5105828693,Drive Devilbiss Healthcare Ltd,"4,148.25"
Manchester City Council,Corporate Services,Oth Professional Fee,11-Aug-22,5105828701,Solace In Business Ltd,"4,368.75"
Manchester City Council,Manchester Leisure,Oth Professional Fee,11-Aug-22,5105828643,Inforhousing,"4,400.00"
Manchester City Council,Chief Executives,Oth Professional Fee,11-Aug-22,5105828824,Russell & Russell Solicitors LLP,"4,571.25"
Manchester City Council,Adult Social Care,Equipment,11-Aug-22,5105828708,Drive Devilbiss Healthcare Ltd,"4,592.56"
Manchester City Council,Manchester Leisure,Gas,11-Aug-22,1907845540,Corona Energy Ltd,"4,817.82"
Manchester City Council,Housing Revenue Account,Electricity,11-Aug-22,1907845228,Haven Power Ltd,"4,864.18"
Manchester City Council,Adult Social Care,Bed & Breakfast Acc,11-Aug-22,5105828732,Medlock House Ltd,"5,047.00"
Manchester City Council,Environment and Operations,Infra - Construction,11-Aug-22,5105828610,J.Hopkins (Contractors) Ltd.,"5,241.70"
Manchester City Council,Housing Revenue Account,External Agency,11-Aug-22,5105828724,Step Enterprise Ltd,"5,292.55"
Manchester City Council,Manchester Leisure,Gas,11-Aug-22,1907845635,Corona Energy Ltd,"5,332.62"
Manchester City Council,Highways Services,Oth Professional Fee,11-Aug-22,5105828227,Wilde Consultants Ltd,"5,371.81"
Manchester City Council,Childrens & Education Services,Other Establishments,11-Aug-22,5105828675,Staff Resources Ltd,"5,400.00"
Manchester City Council,Manchester Leisure,Gas,11-Aug-22,1907845666,Corona Energy Ltd,"5,621.90"
Manchester City Council,Childrens & Education Services,Other Establishments,11-Aug-22,5105828674,Staff Resources Ltd,"5,778.20"
Manchester City Council,Regeneration Finance,Gas,11-Aug-22,1907845605,Corona Energy Ltd,"5,791.38"
Manchester City Council,Chief Executives,OL&B - Fees,11-Aug-22,5105828681,Buro Happold Limited,"6,000.00"
Manchester City Council,Chief Executives,OL&B - Fees,11-Aug-22,5105828687,Buro Happold Limited,"6,000.00"
Manchester City Council,Manchester Leisure,Oth Professional Fee,11-Aug-22,5105828647,Inforhousing,"6,050.00"
Manchester City Council,Chief Executives,External Agency,11-Aug-22,5105828703,Ashberry Recruitment Ltd,"6,148.54"
Manchester City Council,Manchester Leisure,Gas,11-Aug-22,1907845657,Corona Energy Ltd,"6,219.69"
Manchester City Council,Adult Social Care,Voluntary Orgs TPP,11-Aug-22,5105828792,Talbot House Support Centre,"6,469.08"
Manchester City Council,Chief Executives,Printing,11-Aug-22,5105828804,Mortons Media Group Ltd,"6,786.00"
Manchester City Council,Manchester Leisure,Gas,11-Aug-22,1907845586,Corona Energy Ltd,"6,803.10"
Manchester City Council,Highways Services,Oth Professional Fee,11-Aug-22,5105828609,Wilde Consultants Ltd,"6,840.00"
Manchester City Council,Childrens & Education Services,Other Establishments,11-Aug-22,5105828678,Staff Resources Ltd,"6,967.20"
Manchester City Council,Highways Services,Electricity,11-Aug-22,1907845231,Haven Power Ltd,"7,013.45"
Manchester City Council,Childrens & Education Services,Coach Hire,11-Aug-22,5105828696,New City Cars Ltd,"7,092.00"
Manchester City Council,Chief Executives,External Agency,11-Aug-22,5105828628,New Street Consulting Group,"7,200.00"
Manchester City Council,Manchester Leisure,Other Allowances,11-Aug-22,1907844905,Tusker Direct,"7,513.18"
Manchester City Council,Regeneration Finance,General Office Exp,11-Aug-22,5105828739,Bruntwood (Heron House),"8,238.27"
Manchester City Council,Manchester Leisure,Gas,11-Aug-22,1907845645,Corona Energy Ltd,"8,962.68"
Manchester City Council,Childrens & Education Services,Other Establishments,11-Aug-22,5105828673,Staff Resources Ltd,"10,320.00"
Manchester City Council,Adult Social Care,Bed & Breakfast Acc,11-Aug-22,5105828663,Medlock House Ltd,"10,388.00"
Manchester City Council,Adult Social Care,Bed & Breakfast Acc,11-Aug-22,5105828664,Medlock House Ltd,"10,437.00"
Manchester City Council,Chief Executives,OL&B - Fees,11-Aug-22,5105828829,Charcoalblue LLP,"10,500.00"
Manchester City Council,Chief Executives,OL&B - Fees,11-Aug-22,5105828841,Charcoalblue LLP,"10,500.00"
Manchester City Council,Manchester Leisure,Gas,11-Aug-22,1907845714,Corona Energy Ltd,"10,887.48"
Manchester City Council,Regeneration Finance,Ext Rep & Main Build,11-Aug-22,5105828702,Besa Publications Ltd,"12,220.00"
Manchester City Council,Adult Social Care,Rents,11-Aug-22,5105828554,K L Properties,"12,608.84"
Manchester City Council,Housing Revenue Account,Gas,11-Aug-22,1907845711,Corona Energy Ltd,"13,219.14"
Manchester City Council,Regeneration Finance,General Office Exp,11-Aug-22,5105828740,Bruntwood (Heron House),"13,324.40"
Manchester City Council,Adult Social Care,Other Establishments,11-Aug-22,5105828737,Morelife (UK) Ltd,"13,327.00"
Manchester City Council,Hospitality + Trading Services,Vehicle Fuel Costs,11-Aug-22,5105828694,Standard Fuels Oils,"13,896.63"
Manchester City Council,Adult Social Care,Rents,11-Aug-22,1907845157,Intra City Construction Group,"15,076.00"
Manchester City Council,Housing Revenue Account,Gas,11-Aug-22,1907845579,Corona Energy Ltd,"15,480.83"
Manchester City Council,Chief Executives,OL&B - Adaptations,11-Aug-22,5105828977,H Jenkinson & Co Ltd.,"16,088.18"
Manchester City Council,Housing Revenue Account,Oth Professional Fee,11-Aug-22,5105828809,Morgan Sindall Property,"19,755.83"
Manchester City Council,Hospitality + Trading Services,Vehicle Fuel Costs,11-Aug-22,5105828783,Standard Fuels Oils,"22,448.99"
Manchester City Council,Childrens & Education Services,Voluntary Orgs TPP,11-Aug-22,5105828716,Remedi,"22,500.00"
Manchester City Council,Chief Executives,Publications,11-Aug-22,5105828665,Thompson Reuters,"24,528.78"
Manchester City Council,Manchester Leisure,Grant Expenditure,11-Aug-22,5105828719,The Duke of Edinburghs Award,"25,000.00"
Manchester City Council,Housing General Fund,Oth Rv ex fnd cp sta,11-Aug-22,5105828810,Southway Housing Trust,"25,811.64"
Manchester City Council,Environment and Operations,Infra - Construction,11-Aug-22,5105828608,J.Hopkins (Contractors) Ltd.,"27,422.22"
Manchester City Council,Housing General Fund,Oth Rv ex fnd cp sta,11-Aug-22,5105828649,Southway Housing Trust,"28,411.40"
Manchester City Council,Adult Social Care,Other Establishments,11-Aug-22,5105828734,Morelife (UK) Ltd,"28,983.00"
Manchester City Council,Adult Social Care,Rents,11-Aug-22,5105827860,Housing Social Ltd,"33,268.70"
Manchester City Council,Chief Executives,Mobilephone Charges,11-Aug-22,1907846123,EE / Orange,"41,313.50"
Manchester City Council,Regeneration Finance,Legal Fees,11-Aug-22,5105827905,Jacobs UK Ltd,"44,000.00"
Manchester City Council,Regeneration Finance,Gas,11-Aug-22,1907845710,Corona Energy Ltd,"44,198.98"
Manchester City Council,Childrens & Education Services,Oth Professional Fee,11-Aug-22,5105827737,Career Connect,"67,001.75"
Manchester City Council,Childrens & Education Services,Oth Professional Fee,11-Aug-22,5105827878,Career Connect,"67,001.75"
Manchester City Council,Environment and Operations,Infra - Construction,11-Aug-22,5105828632,J.Hopkins (Contractors) Ltd.,"69,157.57"
Manchester City Council,Adult Social Care,Rents,11-Aug-22,5105827886,Cromwood Ltd,"101,555.69"
Manchester City Council,Highways Services,Electricity,11-Aug-22,1907845232,Haven Power Ltd,"172,537.68"
Manchester City Council,Chief Executives,OL&B - Adaptations,11-Aug-22,5105828704,EQUANS Regeneration Limited,"371,068.23"
Manchester City Council,Childrens & Education Services,Other Establishments,11-Aug-22,5105828369,The Manchester College,"413,000.00"
Manchester City Council,Childrens & Education Services,Other Establishments,11-Aug-22,5105828370,The Manchester College,"894,000.00"
Manchester City Council,Corporate Services,OL&B - Construction,11-Aug-22,5105827795,Morgan Sindall C & I Ltd,"903,822.79"
Manchester City Council,General Fund,Levies - Cash Limit,11-Aug-22,1907606871,GMCA,"3,755,400.00"
Manchester City Council,Regeneration Finance,Oth Professional Fee,11-Aug-22,5105828671,Redacted Personal Information,"4,250.00"
Manchester City Council,Childrens & Education Services,Coach Hire,11-Aug-22,5105828640,Redacted Personal Information,"4,266.60"
Manchester City Council,Regeneration Finance,Oth Professional Fee,11-Aug-22,5105828727,Redacted Personal Information,"13,170.00"
Manchester City Council,Adult Social Care,Bed & Breakfast Acc,12-Aug-22,5105829020,Hala Guest House,"-17,215.00"
Manchester City Council,Childrens & Education Services,Other Establishments,12-Aug-22,5105828593,Reed Employment Plc,"-12,240.80"
Manchester City Council,Adult Social Care,Bed & Breakfast Acc,12-Aug-22,5105828993,Hala Guest House,"-7,285.00"
Manchester City Council,Chief Executives,OL&B - Fees,12-Aug-22,5105828887,Buro Happold Limited,"-1,000.00"
Manchester City Council,Adult Social Care,Consummables,12-Aug-22,1907846730,Lockhart Catering Equipment Ltd,-545.95
Manchester City Council,Adult Social Care,Consummables,12-Aug-22,1907846672,Premier Inn P CARD ONLY,-528.00
Manchester City Council,Adult Social Care,Consummables,12-Aug-22,1907846697,Premier Inn P CARD ONLY,-528.00
Manchester City Council,Adult Social Care,Consummables,12-Aug-22,1907846679,Premier Inn P CARD ONLY,-519.00
Manchester City Council,Adult Social Care,Consummables,12-Aug-22,1907846610,Premier Inn P CARD ONLY,-502.00
Manchester City Council,Adult Social Care,Consummables,12-Aug-22,1907847563,Premier Inn P CARD ONLY,500.00
Manchester City Council,Adult Social Care,Consummables,12-Aug-22,1907846943,Lockhart Catering Equipment Ltd,500.20
Manchester City Council,Adult Social Care,Consummables,12-Aug-22,1907846791,TRAVELODGE P CARD ONLY,500.75
Manchester City Council,Adult Social Care,Consummables,12-Aug-22,1907846678,MILTON MANCHESTER HOTE,501.00
Manchester City Council,Adult Social Care,Consummables,12-Aug-22,1907847533,Premier Inn P CARD ONLY,501.00
Manchester City Council,Adult Social Care,Consummables,12-Aug-22,1907847535,Premier Inn P CARD ONLY,502.00
Manchester City Council,Adult Social Care,Consummables,12-Aug-22,1907847192,TRAVELODGE P CARD ONLY,502.77
Manchester City Council,Adult Social Care,Consummables,12-Aug-22,1907847351,Lockhart Catering Equipment Ltd,502.95
Manchester City Council,Adult Social Care,Consummables,12-Aug-22,1907846421,Premier Inn P CARD ONLY,503.50
Manchester City Council,Adult Social Care,Consummables,12-Aug-22,1907847437,NOVUM MANAGEMENT GMBH,504.00
Manchester City Council,Adult Social Care,Consummables,12-Aug-22,1907847388,Premier Inn P CARD ONLY,504.50
Manchester City Council,Adult Social Care,Consummables,12-Aug-22,1907846988,Premier Inn P CARD ONLY,506.50
Manchester City Council,Adult Social Care,Consummables,12-Aug-22,1907847623,Premier Inn P CARD ONLY,507.00
Manchester City Council,Adult Social Care,Consummables,12-Aug-22,1907846415,HOTEL AT BOOKING.COM,508.00
Manchester City Council,Adult Social Care,Consummables,12-Aug-22,1907846902,NOVUM MANAGEMENT GMBH,508.00
Manchester City Council,Adult Social Care,Consummables,12-Aug-22,1907846620,HOTEL AT BOOKING.COM,510.93
Manchester City Council,Adult Social Care,Consummables,12-Aug-22,1907847418,Premier Inn P CARD ONLY,511.50
Manchester City Council,Manchester Leisure,Equipment,12-Aug-22,1907846778,DT VIDEOLABS - GBP,514.83
Manchester City Council,Childrens & Education Services,Bed & Breakfast Acc,12-Aug-22,1907846846,Premier Inn P CARD ONLY,515.10
Manchester City Council,Adult Social Care,Consummables,12-Aug-22,1907846441,NOVUM MANAGEMENT GMBH,517.00
Manchester City Council,Childrens & Education Services,Supported Accom,12-Aug-22,5105828948,A Consultancy Services Limited,520.00
Manchester City Council,Adult Social Care,Consummables,12-Aug-22,1907846970,Premier Inn P CARD ONLY,520.50
Manchester City Council,Adult Social Care,Consummables,12-Aug-22,1907847285,Premier Inn P CARD ONLY,520.50
Manchester City Council,Adult Social Care,Consummables,12-Aug-22,1907846556,TRAVELODGE P CARD ONLY,522.16
Manchester City Council,Adult Social Care,Consummables,12-Aug-22,1907846797,MILTON MANCHESTER HOTE,523.00
Manchester City Council,Manchester Leisure,Goods for Resale,12-Aug-22,5105828901,Stuart Gardiner Design Ltd,525.00
Manchester City Council,Manchester Leisure,Equipment,12-Aug-22,1907846417,SAIL FLAGS,528.60
Manchester City Council,Adult Social Care,Consummables,12-Aug-22,1907846713,Premier Inn P CARD ONLY,529.00
Manchester City Council,Adult Social Care,Consummables,12-Aug-22,1907847534,TRAVELODGE P CARD ONLY,530.32
Manchester City Council,Adult Social Care,Consummables,12-Aug-22,1907847549,Britannia Hotels PCARD ONLY,531.00
Manchester City Council,Adult Social Care,Consummables,12-Aug-22,1907847527,TRAVELODGE P CARD ONLY,531.34
Manchester City Council,Adult Social Care,Consummables,12-Aug-22,1907846539,Premier Inn P CARD ONLY,531.50
Manchester City Council,Adult Social Care,Consummables,12-Aug-22,1907847138,NOVUM MANAGEMENT GMBH,536.00
Manchester City Council,Adult Social Care,Consummables,12-Aug-22,1907846728,Premier Inn P CARD ONLY,537.00
Manchester City Council,Adult Social Care,Consummables,12-Aug-22,1907846545,ALLPAY *JOHNNIE JOHNSON H,537.32
Manchester City Council,Adult Social Care,Consummables,12-Aug-22,1907847136,TRAVELODGE P CARD ONLY,537.46
Manchester City Council,Adult Social Care,Consummables,12-Aug-22,1907847486,Premier Inn P CARD ONLY,539.00
Manchester City Council,Adult Social Care,Consummables,12-Aug-22,1907846405,MILTON MANCHESTER HOTE,540.00
Manchester City Council,Adult Social Care,Consummables,12-Aug-22,1907847255,Premier Inn P CARD ONLY,543.50
Manchester City Council,Adult Social Care,Consummables,12-Aug-22,1907847560,Lockhart Catering Equipment Ltd,544.99
Manchester City Council,Adult Social Care,Consummables,12-Aug-22,1907846687,Lockhart Catering Equipment Ltd,545.95
Manchester City Council,Adult Social Care,Consummables,12-Aug-22,1907847277,Premier Inn P CARD ONLY,548.50
Manchester City Council,Adult Social Care,Consummables,12-Aug-22,1907847305,Premier Inn P CARD ONLY,549.00
Manchester City Council,Adult Social Care,Consummables,12-Aug-22,1907846651,MILTON MANCHESTER HOTE,550.00
Manchester City Council,Adult Social Care,Consummables,12-Aug-22,1907846881,S AND S SALES MCR LTD,550.00
Manchester City Council,Adult Social Care,Consummables,12-Aug-22,1907847425,TRAVELODGE P CARD ONLY,551.71
Manchester City Council,Adult Social Care,Consummables,12-Aug-22,1907846450,Premier Inn P CARD ONLY,554.00
Manchester City Council,Adult Social Care,Consummables,12-Aug-22,1907846879,Premier Inn P CARD ONLY,555.00
Manchester City Council,Adult Social Care,Consummables,12-Aug-22,1907846484,Premier Inn P CARD ONLY,557.00
Manchester City Council,Adult Social Care,Consummables,12-Aug-22,1907847263,Premier Inn P CARD ONLY,557.50
Manchester City Council,Childrens & Education Services,Consummables,12-Aug-22,1907847167,Tameside Metropolitan Bouough,557.80
Manchester City Council,Adult Social Care,Consummables,12-Aug-22,1907846732,Premier Inn P CARD ONLY,560.50
Manchester City Council,Adult Social Care,Consummables,12-Aug-22,1907846887,NOVUM MANAGEMENT GMBH,561.00
Manchester City Council,Adult Social Care,Consummables,12-Aug-22,1907847079,Premier Inn P CARD ONLY,563.50
Manchester City Council,Adult Social Care,Consummables,12-Aug-22,1907847047,Premier Inn P CARD ONLY,564.00
Manchester City Council,Adult Social Care,Consummables,12-Aug-22,1907847163,Premier Inn P CARD ONLY,564.00
Manchester City Council,Adult Social Care,Consummables,12-Aug-22,1907846961,Premier Inn P CARD ONLY,565.00
Manchester City Council,Adult Social Care,Consummables,12-Aug-22,1907846452,Premier Inn P CARD ONLY,566.00
Manchester City Council,Adult Social Care,Consummables,12-Aug-22,1907847166,Premier Inn P CARD ONLY,567.00
Manchester City Council,Adult Social Care,Consummables,12-Aug-22,1907846836,Premier Inn P CARD ONLY,568.50
Manchester City Council,Adult Social Care,Consummables,12-Aug-22,1907846890,Premier Inn P CARD ONLY,568.50
Manchester City Council,Adult Social Care,Consummables,12-Aug-22,1907846813,NOVUM MANAGEMENT GMBH,569.00
Manchester City Council,Adult Social Care,Consummables,12-Aug-22,1907846930,TRAVELODGE P CARD ONLY,570.09
Manchester City Council,Adult Social Care,Consummables,12-Aug-22,1907846606,Premier Inn P CARD ONLY,571.00
Manchester City Council,Adult Social Care,Consummables,12-Aug-22,1907846770,TRAVELODGE P CARD ONLY,573.16
Manchester City Council,Adult Social Care,Consummables,12-Aug-22,1907847552,TRAVELODGE P CARD ONLY,573.16
Manchester City Council,Adult Social Care,Consummables,12-Aug-22,1907846544,Premier Inn P CARD ONLY,573.50
Manchester City Council,Adult Social Care,Consummables,12-Aug-22,1907847237,Lockhart Catering Equipment Ltd,573.95
Manchester City Council,Manchester Leisure,Grant Expenditure,12-Aug-22,5105829021,Barlow Moor Community Association,575.00
Manchester City Council,Adult Social Care,Consummables,12-Aug-22,1907846530,Premier Inn P CARD ONLY,577.00
Manchester City Council,Adult Social Care,Consummables,12-Aug-22,1907847052,NOVUM MANAGEMENT GMBH,580.00
Manchester City Council,Corporate Services,Consummables,12-Aug-22,1907846658,LINK UP MITAKA LTD,584.40
Manchester City Council,Adult Social Care,Consummables,12-Aug-22,1907846692,ALLPAY *MOSSCARE ST VINCE,585.00
Manchester City Council,Adult Social Care,Consummables,12-Aug-22,1907846835,Premier Inn P CARD ONLY,586.50
Manchester City Council,Adult Social Care,Consummables,12-Aug-22,1907846883,Premier Inn P CARD ONLY,586.50
Manchester City Council,Adult Social Care,Consummables,12-Aug-22,1907846888,Premier Inn P CARD ONLY,586.50
Manchester City Council,Adult Social Care,Consummables,12-Aug-22,1907847155,Premier Inn P CARD ONLY,586.50
Manchester City Council,Adult Social Care,Consummables,12-Aug-22,1907847543,Premier Inn P CARD ONLY,587.00
Manchester City Council,Chief Executives,Oth Professional Fee,12-Aug-22,1907847298,GROSVENOR HOUSE A,588.00
Manchester City Council,Adult Social Care,Consummables,12-Aug-22,1907846685,Premier Inn P CARD ONLY,588.00
Manchester City Council,Adult Social Care,Consummables,12-Aug-22,1907846563,Premier Inn P CARD ONLY,588.50
Manchester City Council,Adult Social Care,Consummables,12-Aug-22,1907846614,Premier Inn P CARD ONLY,590.50
Manchester City Council,Adult Social Care,Consummables,12-Aug-22,1907847106,Premier Inn P CARD ONLY,592.00
Manchester City Council,Adult Social Care,Consummables,12-Aug-22,1907847162,Premier Inn P CARD ONLY,592.00
Manchester City Council,Adult Social Care,Consummables,12-Aug-22,1907847170,Premier Inn P CARD ONLY,592.00
Manchester City Council,Adult Social Care,Consummables,12-Aug-22,1907847233,Premier Inn P CARD ONLY,592.50
Manchester City Council,Adult Social Care,Consummables,12-Aug-22,1907846682,TRAVELODGE P CARD ONLY,592.53
Manchester City Council,Adult Social Care,Consummables,12-Aug-22,1907846896,Premier Inn P CARD ONLY,593.50
Manchester City Council,Adult Social Care,Consummables,12-Aug-22,1907846917,Premier Inn P CARD ONLY,597.50
Manchester City Council,Chief Executives,OL&B - Fees,12-Aug-22,5105829037,Buro Happold Limited,600.00
Manchester City Council,Adult Social Care,Consummables,12-Aug-22,1907846623,GUESTHOUSE MANCHESTER,600.00
Manchester City Council,Adult Social Care,Consummables,12-Aug-22,1907846627,GUESTHOUSE MANCHESTER,600.00
Manchester City Council,Adult Social Care,Consummables,12-Aug-22,1907846645,GUESTHOUSE MANCHESTER,600.00
Manchester City Council,Adult Social Care,Consummables,12-Aug-22,1907846646,GUESTHOUSE MANCHESTER,600.00
Manchester City Council,Adult Social Care,Consummables,12-Aug-22,1907846664,GUESTHOUSE MANCHESTER,600.00
Manchester City Council,Corporate Services,Travel Season TLS,12-Aug-22,5105828918,Stagecoach Manchester,600.00
Manchester City Council,Corporate Services,Travel Season TLS,12-Aug-22,5105828919,Stagecoach Manchester,600.00
Manchester City Council,Adult Social Care,Consummables,12-Aug-22,1907847411,TRAVELODGE P CARD ONLY,601.69
Manchester City Council,Manchester Leisure,Furniture,12-Aug-22,1907846998,LAMPSHOPONLINE,602.40
Manchester City Council,Adult Social Care,Consummables,12-Aug-22,1907847124,Premier Inn P CARD ONLY,603.00
Manchester City Council,Adult Social Care,Consummables,12-Aug-22,1907846935,HOLIDAY INN P CARD ONLY,605.00
Manchester City Council,Adult Social Care,Consummables,12-Aug-22,1907846862,TRAVELODGE P CARD ONLY,605.77
Manchester City Council,Adult Social Care,Consummables,12-Aug-22,1907846876,TRAVELODGE P CARD ONLY,606.79
Manchester City Council,Adult Social Care,Consummables,12-Aug-22,1907847210,NOVUM MANAGEMENT GMBH,608.00
Manchester City Council,Chief Executives,Legal Fees,12-Aug-22,5105828864,11KBW,610.00
Manchester City Council,Adult Social Care,Consummables,12-Aug-22,1907846858,MILTON MANCHESTER HOTE,610.00
Manchester City Council,Adult Social Care,Consummables,12-Aug-22,1907847325,Premier Inn P CARD ONLY,610.00
Manchester City Council,Adult Social Care,Consummables,12-Aug-22,1907846812,HEALTH AND CARE,612.00
Manchester City Council,Adult Social Care,Consummables,12-Aug-22,1907846472,TRAVELODGE P CARD ONLY,615.98
Manchester City Council,Adult Social Care,Consummables,12-Aug-22,1907846477,Premier Inn P CARD ONLY,619.50
Manchester City Council,Adult Social Care,Consummables,12-Aug-22,1907846975,Premier Inn P CARD ONLY,620.50
Manchester City Council,Adult Social Care,Consummables,12-Aug-22,1907847056,Premier Inn P CARD ONLY,620.50
Manchester City Council,Adult Social Care,Consummables,12-Aug-22,1907846527,Premier Inn P CARD ONLY,621.00
Manchester City Council,Adult Social Care,Consummables,12-Aug-22,1907846979,Premier Inn P CARD ONLY,622.00
Manchester City Council,Adult Social Care,Consummables,12-Aug-22,1907846566,Premier Inn P CARD ONLY,623.50
Manchester City Council,Adult Social Care,Consummables,12-Aug-22,1907846569,NOVUM MANAGEMENT GMBH,624.00
Manchester City Council,Adult Social Care,Consummables,12-Aug-22,1907846640,NOVUM MANAGEMENT GMBH,624.00
Manchester City Council,Chief Executives,Paper & Envelopes,12-Aug-22,5105828934,Premier Paper Group Ltd,624.12
Manchester City Council,Adult Social Care,Consummables,12-Aug-22,1907846474,Premier Inn P CARD ONLY,625.00
Manchester City Council,Adult Social Care,Consummables,12-Aug-22,1907847331,Premier Inn P CARD ONLY,626.00
Manchester City Council,Adult Social Care,Consummables,12-Aug-22,1907846856,Premier Inn P CARD ONLY,627.50
Manchester City Council,Adult Social Care,Consummables,12-Aug-22,1907847321,Premier Inn P CARD ONLY,630.00
Manchester City Council,Adult Social Care,Consummables,12-Aug-22,1907847154,Premier Inn P CARD ONLY,633.00
Manchester City Council,Adult Social Care,Consummables,12-Aug-22,1907846542,Premier Inn P CARD ONLY,633.50
Manchester City Council,Adult Social Care,Consummables,12-Aug-22,1907846575,Premier Inn P CARD ONLY,633.50
Manchester City Council,Adult Social Care,Consummables,12-Aug-22,1907847135,Premier Inn P CARD ONLY,634.00
Manchester City Council,Adult Social Care,Consummables,12-Aug-22,1907846897,Premier Inn P CARD ONLY,634.50
Manchester City Council,Adult Social Care,Security Costs,12-Aug-22,5105828943,Ashbury Meadow Primary School,635.50
Manchester City Council,Adult Social Care,Consummables,12-Aug-22,1907847390,TRAVELODGE P CARD ONLY,636.39
Manchester City Council,Adult Social Care,Consummables,12-Aug-22,1907846811,NOVUM MANAGEMENT GMBH,639.00
Manchester City Council,Adult Social Care,Consummables,12-Aug-22,1907846781,TRAVELODGE P CARD ONLY,640.46
Manchester City Council,Adult Social Care,Consummables,12-Aug-22,1907847113,Premier Inn P CARD ONLY,641.00
Manchester City Council,Adult Social Care,Consummables,12-Aug-22,1907847116,Premier Inn P CARD ONLY,641.00
Manchester City Council,Adult Social Care,Consummables,12-Aug-22,1907846543,Premier Inn P CARD ONLY,642.50
Manchester City Council,Adult Social Care,Consummables,12-Aug-22,1907846605,Premier Inn P CARD ONLY,642.50
Manchester City Council,Adult Social Care,Consummables,12-Aug-22,1907846628,Lockhart Catering Equipment Ltd,642.95
Manchester City Council,Adult Social Care,Consummables,12-Aug-22,1907847622,HOTEL AT BOOKING.COM,643.00
Manchester City Council,Adult Social Care,Consummables,12-Aug-22,1907846553,Premier Inn P CARD ONLY,644.00
Manchester City Council,Chief Executives,OL&B - Fees,12-Aug-22,5105829051,Buro Happold Limited,650.00
Manchester City Council,Adult Social Care,Consummables,12-Aug-22,1907847612,HOTEL AT BOOKING.COM,656.00
Manchester City Council,Adult Social Care,Consummables,12-Aug-22,1907847054,TRAVELODGE P CARD ONLY,656.79
Manchester City Council,Adult Social Care,Consummables,12-Aug-22,1907847068,NOVUM MANAGEMENT GMBH,660.00
Manchester City Council,Adult Social Care,Consummables,12-Aug-22,1907847093,Premier Inn P CARD ONLY,661.00
Manchester City Council,Adult Social Care,Consummables,12-Aug-22,1907846525,Premier Inn P CARD ONLY,662.00
Manchester City Council,Adult Social Care,Consummables,12-Aug-22,1907846483,HOTEL AT BOOKING.COM,663.00
Manchester City Council,Adult Social Care,Consummables,12-Aug-22,1907846914,Lockhart Catering Equipment Ltd,663.95
Manchester City Council,Adult Social Care,Consummables,12-Aug-22,1907846531,Premier Inn P CARD ONLY,664.50
Manchester City Council,Adult Social Care,Consummables,12-Aug-22,1907847373,Premier Inn P CARD ONLY,669.00
Manchester City Council,Adult Social Care,Consummables,12-Aug-22,1907847105,MILTON MANCHESTER HOTE,670.00
Manchester City Council,Adult Social Care,Consummables,12-Aug-22,1907846515,NOVUM MANAGEMENT GMBH,671.00
Manchester City Council,Adult Social Care,Consummables,12-Aug-22,1907846520,NOVUM MANAGEMENT GMBH,671.00
Manchester City Council,Adult Social Care,Consummables,12-Aug-22,1907847241,Premier Inn P CARD ONLY,671.00
Manchester City Council,Adult Social Care,Consummables,12-Aug-22,1907846526,Premier Inn P CARD ONLY,672.50
Manchester City Council,Manchester Leisure,Consummables,12-Aug-22,1907846948,ROYAL MAIL ONLINE SHOP,680.00
Manchester City Council,Manchester Leisure,Consummables,12-Aug-22,1907847009,ROYAL MAIL ONLINE SHOP,680.00
Manchester City Council,Adult Social Care,Consummables,12-Aug-22,1907846739,TRAVELODGE P CARD ONLY,683.30
Manchester City Council,Adult Social Care,Consummables,12-Aug-22,1907846665,Lockhart Catering Equipment Ltd,688.53
Manchester City Council,Adult Social Care,Consummables,12-Aug-22,1907847576,Premier Inn P CARD ONLY,696.00
Manchester City Council,Adult Social Care,Consummables,12-Aug-22,1907847216,Premier Inn P CARD ONLY,698.50
Manchester City Council,Adult Social Care,Consummables,12-Aug-22,1907846529,TRAVELODGE P CARD ONLY,699.60
Manchester City Council,Adult Social Care,Consummables,12-Aug-22,1907846626,GUESTHOUSE MANCHESTER,700.00
Manchester City Council,Adult Social Care,Consummables,12-Aug-22,1907846642,GUESTHOUSE MANCHESTER,700.00
Manchester City Council,Adult Social Care,Consummables,12-Aug-22,1907846612,Lockhart Catering Equipment Ltd,704.99
Manchester City Council,Adult Social Care,Consummables,12-Aug-22,1907846519,Premier Inn P CARD ONLY,714.50
Manchester City Council,Adult Social Care,Consummables,12-Aug-22,1907846918,VICTORIA PARK  RE,715.00
Manchester City Council,Adult Social Care,Consummables,12-Aug-22,1907846433,NOVUM MANAGEMENT GMBH,735.00
Manchester City Council,Childrens & Education Services,Oth Professional Fee,12-Aug-22,5105827725,Choice Home Tutoring Ltd,736.66
Manchester City Council,Adult Social Care,Consummables,12-Aug-22,1907847273,Lockhart Catering Equipment Ltd,740.00
Manchester City Council,Adult Social Care,Consummables,12-Aug-22,1907847260,Premier Inn P CARD ONLY,740.50
Manchester City Council,Adult Social Care,Consummables,12-Aug-22,1907846714,NOVUM MANAGEMENT GMBH,744.00
Manchester City Council,Adult Social Care,Consummables,12-Aug-22,1907846777,Premier Inn P CARD ONLY,748.50
Manchester City Council,Adult Social Care,Consummables,12-Aug-22,1907847291,NOVUM MANAGEMENT GMBH,749.00
Manchester City Council,Childrens & Education Services,Consummables,12-Aug-22,1907846983,SP ALDI GROCERY VOUC,750.00
Manchester City Council,Adult Social Care,Consummables,12-Aug-22,1907846768,NOVUM MANAGEMENT GMBH,758.00
Manchester City Council,Adult Social Care,Consummables,12-Aug-22,1907846693,TRAVELODGE P CARD ONLY,758.80
Manchester City Council,Adult Social Care,Consummables,12-Aug-22,1907847261,Premier Inn P CARD ONLY,760.00
Manchester City Council,Adult Social Care,Consummables,12-Aug-22,1907847382,Premier Inn P CARD ONLY,767.00
Manchester City Council,Adult Social Care,Consummables,12-Aug-22,1907846471,Premier Inn P CARD ONLY,767.50
Manchester City Council,Adult Social Care,Consummables,12-Aug-22,1907847611,TRAVELODGE P CARD ONLY,769.94
Manchester City Council,Adult Social Care,Consummables,12-Aug-22,1907847080,CROWN HOMES,775.00
Manchester City Council,Adult Social Care,Consummables,12-Aug-22,1907847092,NOVUM MANAGEMENT GMBH,775.00
Manchester City Council,Adult Social Care,Consummables,12-Aug-22,1907846683,HOTEL AT BOOKING.COM,783.93
Manchester City Council,Manchester Leisure,Consummables,12-Aug-22,1907846826,MSFT * E0400J9K59,786.60
Manchester City Council,Adult Social Care,Consummables,12-Aug-22,1907847015,ADEXA.CO.UK,792.00
Manchester City Council,Manchester Leisure,Equipment,12-Aug-22,5105828904,Eagle Containers Ltd,795.00
Manchester City Council,Adult Social Care,Consummables,12-Aug-22,1907846492,MILTON MANCHESTER HOTE,795.00
Manchester City Council,Adult Social Care,Consummables,12-Aug-22,1907847156,MILTON MANCHESTER HOTE,796.00
Manchester City Council,Manchester Leisure,Legal Fees,12-Aug-22,1907846083,Calland Mellor Consulting,800.00
Manchester City Council,Adult Social Care,Consummables,12-Aug-22,1907847564,HOTEL AT BOOKING.COM,800.00
Manchester City Council,Adult Social Care,Consummables,12-Aug-22,1907847223,Lockhart Catering Equipment Ltd,800.00
Manchester City Council,Adult Social Care,Consummables,12-Aug-22,1907846898,Lockhart Catering Equipment Ltd,802.25
Manchester City Council,Adult Social Care,Consummables,12-Aug-22,1907846969,Premier Inn P CARD ONLY,805.50
Manchester City Council,Adult Social Care,Consummables,12-Aug-22,1907846399,MILTON MANCHESTER HOTE,806.00
Manchester City Council,Adult Social Care,Consummables,12-Aug-22,1907847422,Premier Inn P CARD ONLY,809.20
Manchester City Council,Adult Social Care,Consummables,12-Aug-22,1907847542,MILTON MANCHESTER HOTE,812.00
Manchester City Council,Chief Executives,Equipment,12-Aug-22,1907847077,ZOOM.US 888-799-9666,813.78
Manchester City Council,Adult Social Care,Gas,12-Aug-22,5105828944,Ashbury Meadow Primary School,817.01
Manchester City Council,Adult Social Care,Consummables,12-Aug-22,1907846465,Premier Inn P CARD ONLY,820.00
Manchester City Council,Chief Executives,Paper & Envelopes,12-Aug-22,5105828935,Premier Paper Group Ltd,821.68
Manchester City Council,Adult Social Care,Consummables,12-Aug-22,1907847280,MILTON MANCHESTER HOTE,824.00
Manchester City Council,Adult Social Care,Consummables,12-Aug-22,1907846448,Premier Inn P CARD ONLY,825.00
Manchester City Council,Childrens & Education Services,Coach Hire,12-Aug-22,5105828869,Westfield Minibuses,825.00
Manchester City Council,Highways Services,Direct Materials,12-Aug-22,5105828337,Rosgal Ltd,828.00
Manchester City Council,Adult Social Care,Consummables,12-Aug-22,1907846694,NOVUM MANAGEMENT GMBH,832.00
Manchester City Council,Manchester Leisure,Other Indirect Emp,12-Aug-22,5105828710,Break into Business Ltd,838.20
Manchester City Council,Manchester Leisure,Other Indirect Emp,12-Aug-22,5105828715,Break into Business Ltd,838.20
Manchester City Council,Chief Executives,Hire of Equipment,12-Aug-22,5105828913,Universal Live,840.00
Manchester City Council,Adult Social Care,Consummables,12-Aug-22,1907847198,NOVUM MANAGEMENT GMBH,843.00
Manchester City Council,Adult Social Care,Consummables,12-Aug-22,1907846511,TRAVELODGE P CARD ONLY,848.51
Manchester City Council,Chief Executives,OL&B - Fees,12-Aug-22,5105829039,Buro Happold Limited,850.00
Manchester City Council,Adult Social Care,Consummables,12-Aug-22,1907847253,Lockhart Catering Equipment Ltd,852.28
Manchester City Council,Adult Social Care,Consummables,12-Aug-22,1907846524,TRAVELODGE P CARD ONLY,854.64
Manchester City Council,Adult Social Care,Consummables,12-Aug-22,1907847441,YA HALA,855.00
Manchester City Council,Adult Social Care,Consummables,12-Aug-22,1907847588,Premier Inn P CARD ONLY,855.10
Manchester City Council,Adult Social Care,Consummables,12-Aug-22,1907847336,TRAVELODGE P CARD ONLY,860.75
Manchester City Council,Adult Social Care,Consummables,12-Aug-22,1907846547,Premier Inn P CARD ONLY,863.60
Manchester City Council,Adult Social Care,Consummables,12-Aug-22,1907847483,Premier Inn P CARD ONLY,875.00
Manchester City Council,Adult Social Care,Consummables,12-Aug-22,1907847084,NOVUM MANAGEMENT GMBH,885.00
Manchester City Council,Adult Social Care,Consummables,12-Aug-22,1907847097,NOVUM MANAGEMENT GMBH,885.00
Manchester City Council,Adult Social Care,Consummables,12-Aug-22,1907846990,Premier Inn P CARD ONLY,918.00
Manchester City Council,Highways Services,Direct Materials,12-Aug-22,5105828337,Rosgal Ltd,931.50
Manchester City Council,Adult Social Care,Consummables,12-Aug-22,1907847027,MILTON MANCHESTER HOTE,952.00
Manchester City Council,Adult Social Care,Consummables,12-Aug-22,1907847205,Lockhart Catering Equipment Ltd,953.20
Manchester City Council,Adult Social Care,Consummables,12-Aug-22,1907846977,Premier Inn P CARD ONLY,955.50
Manchester City Council,Adult Social Care,Consummables,12-Aug-22,1907846724,Premier Inn P CARD ONLY,957.00
Manchester City Council,Adult Social Care,Consummables,12-Aug-22,1907846389,NOVUM MANAGEMENT GMBH,958.00
Manchester City Council,Adult Social Care,Consummables,12-Aug-22,1907846621,NOVUM MANAGEMENT GMBH,958.00
Manchester City Council,Manchester Leisure,Cont Cleaning - Ext,12-Aug-22,5105829006,Biffa Municipal Limited,973.88
Manchester City Council,Adult Social Care,Consummables,12-Aug-22,1907846851,Premier Inn P CARD ONLY,978.00
Manchester City Council,Adult Social Care,Consummables,12-Aug-22,1907847531,TRAVELODGE P CARD ONLY,978.03
Manchester City Council,Adult Social Care,Consummables,12-Aug-22,1907846788,MILTON MANCHESTER HOTE,983.00
Manchester City Council,Adult Social Care,Consummables,12-Aug-22,1907847466,Premier Inn P CARD ONLY,984.00
Manchester City Council,Adult Social Care,Consummables,12-Aug-22,1907847475,Premier Inn P CARD ONLY,984.00
Manchester City Council,Adult Social Care,Consummables,12-Aug-22,1907847234,Premier Inn P CARD ONLY,991.00
Manchester City Council,Adult Social Care,Consummables,12-Aug-22,1907847507,Premier Inn P CARD ONLY,996.00
Manchester City Council,Chief Executives,OL&B - Fees,12-Aug-22,5105829053,Buro Happold Limited,"1,000.00"
Manchester City Council,Chief Executives,OL&B - Fees,12-Aug-22,5105828884,Buro Happold Limited,"1,000.00"
Manchester City Council,Chief Executives,OL&B - Fees,12-Aug-22,5105828885,Buro Happold Limited,"1,000.00"
Manchester City Council,Chief Executives,OL&B - Fees,12-Aug-22,5105828888,Buro Happold Limited,"1,000.00"
Manchester City Council,Chief Executives,OL&B - Fees,12-Aug-22,5105828889,Buro Happold Limited,"1,000.00"
Manchester City Council,Adult Social Care,Consummables,12-Aug-22,1907847021,TRAVELODGE P CARD ONLY,"1,005.57"
Manchester City Council,Adult Social Care,Consummables,12-Aug-22,1907846423,MILTON MANCHESTER HOTE,"1,008.00"
Manchester City Council,Corporate Services,Legal Fees,12-Aug-22,1907846072,Peasegoods,"1,010.00"
Manchester City Council,Adult Social Care,Consummables,12-Aug-22,1907847572,Premier Inn P CARD ONLY,"1,011.00"
Manchester City Council,Manchester Leisure,Consummables,12-Aug-22,1907847436,BACK CARE SOLUTIONS,"1,018.80"
Manchester City Council,Adult Social Care,Consummables,12-Aug-22,1907846941,HOTEL AT BOOKING.COM,"1,023.36"
Manchester City Council,Adult Social Care,Consummables,12-Aug-22,1907847343,Premier Inn P CARD ONLY,"1,028.00"
Manchester City Council,Adult Social Care,Consummables,12-Aug-22,1907846752,MILTON MANCHESTER HOTE,"1,033.00"
Manchester City Council,Adult Social Care,Consummables,12-Aug-22,1907847409,Premier Inn P CARD ONLY,"1,035.30"
Manchester City Council,Hospitality + Trading Services,Hire of Machinery,12-Aug-22,5105828865,R & M Developments Ltd,"1,038.50"
Manchester City Council,Adult Social Care,Consummables,12-Aug-22,1907847075,TRAVELODGE P CARD ONLY,"1,045.35"
Manchester City Council,Adult Social Care,Consummables,12-Aug-22,1907847593,TRAVELODGE P CARD ONLY,"1,048.41"
Manchester City Council,Adult Social Care,Consummables,12-Aug-22,1907846650,NOVUM MANAGEMENT GMBH,"1,054.00"
Manchester City Council,Adult Social Care,Consummables,12-Aug-22,1907847172,Premier Inn P CARD ONLY,"1,056.00"
Manchester City Council,Adult Social Care,Consummables,12-Aug-22,1907847342,Premier Inn P CARD ONLY,"1,078.00"
Manchester City Council,Adult Social Care,Consummables,12-Aug-22,1907847065,NOVUM MANAGEMENT GMBH,"1,080.00"
Manchester City Council,Adult Social Care,Consummables,12-Aug-22,1907847238,Lockhart Catering Equipment Ltd,"1,090.00"
Manchester City Council,Adult Social Care,Consummables,12-Aug-22,1907846893,Premier Inn P CARD ONLY,"1,092.00"
Manchester City Council,Highways Services,Other Indirect Emp,12-Aug-22,5105828851,PTRC Education & Research Services,"1,095.00"
Manchester City Council,Adult Social Care,Consummables,12-Aug-22,1907847577,Premier Inn P CARD ONLY,"1,101.00"
Manchester City Council,Adult Social Care,Consummables,12-Aug-22,1907846666,WWW.IDEALLODGINGS.CO.U,"1,120.00"
Manchester City Council,Environment and Operations,Infra - Construction,12-Aug-22,5105828752,J.Hopkins (Contractors) Ltd.,"1,121.90"
Manchester City Council,Adult Social Care,Consummables,12-Aug-22,1907846867,NOVUM MANAGEMENT GMBH,"1,122.00"
Manchester City Council,Adult Social Care,Consummables,12-Aug-22,1907847111,Premier Inn P CARD ONLY,"1,125.00"
Manchester City Council,Adult Social Care,Consummables,12-Aug-22,1907846763,MILTON MANCHESTER HOTE,"1,132.00"
Manchester City Council,Adult Social Care,Consummables,12-Aug-22,1907847378,MILTON MANCHESTER HOTE,"1,146.00"
Manchester City Council,Adult Social Care,Consummables,12-Aug-22,1907846796,TRAVELODGE P CARD ONLY,"1,146.33"
Manchester City Council,Childrens & Education Services,Oth Professional Fee,12-Aug-22,5105827724,Choice Home Tutoring Ltd,"1,161.66"
Manchester City Council,Adult Social Care,Consummables,12-Aug-22,1907846459,Premier Inn P CARD ONLY,"1,170.00"
Manchester City Council,Manchester Leisure,Consummables,12-Aug-22,1907846939,BLACKBOX AV,"1,179.96"
Manchester City Council,Adult Social Care,Consummables,12-Aug-22,1907846700,Premier Inn P CARD ONLY,"1,182.00"
Manchester City Council,Adult Social Care,Consummables,12-Aug-22,1907847228,Lockhart Catering Equipment Ltd,"1,182.11"
Manchester City Council,Adult Social Care,Consummables,12-Aug-22,1907847529,Premier Inn P CARD ONLY,"1,203.00"
Manchester City Council,Adult Social Care,Consummables,12-Aug-22,1907847548,Premier Inn P CARD ONLY,"1,203.00"
Manchester City Council,Adult Social Care,Consummables,12-Aug-22,1907847259,Lockhart Catering Equipment Ltd,"1,210.95"
Manchester City Council,Adult Social Care,Oth Professional Fee,12-Aug-22,5105828916,Pure Innovations Ltd,"1,211.00"
Manchester City Council,Adult Social Care,Consummables,12-Aug-22,1907846991,MILTON MANCHESTER HOTE,"1,212.00"
Manchester City Council,Adult Social Care,Consummables,12-Aug-22,1907847539,MILTON MANCHESTER HOTE,"1,217.00"
Manchester City Council,Adult Social Care,Consummables,12-Aug-22,1907847160,Premier Inn P CARD ONLY,"1,232.00"
Manchester City Council,Chief Executives,OL&B - Fees,12-Aug-22,5105829034,Browne Jacobson,"1,234.50"
Manchester City Council,Adult Social Care,Consummables,12-Aug-22,1907846754,NOVUM MANAGEMENT GMBH,"1,237.00"
Manchester City Council,Adult Social Care,Consummables,12-Aug-22,1907847470,NOVUM MANAGEMENT GMBH,"1,237.00"
Manchester City Council,Adult Social Care,Consummables,12-Aug-22,1907846956,Premier Inn P CARD ONLY,"1,242.00"
Manchester City Council,Adult Social Care,Consummables,12-Aug-22,1907846431,Premier Inn P CARD ONLY,"1,248.00"
Manchester City Council,Adult Social Care,Consummables,12-Aug-22,1907846882,BERGINS ESTATE AGENCY,"1,248.36"
Manchester City Council,Manchester Leisure,Legal Fees,12-Aug-22,1907846082,Trinity Chambers,"1,250.00"
Manchester City Council,Adult Social Care,Consummables,12-Aug-22,1907847288,Premier Inn P CARD ONLY,"1,264.00"
Manchester City Council,Adult Social Care,Consummables,12-Aug-22,1907847296,Premier Inn P CARD ONLY,"1,286.00"
Manchester City Council,Adult Social Care,Consummables,12-Aug-22,1907847147,NOVUM MANAGEMENT GMBH,"1,290.00"
Manchester City Council,Adult Social Care,Consummables,12-Aug-22,1907847086,TRAVELODGE P CARD ONLY,"1,309.53"
Manchester City Council,Adult Social Care,Consummables,12-Aug-22,1907847019,MILTON MANCHESTER HOTE,"1,312.00"
Manchester City Council,Adult Social Care,Consummables,12-Aug-22,1907846674,NOVUM MANAGEMENT GMBH,"1,320.00"
Manchester City Council,Adult Social Care,Consummables,12-Aug-22,1907847247,NOVUM MANAGEMENT GMBH,"1,324.00"
Manchester City Council,Adult Social Care,Consummables,12-Aug-22,1907847211,Lockhart Catering Equipment Ltd,"1,325.50"
Manchester City Council,Adult Social Care,Consummables,12-Aug-22,1907847407,TRAVELODGE P CARD ONLY,"1,331.97"
Manchester City Council,Adult Social Care,Consummables,12-Aug-22,1907846499,NOVUM MANAGEMENT GMBH,"1,335.00"
Manchester City Council,Adult Social Care,Consummables,12-Aug-22,1907846839,Premier Inn P CARD ONLY,"1,335.00"
Manchester City Council,Adult Social Care,Consummables,12-Aug-22,1907846820,ROOMS4NOW MY-PLACES,"1,336.81"
Manchester City Council,Adult Social Care,Consummables,12-Aug-22,1907847055,ROOMS4NOW MY-PLACES,"1,336.81"
Manchester City Council,Adult Social Care,Consummables,12-Aug-22,1907847295,ROOMS4NOW MY-PLACES,"1,336.81"
Manchester City Council,Adult Social Care,Consummables,12-Aug-22,1907847615,ROOMS4NOW MY-PLACES,"1,336.81"
Manchester City Council,Adult Social Care,Consummables,12-Aug-22,1907847601,TRAVELODGE P CARD ONLY,"1,346.23"
Manchester City Council,Adult Social Care,Consummables,12-Aug-22,1907847249,Lockhart Catering Equipment Ltd,"1,350.16"
Manchester City Council,Adult Social Care,Consummables,12-Aug-22,1907847178,Premier Inn P CARD ONLY,"1,356.00"
Manchester City Council,Chief Executives,Oth Professional Fee,12-Aug-22,5105828938,Russell & Russell Solicitors LLP,"1,360.00"
Manchester City Council,Childrens & Education Services,Oth Professional Fee,12-Aug-22,5105827723,Choice Home Tutoring Ltd,"1,361.67"
Manchester City Council,Adult Social Care,Consummables,12-Aug-22,1907847299,TRAVELODGE P CARD ONLY,"1,378.89"
Manchester City Council,Adult Social Care,Consummables,12-Aug-22,1907846390,HOTEL AT BOOKING.COM,"1,384.57"
Manchester City Council,Adult Social Care,Consummables,12-Aug-22,1907847610,NOVUM MANAGEMENT GMBH,"1,398.00"
Manchester City Council,Adult Social Care,Consummables,12-Aug-22,1907847195,NORMANHURST HOTEL,"1,400.00"
Manchester City Council,Adult Social Care,Consummables,12-Aug-22,1907846999,TRIVELLES ECCLES HOTEL,"1,400.00"
Manchester City Council,Adult Social Care,Consummables,12-Aug-22,1907847005,TRIVELLES ECCLES HOTEL,"1,400.00"
Manchester City Council,Adult Social Care,Consummables,12-Aug-22,1907847026,TRIVELLES ECCLES HOTEL,"1,400.00"
Manchester City Council,Adult Social Care,Consummables,12-Aug-22,1907847031,TRIVELLES ECCLES HOTEL,"1,400.00"
Manchester City Council,Adult Social Care,Consummables,12-Aug-22,1907847039,TRIVELLES ECCLES HOTEL,"1,400.00"
Manchester City Council,Adult Social Care,Consummables,12-Aug-22,1907847624,TRAVELODGE P CARD ONLY,"1,419.59"
Manchester City Council,Manchester Leisure,Direct Materials,12-Aug-22,5105828982,E Smith & Son (Nurserymen),"1,419.80"
Manchester City Council,Adult Social Care,Consummables,12-Aug-22,1907847024,Premier Inn P CARD ONLY,"1,422.00"
Manchester City Council,Adult Social Care,Burials Expenditure,12-Aug-22,5105827771,Greater Manchester Funeral Service,"1,427.00"
Manchester City Council,Adult Social Care,Consummables,12-Aug-22,1907847139,HOTEL AT BOOKING.COM,"1,435.00"
Manchester City Council,Adult Social Care,Consummables,12-Aug-22,1907846503,MILTON MANCHESTER HOTE,"1,438.00"
Manchester City Council,Adult Social Care,Voluntary Orgs TPP,12-Aug-22,5105828893,Reach out to the Community,"1,440.00"
Manchester City Council,Adult Social Care,Voluntary Orgs TPP,12-Aug-22,5105828896,Reach out to the Community,"1,440.00"
Manchester City Council,Adult Social Care,Consummables,12-Aug-22,1907846712,NOVUM MANAGEMENT GMBH,"1,448.00"
Manchester City Council,Highways Services,Direct Materials,12-Aug-22,5105828336,Rosgal Ltd,"1,449.00"
Manchester City Council,Chief Executives,OL&B - Fees,12-Aug-22,5105829032,Buro Happold Limited,"1,450.00"
Manchester City Council,Adult Social Care,Consummables,12-Aug-22,1907847037,MILTON MANCHESTER HOTE,"1,454.00"
Manchester City Council,Adult Social Care,Consummables,12-Aug-22,1907846707,TRAVELODGE P CARD ONLY,"1,464.55"
Manchester City Council,Adult Social Care,Consummables,12-Aug-22,1907846670,HOTEL AT BOOKING.COM,"1,481.04"
Manchester City Council,Manchester Leisure,Equipment,12-Aug-22,1907846677,CURRYS ONLINE,"1,483.31"
Manchester City Council,Adult Social Care,Voluntary Orgs TPP,12-Aug-22,5105828895,Reach out to the Community,"1,488.00"
Manchester City Council,Manchester Leisure,Hire of Machinery,12-Aug-22,5105828985,Bradshaw Lawnmover Engineers,"1,504.69"
Manchester City Council,Adult Social Care,Consummables,12-Aug-22,1907846698,TRAVELODGE P CARD ONLY,"1,507.43"
Manchester City Council,Adult Social Care,Consummables,12-Aug-22,1907847315,IZ *DJ SUITES THE,"1,540.00"
Manchester City Council,Adult Social Care,Consummables,12-Aug-22,1907847327,IZ *DJ SUITES THE,"1,540.00"
Manchester City Council,Adult Social Care,Consummables,12-Aug-22,1907847396,IZ *DJ SUITES THE,"1,540.00"
Manchester City Council,Adult Social Care,Consummables,12-Aug-22,1907847326,KENNEDY WRIGHT ASSETS LTD,"1,540.00"
Manchester City Council,Adult Social Care,Consummables,12-Aug-22,1907847328,KENNEDY WRIGHT ASSETS LTD,"1,540.00"
Manchester City Council,Adult Social Care,Consummables,12-Aug-22,1907847334,KENNEDY WRIGHT ASSETS LTD,"1,540.00"
Manchester City Council,Adult Social Care,Consummables,12-Aug-22,1907847345,KENNEDY WRIGHT ASSETS LTD,"1,540.00"
Manchester City Council,Adult Social Care,Consummables,12-Aug-22,1907847349,KENNEDY WRIGHT ASSETS LTD,"1,540.00"
Manchester City Council,Adult Social Care,Consummables,12-Aug-22,1907847354,KENNEDY WRIGHT ASSETS LTD,"1,540.00"
Manchester City Council,Adult Social Care,Consummables,12-Aug-22,1907847362,KENNEDY WRIGHT ASSETS LTD,"1,540.00"
Manchester City Council,Adult Social Care,Consummables,12-Aug-22,1907847364,KENNEDY WRIGHT ASSETS LTD,"1,540.00"
Manchester City Council,Adult Social Care,Consummables,12-Aug-22,1907847368,KENNEDY WRIGHT ASSETS LTD,"1,540.00"
Manchester City Council,Adult Social Care,Consummables,12-Aug-22,1907847377,KENNEDY WRIGHT ASSETS LTD,"1,540.00"
Manchester City Council,Adult Social Care,Consummables,12-Aug-22,1907847379,KENNEDY WRIGHT ASSETS LTD,"1,540.00"
Manchester City Council,Adult Social Care,Consummables,12-Aug-22,1907847383,KENNEDY WRIGHT ASSETS LTD,"1,540.00"
Manchester City Council,Adult Social Care,Consummables,12-Aug-22,1907847012,LH PAYMENTS,"1,540.00"
Manchester City Council,Adult Social Care,Consummables,12-Aug-22,1907847142,LH PAYMENTS,"1,540.00"
Manchester City Council,Adult Social Care,Consummables,12-Aug-22,1907846710,PARK CITY SUITES HOTEL,"1,540.00"
Manchester City Council,Adult Social Care,Consummables,12-Aug-22,1907846722,PARK CITY SUITES HOTEL,"1,540.00"
Manchester City Council,Adult Social Care,Consummables,12-Aug-22,1907846795,PARK CITY SUITES HOTEL,"1,540.00"
Manchester City Council,Adult Social Care,Consummables,12-Aug-22,1907846818,PARK CITY SUITES HOTEL,"1,540.00"
Manchester City Council,Adult Social Care,Consummables,12-Aug-22,1907846823,PARK CITY SUITES HOTEL,"1,540.00"
Manchester City Council,Adult Social Care,Consummables,12-Aug-22,1907846880,PARK CITY SUITES HOTEL,"1,540.00"
Manchester City Council,Adult Social Care,Consummables,12-Aug-22,1907847410,PARK CITY SUITES HOTEL,"1,540.00"
Manchester City Council,Adult Social Care,Consummables,12-Aug-22,1907847423,PARK CITY SUITES HOTEL,"1,540.00"
Manchester City Council,Adult Social Care,Consummables,12-Aug-22,1907847457,PARK CITY SUITES HOTEL,"1,540.00"
Manchester City Council,Adult Social Care,Consummables,12-Aug-22,1907847532,PARK CITY SUITES HOTEL,"1,540.00"
Manchester City Council,Adult Social Care,Consummables,12-Aug-22,1907847597,PARK CITY SUITES HOTEL,"1,540.00"
Manchester City Council,Adult Social Care,Consummables,12-Aug-22,1907847614,PARK CITY SUITES HOTEL,"1,540.00"
Manchester City Council,Adult Social Care,Consummables,12-Aug-22,1907847401,PARK VIEW RESIDENCE,"1,540.00"
Manchester City Council,Adult Social Care,Consummables,12-Aug-22,1907847429,PARK VIEW RESIDENCE,"1,540.00"
Manchester City Council,Adult Social Care,Consummables,12-Aug-22,1907847439,PARK VIEW RESIDENCE,"1,540.00"
Manchester City Council,Adult Social Care,Consummables,12-Aug-22,1907847446,PARK VIEW RESIDENCE,"1,540.00"
Manchester City Council,Adult Social Care,Consummables,12-Aug-22,1907847450,PARK VIEW RESIDENCE,"1,540.00"
Manchester City Council,Adult Social Care,Consummables,12-Aug-22,1907847460,PARK VIEW RESIDENCE,"1,540.00"
Manchester City Council,Adult Social Care,Consummables,12-Aug-22,1907847481,PARK VIEW RESIDENCE,"1,540.00"
Manchester City Council,Adult Social Care,Consummables,12-Aug-22,1907847488,PARK VIEW RESIDENCE,"1,540.00"
Manchester City Council,Adult Social Care,Consummables,12-Aug-22,1907847490,PARK VIEW RESIDENCE,"1,540.00"
Manchester City Council,Adult Social Care,Consummables,12-Aug-22,1907847495,PARK VIEW RESIDENCE,"1,540.00"
Manchester City Council,Adult Social Care,Consummables,12-Aug-22,1907846997,TRIVELLES ECCLES HOTEL,"1,540.00"
Manchester City Council,Adult Social Care,Consummables,12-Aug-22,1907847040,TRIVELLES ECCLES HOTEL,"1,540.00"
Manchester City Council,Adult Social Care,Consummables,12-Aug-22,1907847308,MILTON MANCHESTER HOTE,"1,587.00"
Manchester City Council,Regeneration Finance,Stationery,12-Aug-22,5105828899,Digital ID Ltd,"1,599.80"
Manchester City Council,Corporate Services,Consummables,12-Aug-22,1907846891,RADISSON BLU MANCHESTER F,"1,615.60"
Manchester City Council,Adult Social Care,Consummables,12-Aug-22,1907847547,Lockhart Catering Equipment Ltd,"1,619.16"
Manchester City Council,Adult Social Care,Consummables,12-Aug-22,1907846866,Premier Inn P CARD ONLY,"1,624.50"
Manchester City Council,Adult Social Care,Oth Professional Fee,12-Aug-22,5105828364,Baltimore Consulting Ltd,"1,625.00"
Manchester City Council,Highways Services,Other Indirect Emp,12-Aug-22,5105828998,Synergie Training,"1,625.00"
Manchester City Council,Adult Social Care,Consummables,12-Aug-22,1907846718,MILTON MANCHESTER HOTE,"1,644.00"
Manchester City Council,Manchester Leisure,Legal Fees,12-Aug-22,1907846084,Trinity Chambers,"1,650.00"
Manchester City Council,Chief Executives,Oth Professional Fee,12-Aug-22,5105828960,Russell & Russell Solicitors LLP,"1,667.05"
Manchester City Council,Adult Social Care,Other Indirect Emp,12-Aug-22,5105828949,Calm Training Limted,"1,670.44"
Manchester City Council,Childrens & Education Services,Cont Cleaning - Ext,12-Aug-22,5105828964,Brighter Beginnings Day Nursery,"1,673.43"
Manchester City Council,Childrens & Education Services,Cont Cleaning - Ext,12-Aug-22,5105828968,Brighter Beginnings Day Nursery,"1,673.43"
Manchester City Council,Adult Social Care,Consummables,12-Aug-22,1907847570,Premier Inn P CARD ONLY,"1,674.00"
Manchester City Council,Adult Social Care,Consummables,12-Aug-22,1907846438,MILTON MANCHESTER HOTE,"1,678.00"
Manchester City Council,Adult Social Care,External Agency,12-Aug-22,5105828855,Reed Employment Plc,"1,679.16"
Manchester City Council,Adult Social Care,External Agency,12-Aug-22,5105828857,Reed Employment Plc,"1,679.16"
Manchester City Council,Adult Social Care,Consummables,12-Aug-22,1907847017,TRIVELLES ECCLES HOTEL,"1,680.00"
Manchester City Council,Adult Social Care,Consummables,12-Aug-22,1907846451,Premier Inn P CARD ONLY,"1,692.00"
Manchester City Council,Adult Social Care,Consummables,12-Aug-22,1907847501,NOVUM MANAGEMENT GMBH,"1,700.00"
Manchester City Council,Adult Social Care,Consummables,12-Aug-22,1907847121,Premier Inn P CARD ONLY,"1,701.00"
Manchester City Council,Adult Social Care,Consummables,12-Aug-22,1907847169,Premier Inn P CARD ONLY,"1,701.00"
Manchester City Council,Adult Social Care,Consummables,12-Aug-22,1907847157,Lockhart Catering Equipment Ltd,"1,703.83"
Manchester City Council,Adult Social Care,Consummables,12-Aug-22,1907847070,WWW.LUXINN.CO.UK,"1,710.00"
Manchester City Council,Adult Social Care,Consummables,12-Aug-22,1907846558,Premier Inn P CARD ONLY,"1,720.50"
Manchester City Council,Chief Executives,Oth Professional Fee,12-Aug-22,5105828937,Russell & Russell Solicitors LLP,"1,731.25"
Manchester City Council,Adult Social Care,Consummables,12-Aug-22,1907847270,TRAVELODGE P CARD ONLY,"1,745.97"
Manchester City Council,Adult Social Care,Consummables,12-Aug-22,1907847153,Premier Inn P CARD ONLY,"1,771.50"
Manchester City Council,Adult Social Care,Consummables,12-Aug-22,1907846469,MILTON MANCHESTER HOTE,"1,787.00"
Manchester City Council,Manchester Leisure,Oth Professional Fee,12-Aug-22,1907845196,Indigo Moon Artist,"1,800.00"
Manchester City Council,Adult Social Care,Consummables,12-Aug-22,1907846675,JOTS CONSULTANCY LTD,"1,800.00"
Manchester City Council,Adult Social Care,Consummables,12-Aug-22,1907846727,JOTS CONSULTANCY LTD,"1,800.00"
Manchester City Council,Adult Social Care,Consummables,12-Aug-22,1907847607,TRAVELODGE P CARD ONLY,"1,817.37"
Manchester City Council,Adult Social Care,Consummables,12-Aug-22,1907846934,TRAVELODGE P CARD ONLY,"1,817.45"
Manchester City Council,Regeneration Finance,Consummables,12-Aug-22,1907846944,ONLINE ERGONOMICS LTD,"1,825.06"
Manchester City Council,Adult Social Care,Consummables,12-Aug-22,1907846720,NOVUM MANAGEMENT GMBH,"1,840.00"
Manchester City Council,Environment and Operations,Infra - Construction,12-Aug-22,5105828856,GMCA,"1,850.65"
Manchester City Council,Childrens & Education Services,PNOR-Other Amenities,12-Aug-22,1907847289,HOTEL AT BOOKING.COM,"1,851.30"
Manchester City Council,Adult Social Care,Consummables,12-Aug-22,1907846475,TRAVELODGE P CARD ONLY,"1,988.71"
Manchester City Council,Chief Executives,Oth Professional Fee,12-Aug-22,5105828936,Russell & Russell Solicitors LLP,"1,990.50"
Manchester City Council,Adult Social Care,Consummables,12-Aug-22,1907847630,TRAVELODGE P CARD ONLY,"1,996.89"
Manchester City Council,Adult Social Care,Consummables,12-Aug-22,1907846901,TRAVELODGE P CARD ONLY,"1,998.93"
Manchester City Council,Chief Executives,External Agency,12-Aug-22,5105828878,Adecco Uk Ltd,"2,000.00"
Manchester City Council,Adult Social Care,Consummables,12-Aug-22,1907846750,NOVUM MANAGEMENT GMBH,"2,000.00"
Manchester City Council,Adult Social Care,Consummables,12-Aug-22,1907847359,Lockhart Catering Equipment Ltd,"2,000.58"
Manchester City Council,Adult Social Care,Consummables,12-Aug-22,1907847003,MILTON MANCHESTER HOTE,"2,114.00"
Manchester City Council,Adult Social Care,Consummables,12-Aug-22,1907847574,Lockhart Catering Equipment Ltd,"2,186.28"
Manchester City Council,Chief Executives,Oth Professional Fee,12-Aug-22,5105828959,Russell & Russell Solicitors LLP,"2,213.40"
Manchester City Council,Adult Social Care,Consummables,12-Aug-22,1907847432,HOTEL AT BOOKING.COM,"2,225.30"
Manchester City Council,Childrens & Education Services,Cont Cleaning - Ext,12-Aug-22,5105828967,Brighter Beginnings (Charlestown),"2,231.25"
Manchester City Council,Childrens & Education Services,Cont Cleaning - Ext,12-Aug-22,5105828965,Brighter Beginnings (Newton Heath),"2,231.25"
Manchester City Council,Childrens & Education Services,Cont Cleaning - Ext,12-Aug-22,5105828966,Brighter Beginnings Day Nursery,"2,231.25"
Manchester City Council,Adult Social Care,Consummables,12-Aug-22,1907846775,HOLIDAY INN P CARD ONLY,"2,282.00"
Manchester City Council,Regeneration Finance,Oth Professional Fee,12-Aug-22,5105828867,Mott Macdonald Uk Limited,"2,330.00"
Manchester City Council,Adult Social Care,Consummables,12-Aug-22,1907846873,S AND S SALES MCR LTD,"2,346.28"
Manchester City Council,Childrens & Education Services,Oth Professional Fee,12-Aug-22,5105828955,UNCIEF,"2,350.00"
Manchester City Council,Adult Social Care,Consummables,12-Aug-22,1907846993,MILTON MANCHESTER HOTE,"2,372.00"
Manchester City Council,Adult Social Care,Consummables,12-Aug-22,1907847462,JOTS CONSULTANCY LTD,"2,400.00"
Manchester City Council,Hospitality + Trading Services,Cremations Expend,12-Aug-22,5105828636,The Saville Group Ltd,"2,400.00"
Manchester City Council,Adult Social Care,Equipment,12-Aug-22,5105829041,Roma Medical Ltd,"2,486.00"
Manchester City Council,Adult Social Care,Consummables,12-Aug-22,1907846681,HIE MANCHESTER EAST,"2,488.73"
Manchester City Council,Manchester Leisure,Special Event,12-Aug-22,5105828699,Go Traffic Management Limited,"2,500.00"
Manchester City Council,Environment and Operations,Infra - Construction,12-Aug-22,5105828961,Kings Chambers,"2,500.00"
Manchester City Council,Adult Social Care,Consummables,12-Aug-22,1907846906,Premier Inn P CARD ONLY,"2,526.00"
Manchester City Council,Adult Social Care,Consummables,12-Aug-22,1907847338,S AND S SALES MCR LTD,"2,594.99"
Manchester City Council,Adult Social Care,Consummables,12-Aug-22,1907847594,NOVUM MANAGEMENT GMBH,"2,595.00"
Manchester City Council,Environment and Operations,Infra - Construction,12-Aug-22,5105828729,Wilde Consultants Ltd,"2,607.75"
Manchester City Council,Manchester Leisure,Consummables,12-Aug-22,1907846985,COBWEB SOLUTIONS LIMIT,"2,721.63"
Manchester City Council,Adult Social Care,Electricity,12-Aug-22,5105828942,Ashbury Meadow Primary School,"2,801.66"
Manchester City Council,Environment and Operations,Infra - Construction,12-Aug-22,5105828760,J.Hopkins (Contractors) Ltd.,"2,828.29"
Manchester City Council,Adult Social Care,Consummables,12-Aug-22,1907846528,MILTON MANCHESTER HOTE,"2,994.00"
Manchester City Council,Chief Executives,Consummables,12-Aug-22,1907847369,C2E823801312E UKVI,"3,199.00"
Manchester City Council,Housing Revenue Account,CD - Adaptations,12-Aug-22,5105828597,Stannah Lift Services Ltd,"3,223.00"
Manchester City Council,Manchester Leisure,Special Event,12-Aug-22,5105828983,Event Technical Support,"3,250.00"
Manchester City Council,Chief Executives,Grant Expenditure,12-Aug-22,5105828990,Quarantine,"3,250.00"
Manchester City Council,Childrens & Education Services,Oth Professional Fee,12-Aug-22,5105828954,UNCIEF,"3,250.00"
Manchester City Council,Adult Social Care,Consummables,12-Aug-22,1907847301,HOTEL AT BOOKING.COM,"3,372.54"
Manchester City Council,Chief Executives,OL&B - Fees,12-Aug-22,5105828883,Buro Happold Limited,"3,500.00"
Manchester City Council,Environment and Operations,Infra - Construction,12-Aug-22,5105828874,GMCA,"3,697.43"
Manchester City Council,Manchester Leisure,Equipment,12-Aug-22,5105829007,Biffa Municipal Limited,"3,718.46"
Manchester City Council,Corporate Services,Hire of Equipment,12-Aug-22,5105828251,Flowbird Smart City Uk Ltd,"3,824.00"
Manchester City Council,Adult Social Care,Consummables,12-Aug-22,1907847191,WWW.LUXINN.CO.UK,"3,940.00"
Manchester City Council,Adult Social Care,Consummables,12-Aug-22,1907846809,WWW.LUXINN.CO.UK,"3,985.00"
Manchester City Council,Chief Executives,Licences Expenditure,12-Aug-22,5105828659,ESRI (Uk) Ltd,"4,042.10"
Manchester City Council,Environment and Operations,Infra - Construction,12-Aug-22,5105828776,J.Hopkins (Contractors) Ltd.,"4,084.89"
Manchester City Council,Adult Social Care,Consummables,12-Aug-22,1907846872,MGROUP ACCOMADATION,"4,132.00"
Manchester City Council,Hospitality + Trading Services,Vehicle Hire Costs,12-Aug-22,5105828920,Fleet Dynamic Consultancy Ltd,"4,456.88"
Manchester City Council,Environment and Operations,Infra - Construction,12-Aug-22,5105828768,J.Hopkins (Contractors) Ltd.,"4,493.81"
Manchester City Council,Chief Executives,Advertising,12-Aug-22,5105829000,Guardian News and Media Limited,"4,533.75"
Manchester City Council,Housing Revenue Account,CD - Adaptations,12-Aug-22,5105828863,Stannah Lift Services Ltd,"4,685.00"
Manchester City Council,Adult Social Care,Consummables,12-Aug-22,1907847320,WWW.LUXINN.CO.UK,"4,718.00"
Manchester City Council,Adult Social Care,Consummables,12-Aug-22,1907846753,WWW.LUXINN.CO.UK,"4,875.00"
Manchester City Council,Adult Social Care,Consummables,12-Aug-22,1907846927,WWW.LUXINN.CO.UK,"4,875.00"
Manchester City Council,Adult Social Care,Consummables,12-Aug-22,1907847567,WWW.LUXINN.CO.UK,"4,875.00"
Manchester City Council,Adult Social Care,Consummables,12-Aug-22,1907847403,WWW.LUXINN.CO.UK,"5,261.00"
Manchester City Council,Chief Executives,Licences Expenditure,12-Aug-22,5105828947,Smartsurvey Ltd,"5,300.00"
Manchester City Council,Chief Executives,Hire of Equipment,12-Aug-22,5105828915,Universal Live,"5,769.45"
Manchester City Council,Adult Social Care,Consummables,12-Aug-22,1907847073,WWW.LUXINN.CO.UK,"5,995.00"
Manchester City Council,Corporate Services,Legal Fees,12-Aug-22,1907846080,High Street Solicitors,"6,750.00"
Manchester City Council,Environment and Operations,Infra - Construction,12-Aug-22,5105828764,J.Hopkins (Contractors) Ltd.,"6,950.00"
Manchester City Council,Adult Social Care,Bed & Breakfast Acc,12-Aug-22,5105828854,Hala Guest House,"7,285.00"
Manchester City Council,Manchester Leisure,Electricity,12-Aug-22,5105828928,Switch2 Energey Limited,"7,361.36"
Manchester City Council,Regeneration Finance,Grant Expenditure,12-Aug-22,5105828921,Your Employment Service CIC (YES),"7,500.00"
Manchester City Council,Adult Social Care,Bed & Breakfast Acc,12-Aug-22,5105828546,Medlock House Ltd,"7,791.00"
Manchester City Council,Manchester Leisure,Oth Professional Fee,12-Aug-22,5105829052,Biffa Municipal Limited,"7,876.44"
Manchester City Council,Environment and Operations,Infra - Construction,12-Aug-22,5105828780,J.Hopkins (Contractors) Ltd.,"8,201.76"
Manchester City Council,Environment and Operations,Infra - Construction,12-Aug-22,5105828774,J.Hopkins (Contractors) Ltd.,"8,450.00"
Manchester City Council,Childrens & Education Services,Coach Hire,12-Aug-22,5105828970,Sumi Travel Ltd.,"8,853.00"
Manchester City Council,Environment and Operations,Infra - Construction,12-Aug-22,5105828834,GMCA,"10,070.00"
Manchester City Council,Regeneration Finance,Rents,12-Aug-22,1907843306,Moss Side Millennium Powerhouse Ltd,"10,263.37"
Manchester City Council,Manchester Leisure,Direct Materials,12-Aug-22,5105829015,"Groundwork Manchester, Salford","10,840.00"
Manchester City Council,Environment and Operations,Infra - Construction,12-Aug-22,5105828875,GMCA,"10,911.40"
Manchester City Council,Environment and Operations,Infra - Construction,12-Aug-22,5105828697,GMCA,"11,034.85"
Manchester City Council,Housing Revenue Account,CD - Adaptations,12-Aug-22,5105828599,Pollock Lifts Ltd,"11,157.00"
Manchester City Council,Childrens & Education Services,External Agency,12-Aug-22,5105828950,Gatenby Sanderson,"11,400.00"
Manchester City Council,Childrens & Education Services,Other Establishments,12-Aug-22,5105828594,Reed Employment Plc,"12,240.80"
Manchester City Council,Environment and Operations,Infra - Construction,12-Aug-22,5105828772,J.Hopkins (Contractors) Ltd.,"12,450.00"
Manchester City Council,Highways Services,Sub Contractors,12-Aug-22,5105828939,Bike Right,"12,520.00"
Manchester City Council,Adult Social Care,Rents,12-Aug-22,5105828880,United Property Management Ltd,"13,006.00"
Manchester City Council,Adult Social Care,Bed & Breakfast Acc,12-Aug-22,5105828891,247Hotel.Com,"13,130.83"
Manchester City Council,Adult Social Care,Voluntary Orgs TPP,12-Aug-22,5105828859,The Shaw Centre,"14,092.66"
Manchester City Council,Environment and Operations,Infra - Construction,12-Aug-22,5105828832,GMCA,"14,590.49"
Manchester City Council,Hospitality + Trading Services,Vehicle Fuel Costs,12-Aug-22,5105828902,Standard Fuels Oils,"14,950.02"
Manchester City Council,Environment and Operations,Infra - Construction,12-Aug-22,5105828749,J.Hopkins (Contractors) Ltd.,"15,950.00"
Manchester City Council,Adult Social Care,Bed & Breakfast Acc,12-Aug-22,5105828872,Hala Guest House,"17,215.00"
Manchester City Council,Adult Social Care,Equipment,12-Aug-22,5105828969,Drive Devilbiss Healthcare Ltd,"22,237.20"
Manchester City Council,Environment and Operations,Infra - Construction,12-Aug-22,5105828777,J.Hopkins (Contractors) Ltd.,"22,673.91"
Manchester City Council,Childrens & Education Services,Coach Hire,12-Aug-22,5105828951,JCT Travel Ltd,"22,845.00"
Manchester City Council,Chief Executives,Postage,12-Aug-22,5105828208,Royal Mail Group Plc,"24,508.63"
Manchester City Council,Environment and Operations,Infra - Construction,12-Aug-22,5105828793,J.Hopkins (Contractors) Ltd.,"25,781.90"
Manchester City Council,Adult Social Care,Computer Licenses,12-Aug-22,1907826853,IESE Innovations Ltd,"34,000.00"
Manchester City Council,Manchester Leisure,Security Costs,12-Aug-22,5105827888,Showsec International Ltd,"41,164.49"
Manchester City Council,Adult Social Care,Other Establishments,12-Aug-22,5105828911,Brook,"42,891.49"
Manchester City Council,Adult Social Care,Grant Expenditure,12-Aug-22,5105828953,The Booth Centre,"45,880.00"
Manchester City Council,Corporate Services,OL&B - Adaptations,12-Aug-22,5105827933,VolkerStevin Limited,"53,670.38"
Manchester City Council,Chief Executives,External Agency,12-Aug-22,5105828216,Cadence Resourcing Ltd,"61,857.60"
Manchester City Council,Regeneration Finance,Int Rep & Main Build,12-Aug-22,5105827855,EQUANS Services Limited,"63,137.79"
Manchester City Council,Environment and Operations,Infra - Construction,12-Aug-22,5105828755,J.Hopkins (Contractors) Ltd.,"69,541.21"
Manchester City Council,Corporate Services,Private Contractors,12-Aug-22,5105828770,NSL Ltd,"69,949.18"
Manchester City Council,Adult Social Care,Support People Pays,12-Aug-22,5105828185,Creative Support Ltd,"131,809.86"
Manchester City Council,Adult Social Care,Support People Pays,12-Aug-22,5105828186,Creative Support Ltd,"131,809.86"
Manchester City Council,Corporate Services,OL&B - Adaptations,12-Aug-22,5105828296,Bam Nuttall Ltd,"256,754.26"
Manchester City Council,Corporate Services,Private Contractors,12-Aug-22,5105828771,NSL Ltd,"315,186.32"
Manchester City Council,Housing Revenue Account,CD - Adaptations,12-Aug-22,5105828890,Manchester Working Ltd,"617,146.66"
Manchester City Council,Housing Revenue Account,OL&B - Construction,12-Aug-22,5105829001,Rowlinson Constructions Ltd,"679,262.73"
Manchester City Council,Chief Executives,Sub Contractors,12-Aug-22,5105828164,Redacted Personal Information,609.05
Manchester City Council,Chief Executives,Signers/Interpreters,12-Aug-22,5105828170,Redacted Personal Information,632.00
Manchester City Council,Manchester Leisure,Oth Professional Fee,12-Aug-22,5105829016,Redacted Personal Information,700.00
Manchester City Council,Childrens & Education Services,Supported Accom,12-Aug-22,5105828903,Redacted Personal Information,"1,253.00"
Manchester City Council,Childrens & Education Services,Coach Hire,12-Aug-22,5105828971,Redacted Personal Information,"2,864.00"
Manchester City Council,Adult Social Care,Bed & Breakfast Acc,12-Aug-22,5105828629,Redacted Personal Information,"11,930.00"
Manchester City Council,Manchester Leisure,Goods for Resale,15-Aug-22,1907846342,Redacted Personal Information,525.00
Manchester City Council,Corporate Services,Surveys Fees other,15-Aug-22,5105829023,Life Environmental Services,"-22,000.00"
Manchester City Council,Childrens & Education Services,Other Indirect Emp,15-Aug-22,5105829208,Positive Eye Ltd,500.00
Manchester City Council,Childrens & Education Services,Oth Professional Fee,15-Aug-22,5105829222,Prospero Teaching,500.00
Manchester City Council,Chief Executives,OL&B - Fees,15-Aug-22,5105829063,Buro Happold Limited,550.00
Manchester City Council,Chief Executives,Oth Professional Fee,15-Aug-22,1907846364,Avr Transcription Ltd,552.42
Manchester City Council,Chief Executives,Oth Professional Fee,15-Aug-22,1907846360,Pickering Psychology Services Ltd,602.07
Manchester City Council,Adult Social Care,General Office Exp,15-Aug-22,1907848273,HOTEL AT BOOKING.COM,670.00
Manchester City Council,Chief Executives,Counsel Costs,15-Aug-22,1907846140,Central Chambers,700.00
Manchester City Council,Manchester Leisure,Legal Fees,15-Aug-22,1907846133,eCapital Commercial Finance (North),700.00
Manchester City Council,Adult Social Care,Supported Accom,15-Aug-22,5105829198,Mosscare Housing Ltd,703.64
Manchester City Council,Chief Executives,OL&B - Fees,15-Aug-22,5105829152,Buro Happold Limited,720.00
Manchester City Council,Manchester Leisure,Ext Rep & Main Build,15-Aug-22,1907846376,Bowser Supply UK Ltd,750.00
Manchester City Council,Chief Executives,Oth Professional Fee,15-Aug-22,1907846137,Central Chambers,750.00
Manchester City Council,Manchester Leisure,Cont Cleaning - Ext,15-Aug-22,5105829095,Master Moves Ltd,760.50
Manchester City Council,Chief Executives,OL&B - Fees,15-Aug-22,5105829150,Buro Happold Limited,780.00
Manchester City Council,Manchester Leisure,Sub Contractors,15-Aug-22,5105829171,Osborne Richardson,786.00
Manchester City Council,Manchester Leisure,Legal Fees,15-Aug-22,1907846168,Sph Costing Services Ltd,798.89
Manchester City Council,Adult Social Care,General Office Exp,15-Aug-22,1907848276,HOTEL AT BOOKING.COM,820.80
Manchester City Council,Manchester Leisure,Legal Fees,15-Aug-22,1907846335,Sph Costing Services Ltd,841.88
Manchester City Council,Chief Executives,Other Indirect Emp,15-Aug-22,5105829157,Quaker Trading Ltd,883.34
Manchester City Council,Chief Executives,External CRB Fees,15-Aug-22,5105829212,Complete Background Screening Ltd,924.00
Manchester City Council,Chief Executives,Examination Fees,15-Aug-22,5105829231,ROAR Forensics Ltd,940.50
Manchester City Council,Chief Executives,OL&B - Fees,15-Aug-22,5105829149,Buro Happold Limited,950.00
Manchester City Council,Chief Executives,OL&B - Fees,15-Aug-22,5105829071,Buro Happold Limited,977.00
Manchester City Council,Insurance Fund,Fire & Prls Ins Prem,15-Aug-22,5105829086,Zurich Insurance,999.28
Manchester City Council,Childrens & Education Services,Other Indirect Emp,15-Aug-22,5105829211,Positive Eye Ltd,"1,000.00"
Manchester City Council,Adult Social Care,Rents,15-Aug-22,1907847661,The RSG Group,"1,000.00"
Manchester City Council,Chief Executives,Counsel Costs,15-Aug-22,1907846328,18 St John Street Chambers,"1,010.00"
Manchester City Council,Chief Executives,OL&B - Fees,15-Aug-22,5105829144,Buro Happold Limited,"1,050.00"
Manchester City Council,Manchester Leisure,Sub Contractors,15-Aug-22,5105829168,Osborne Richardson,"1,062.00"
Manchester City Council,Chief Executives,OL&B - Fees,15-Aug-22,5105829055,Buro Happold Limited,"1,100.00"
Manchester City Council,Corporate Services,Legal Fees,15-Aug-22,1907846348,Trinity Chambers,"1,100.00"
Manchester City Council,Chief Executives,OL&B - Fees,15-Aug-22,5105829070,Buro Happold Limited,"1,140.00"
Manchester City Council,Regeneration Finance,Ext Rep & Main Build,15-Aug-22,5105829058,Biffa Municipal Limited,"1,154.17"
Manchester City Council,Manchester Leisure,Sub Contractors,15-Aug-22,5105829175,Osborne Richardson,"1,161.00"
Manchester City Council,Chief Executives,External CRB Fees,15-Aug-22,5105829209,Complete Background Screening Ltd,"1,221.00"
Manchester City Council,Highways Services,Stores Purchases,15-Aug-22,5105829138,Kloeckner Metals UK,"1,227.00"
Manchester City Council,Manchester Leisure,Oth Professional Fee,15-Aug-22,5105829190,Aareon UK Ltd,"1,250.00"
Manchester City Council,Chief Executives,Counsel Costs,15-Aug-22,1907846138,Central Chambers,"1,250.00"
Manchester City Council,Chief Executives,General Office Exp,15-Aug-22,1907848261,FLOWER HAVEN,"1,270.00"
Manchester City Council,Manchester Leisure,Legal Fees,15-Aug-22,1907846344,Peter Dickeson Associates Ltd,"1,323.28"
Manchester City Council,Chief Executives,OL&B - Fees,15-Aug-22,5105829069,Buro Happold Limited,"1,343.00"
Manchester City Council,Housing Revenue Account,CD - Adaptations,15-Aug-22,5105828850,Stannah Lift Services Ltd,"1,357.00"
Manchester City Council,Adult Social Care,Oth Professional Fee,15-Aug-22,5105829196,UNIQUE SPECIALIST SERVICES,"1,377.00"
Manchester City Council,Hospitality + Trading Services,Other Vehicle Costs,15-Aug-22,5105829088,Verizon Connect UK Ltd,"1,390.65"
Manchester City Council,Childrens & Education Services,Computer Purchases,15-Aug-22,5105829201,Allied Publicity Services (M\cr) Lt,"1,506.29"
Manchester City Council,Insurance Fund,Emp Lbility Ins Prem,15-Aug-22,1907847659,Sheldon Davidson Solicitors,"1,594.00"
Manchester City Council,Chief Executives,Counsel Costs,15-Aug-22,1907846141,DEANS COURT CHAMBERS,"1,650.00"
Manchester City Council,Manchester Leisure,Legal Fees,15-Aug-22,1907846159,Sph Costing Services Ltd,"1,757.95"
Manchester City Council,Childrens & Education Services,Coach Hire,15-Aug-22,5105829178,JKR Travel,"1,760.00"
Manchester City Council,Chief Executives,OL&B - Fees,15-Aug-22,5105829065,Buro Happold Limited,"1,900.00"
Manchester City Council,Chief Executives,Oth Professional Fee,15-Aug-22,5105829129,Russell & Russell Solicitors LLP,"1,925.00"
Manchester City Council,Regeneration Finance,Oth Professional Fee,15-Aug-22,5105829101,Colliers International,"1,950.00"
Manchester City Council,Adult Social Care,Rents,15-Aug-22,5105829216,Onward Group Ltd,"1,969.07"
Manchester City Council,Adult Social Care,Rents,15-Aug-22,5105829217,Onward Group Ltd,"1,969.07"
Manchester City Council,Adult Social Care,Rents,15-Aug-22,5105829234,Onward Group Ltd,"1,969.07"
Manchester City Council,Adult Social Care,Rents,15-Aug-22,5105829236,Onward Group Ltd,"1,969.07"
Manchester City Council,Adult Social Care,Rents,15-Aug-22,5105829237,Onward Group Ltd,"1,969.07"
Manchester City Council,Childrens & Education Services,Coach Hire,15-Aug-22,5105829111,AA Buses,"1,995.00"
Manchester City Council,Regeneration Finance,Hire of Premises,15-Aug-22,5105829066,Grove Village Residents association,"2,160.00"
Manchester City Council,Regeneration Finance,Hire of Premises,15-Aug-22,5105829068,Grove Village Residents association,"2,160.00"
Manchester City Council,Chief Executives,Counsel Costs,15-Aug-22,1907846367,DEANS COURT CHAMBERS,"2,250.00"
Manchester City Council,Chief Executives,Oth Professional Fee,15-Aug-22,5105829134,Russell & Russell Solicitors LLP,"2,391.58"
Manchester City Council,Chief Executives,Oth Professional Fee,15-Aug-22,5105829126,Russell & Russell Solicitors LLP,"2,394.26"
Manchester City Council,Chief Executives,General Office Exp,15-Aug-22,1907848254,HIGHSTREETVOUCHERS,"2,500.00"
Manchester City Council,Chief Executives,General Office Exp,15-Aug-22,1907848255,HIGHSTREETVOUCHERS,"2,500.00"
Manchester City Council,Chief Executives,General Office Exp,15-Aug-22,1907848256,HIGHSTREETVOUCHERS,"2,500.00"
Manchester City Council,Chief Executives,Oth Professional Fee,15-Aug-22,5105829132,Russell & Russell Solicitors LLP,"2,556.25"
Manchester City Council,Chief Executives,OL&B - Fees,15-Aug-22,5105829067,Buro Happold Limited,"2,600.00"
Manchester City Council,Adult Social Care,Burials Expenditure,15-Aug-22,5105827772,Greater Manchester Funeral Service,"2,777.00"
Manchester City Council,Chief Executives,Oth Professional Fee,15-Aug-22,5105829177,Russell & Russell Solicitors LLP,"2,795.65"
Manchester City Council,Childrens & Education Services,Coach Hire,15-Aug-22,5105828929,Home to School Travel Ltd,"2,831.00"
Manchester City Council,Manchester Leisure,Grant Expenditure,15-Aug-22,5105829235,University Of Manchester,"2,862.35"
Manchester City Council,Corporate Services,Legal Fees,15-Aug-22,1907848267,HMCTS BOLTON082,"3,000.00"
Manchester City Council,Corporate Services,Subscriptions,15-Aug-22,1907848308,EMAP Publishing Limited,"3,098.03"
Manchester City Council,Chief Executives,Oth Professional Fee,15-Aug-22,5105829135,Russell & Russell Solicitors LLP,"3,165.50"
Manchester City Council,Chief Executives,OL&B - Fees,15-Aug-22,5105829145,Buro Happold Limited,"3,400.00"
Manchester City Council,Insurance Fund,Fire & Prls Ins Prem,15-Aug-22,5105829074,Zurich Insurance,"3,549.15"
Manchester City Council,Chief Executives,Oth Professional Fee,15-Aug-22,5105829130,Russell & Russell Solicitors LLP,"3,625.00"
Manchester City Council,Manchester Leisure,Oth Professional Fee,15-Aug-22,5105827216,Greenwich Leisure Limited,"3,660.75"
Manchester City Council,Chief Executives,Oth Professional Fee,15-Aug-22,5105829124,Russell & Russell Solicitors LLP,"3,688.30"
Manchester City Council,Chief Executives,Health Authorities,15-Aug-22,5105829204,MEWA LLP,"4,000.00"
Manchester City Council,Chief Executives,Oth Professional Fee,15-Aug-22,5105829121,Russell & Russell Solicitors LLP,"4,083.25"
Manchester City Council,Manchester Leisure,Special Event,15-Aug-22,5105829054,Biffa Municipal Limited,"4,541.00"
Manchester City Council,Environment and Operations,Infra - Construction,15-Aug-22,5105827582,Rosgal Ltd,"4,829.30"
Manchester City Council,Manchester Leisure,Grant Expenditure,15-Aug-22,5105828096,Manchester Young Comm. Champions,"4,915.00"
Manchester City Council,Chief Executives,Grant Expenditure,15-Aug-22,5105829123,Manchester Camerata,"5,000.00"
Manchester City Council,Adult Social Care,Other Establishments,15-Aug-22,5105828172,Slimming World,"5,075.00"
Manchester City Council,Environment and Operations,Infra - Construction,15-Aug-22,5105827570,Rosgal Ltd,"5,772.11"
Manchester City Council,Corporate Services,Legal Fees,15-Aug-22,1907848306,Peasegoods,"6,000.00"
Manchester City Council,Adult Social Care,Extra Care Sheltd HP,15-Aug-22,5105829179,Homecare Support,"6,131.66"
Manchester City Council,Manchester Leisure,Oth Professional Fee,15-Aug-22,5105829148,Arena Seating,"6,457.50"
Manchester City Council,Insurance Fund,Fire & Prls Ins Prem,15-Aug-22,5105829077,Zurich Insurance,"6,832.92"
Manchester City Council,Adult Social Care,Equipment,15-Aug-22,5105829183,Invacare Limited,"7,290.00"
Manchester City Council,Insurance Fund,Fire & Prls Ins Prem,15-Aug-22,5105829082,Zurich Insurance,"7,396.41"
Manchester City Council,Childrens & Education Services,Voluntary Orgs TPP,15-Aug-22,5105829100,Remedi,"7,500.00"
Manchester City Council,Highways Services,Oth Professional Fee,15-Aug-22,5105829029,Waterman Infrastructure and,"7,650.54"
Manchester City Council,Chief Executives,Coroners body transp,15-Aug-22,5105829229,Kane Funeral Services,"7,810.00"
Manchester City Council,Regeneration Finance,Oth Professional Fee,15-Aug-22,5105829085,City Football Group Limited,"8,704.00"
Manchester City Council,Regeneration Finance,Oth Professional Fee,15-Aug-22,5105829022,ASP Events Ltd,"8,810.00"
Manchester City Council,Manchester Leisure,Licences Expenditure,15-Aug-22,5105827740,Trustmarque Solutions Ltd,"9,963.20"
Manchester City Council,Environment and Operations,Infra - Construction,15-Aug-22,5105827581,Rosgal Ltd,"10,150.14"
Manchester City Council,Regeneration Finance,Grounds Maintenance,15-Aug-22,5105829083,Biffa Municipal Limited,"11,700.99"
Manchester City Council,Environment and Operations,Infra - Construction,15-Aug-22,5105827563,Rosgal Ltd,"12,648.14"
Manchester City Council,Adult Social Care,Extra Care Sheltd HP,15-Aug-22,5105829191,Homecare Support,"12,963.91"
Manchester City Council,Manchester Leisure,Cont Cleaning - Ext,15-Aug-22,5105829163,Biffa Municipal Limited,"12,999.99"
Manchester City Council,Manchester Leisure,Equipment,15-Aug-22,5105829223,Cromwell Polythene Limited,"13,286.00"
Manchester City Council,Insurance Fund,Fire & Prls Ins Prem,15-Aug-22,5105829078,Zurich Insurance,"13,743.35"
Manchester City Council,Adult Social Care,Voluntary Orgs TPP,15-Aug-22,5105829102,The Shaw Centre,"14,092.66"
Manchester City Council,Adult Social Care,Voluntary Orgs TPP,15-Aug-22,5105829103,The Shaw Centre,"14,092.66"
Manchester City Council,Manchester Leisure,Reuse credits,15-Aug-22,5105829162,Biffa Municipal Limited,"15,500.01"
Manchester City Council,Corporate Services,Legal Fees,15-Aug-22,1907841603,Antony Hodari Holding Ltd,"16,000.00"
Manchester City Council,Highways Services,Legal Fees,15-Aug-22,1907847659,Sheldon Davidson Solicitors,"20,000.00"
Manchester City Council,Corporate Services,Surveys Fees other,15-Aug-22,5105829059,Life Environmental Services,"22,000.00"
Manchester City Council,Adult Social Care,Voluntary Orgs TPP,15-Aug-22,5105829024,Supporting People In Need,"22,000.00"
Manchester City Council,Insurance Fund,Fire & Prls Ins Prem,15-Aug-22,5105829075,Zurich Insurance,"22,797.25"
Manchester City Council,Adult Social Care,Extra Care Sheltd HP,15-Aug-22,5105829180,Homecare Support,"24,555.85"
Manchester City Council,Adult Social Care,Extra Care Sheltd HP,15-Aug-22,5105829192,Homecare Support,"24,555.85"
Manchester City Council,Highways Services,Sub Contractors,15-Aug-22,5105828433,Rosgal Ltd,"30,138.19"
Manchester City Council,Highways Services,Sub Contractors,15-Aug-22,5105827859,Rosgal Ltd,"32,119.32"
Manchester City Council,Housing Revenue Account,CD - Adaptations,15-Aug-22,5105829141,Fieldway Supplies Ltd,"33,000.69"
Manchester City Council,Housing General Fund,Oth Rv ex fnd cp sta,15-Aug-22,5105829158,Southway Housing Trust,"35,127.83"
Manchester City Council,Childrens & Education Services,Voluntary Orgs TPP,15-Aug-22,5105829076,The Children'S Society Services Ltd,"38,756.78"
Manchester City Council,Housing General Fund,Oth Rv ex fnd cp sta,15-Aug-22,5105829155,Southway Housing Trust,"40,856.57"
Manchester City Council,Manchester Leisure,Refuse Collection ex,15-Aug-22,5105829030,Biffa Municipal Limited,"43,339.49"
Manchester City Council,Corporate Services,Heart of Manc Bid,15-Aug-22,5105828308,Heart of Manchester BID Co Ltd,"44,422.00"
Manchester City Council,Manchester Leisure,Oth Professional Fee,15-Aug-22,5105829161,Biffa Municipal Limited,"45,500.01"
Manchester City Council,Adult Social Care,Oth Professional Fee,15-Aug-22,5105827926,Revolving Doors Housing Trust,"49,824.77"
